Workbook

Sheet CF (hidden)
B2: CONDITIONAL FORMATTING MAP
F3: =INDEX(dms_CF_3.6.5, MATCH(dms_TradingName,dms_CF_TradingName))="Y" | G3: =INDEX(dms_CF_3.6.6.1, MATCH(dms_TradingName,dms_CF_TradingName))="Y" | H3: =INDEX(dms_CF_3.6.6.2, MATCH(dms_TradingName,dms_CF_TradingName))="Y" | I3: =INDEX(dms_CF_3.6.6.3, MATCH(dms_TradingName,dms_CF_TradingName))="Y" | J3: =INDEX(dms_CF_3.6.7.1, MATCH(dms_TradingName,dms_CF_TradingName))="Y" | K3: =INDEX(dms_CF_3.6.7.2, MATCH(dms_TradingName,dms_CF_TradingName))="Y" | L3: =INDEX(dms_CF_3.6.7.3, MATCH(dms_TradingName,dms_CF_TradingName))="Y" | M3: =INDEX(dms_CF_3.6.7.4, MATCH(dms_TradingName,dms_CF_TradingName))="Y" | N3: =INDEX(dms_CF_6.6.1, MATCH(dms_TradingName,dms_CF_TradingName))="Y" | O3: =INDEX(dms_CF_6.6.2, MATCH(dms_TradingName,dms_CF_TradingName))="Y" | P3: =INDEX(dms_CF_6.6.3, MATCH(dms_TradingName,dms_CF_TradingName))="Y" | Q3: =INDEX(dms_CF_6.6.4, MATCH(dms_TradingName,dms_CF_TradingName))="Y" | R3: =INDEX(dms_CF_6.8, MATCH(dms_TradingName,dms_CF_TradingName))="Y" | S3: =INDEX(dms_CF_7.12, MATCH(dms_TradingName,dms_CF_TradingName))="Y" | T3: =INDEX(dms_CF_8.1_A, MATCH(dms_TradingName,dms_CF_TradingName))="Y" | U3: =INDEX(dms_CF_8.1_B, MATCH(dms_TradingName,dms_CF_TradingName))="Y" | V3: =INDEX(dms_CF_8.1_Neg, MATCH(dms_TradingName,dms_CF_TradingName))="Y"
B4: dms_CF_TradingName | C4: JurisdictionList | D4: Sector | E4: Segment | F4: dms_CF_3.6.5 | G4: dms_CF_3.6.6.1 | H4: dms_CF_3.6.6.2 | I4: dms_CF_3.6.6.3 | J4: dms_CF_3.6.7.1 | K4: dms_CF_3.6.7.2 | L4: dms_CF_3.6.7.3 | M4: dms_CF_3.6.7.4 | N4: dms_CF_6.6.1 | O4: dms_CF_6.6.2 | P4: dms_CF_6.6.3 | Q4: dms_CF_6.6.4 | R4: dms_CF_6.8 | S4: dms_CF_7.12 | T4: dms_CF_8.1_A | U4: dms_CF_8.1_B | V4: dms_CF_8.1_Neg | W4: Column1 | X4: Column3
B5: ActewAGL Distribution | C5: ACT | D5: Electricity | E5: Distribution | F5: Y | G5: N | H5: Y | I5: Y | J5: Y | K5: Y | L5: N | M5: Y | N5: N | O5: Y | P5: Y | Q5: Y | R5: Y | S5: Y | T5: N | U5: Y | V5: Y | W5: N
B6: Ausgrid | C6: NSW | D6: Electricity | E6: Distribution | F6: Y | G6: N | H6: Y | I6: Y | J6: N | K6: N | L6: N | M6: Y | N6: N | O6: Y | P6: Y | Q6: Y | R6: Y | S6: Y | T6: N | U6: Y | V6: Y | W6: N
B7: AusNet (D) | C7: Vic | D7: Electricity | E7: Distribution | F7: N | G7: N | H7: N | I7: N | J7: N | K7: N | L7: N | M7: N | N7: N | O7: Y | P7: Y | Q7: Y | R7: Y | S7: N | T7: N | U7: N | V7: Y | W7: N
B8: AusNet (T) | C8: Vic | D8: Electricity | E8: Transmission | F8: N | G8: N | H8: N | I8: N | J8: N | K8: N | L8: N | M8: N | N8: N | O8: N | P8: N | Q8: N | R8: Y | S8: N | T8: N | U8: N | V8: Y | W8: N
B9: CitiPower | C9: Vic | D9: Electricity | E9: Distribution | F9: N | G9: N | H9: N | I9: N | J9: N | K9: N | L9: N | M9: N | N9: N | O9: Y | P9: Y | Q9: Y | R9: Y | S9: N | T9: N | U9: N | V9: Y | W9: N
B10: Directlink | C10: Qld | D10: Electricity | E10: Transmission | F10: N | G10: N | H10: N | I10: N | J10: N | K10: N | L10: N | M10: N | N10: N | O10: N | P10: N | Q10: N | R10: Y | S10: N | T10: N | U10: Y | V10: Y | W10: N
B11: ElectraNet | C11: SA | D11: Electricity | E11: Transmission | F11: N | G11: N | H11: N | I11: N | J11: N | K11: N | L11: N | M11: N | N11: N | O11: N | P11: N | Q11: N | R11: Y | S11: N | T11: N | U11: Y | V11: Y | W11: N
B12: Endeavour Energy | C12: NSW | D12: Electricity | E12: Distribution | F12: Y | G12: N | H12: Y | I12: Y | J12: N | K12: N | L12: N | M12: Y | N12: N | O12: Y | P12: Y | Q12: Y | R12: Y | S12: Y | T12: N | U12: Y | V12: Y | W12: N
B13: Energex | C13: Qld | D13: Electricity | E13: Distribution | F13: Y | G13: N | H13: N | I13: N | J13: N | K13: N | L13: N | M13: N | N13: N | O13: Y | P13: Y | Q13: Y | R13: Y | S13: Y | T13: N | U13: Y | V13: Y | W13: N
B14: Ergon Energy | C14: Qld | D14: Electricity | E14: Distribution | F14: Y | G14: N | H14: Y | I14: Y | J14: N | K14: N | L14: N | M14: N | N14: N | O14: Y | P14: Y | Q14: Y | R14: Y | S14: Y | T14: N | U14: Y | V14: Y | W14: N
B15: Essential Energy | C15: NSW | D15: Electricity | E15: Distribution | F15: Y | G15: N | H15: Y | I15: Y | J15: N | K15: N | L15: N | M15: Y | N15: N | O15: Y | P15: Y | Q15: Y | R15: Y | S15: Y | T15: N | U15: Y | V15: Y | W15: N
B16: Jemena Electricity | C16: Vic | D16: Electricity | E16: Distribution | F16: N | G16: N | H16: N | I16: N | J16: N | K16: N | L16: N | M16: N | N16: N | O16: Y | P16: Y | Q16: Y | R16: Y | S16: N | T16: N | U16: N | V16: Y | W16: N
B17: Murraylink | C17: SA | D17: Electricity | E17: Transmission | F17: N | G17: N | H17: N | I17: N | J17: N | K17: N | L17: N | M17: N | N17: N | O17: N | P17: N | Q17: N | R17: Y | S17: N | T17: N | U17: Y | V17: Y | W17: N
B18: Power and Water | C18: NT | D18: Electricity | E18: Distribution | F18: N | G18: N | H18: N | I18: N | J18: N | K18: Y | L18: N | M18: N | N18: Y | O18: Y | P18: Y | Q18: Y | R18: Y | S18: Y | T18: N | U18: Y | V18: Y | W18: N
B19: Powercor Australia | C19: Vic | D19: Electricity | E19: Distribution | F19: N | G19: N | H19: N | I19: N | J19: N | K19: N | L19: N | M19: N | N19: N | O19: Y | P19: Y | Q19: Y | R19: Y | S19: N | T19: N | U19: N | V19: Y | W19: N
B20: Powerlink | C20: Qld | D20: Electricity | E20: Transmission | F20: N | G20: N | H20: N | I20: N | J20: N | K20: N | L20: N | M20: N | N20: N | O20: N | P20: N | Q20: N | R20: Y | S20: N | T20: N | U20: Y | V20: Y | W20: N
B21: SA Power Networks | C21: SA | D21: Electricity | E21: Distribution | F21: Y | G21: N | H21: N | I21: N | J21: N | K21: N | L21: N | M21: N | N21: N | O21: Y | P21: Y | Q21: Y | R21: Y | S21: Y | T21: Y | U21: Y | V21: N | W21: N
B22: TasNetworks (D) | C22: Tas | D22: Electricity | E22: Distribution | F22: Y | G22: N | H22: N | I22: N | J22: N | K22: N | L22: N | M22: N | N22: N | O22: Y | P22: Y | Q22: Y | R22: Y | S22: Y | T22: N | U22: Y | V22: Y | W22: N
B23: TasNetworks (T) | C23: Tas | D23: Electricity | E23: Transmission | F23: N | G23: N | H23: N | I23: N | J23: N | K23: N | L23: N | M23: N | N23: N | O23: N | P23: N | Q23: N | R23: Y | S23: N | T23: N | U23: Y | V23: Y | W23: N
B24: TransGrid | C24: NSW | D24: Electricity | E24: Transmission | F24: N | G24: N | H24: N | I24: N | J24: N | K24: N | L24: N | M24: N | N24: N | O24: N | P24: N | Q24: N | R24: Y | S24: N | T24: N | U24: Y | V24: Y | W24: N
B25: United Energy | C25: Vic | D25: Electricity | E25: Distribution | F25: N | G25: N | H25: N | I25: N | J25: N | K25: N | L25: N | M25: N | N25: N | O25: Y | P25: Y | Q25: Y | R25: Y | S25: N | T25: N | U25: N | V25: Y | W25: N

Sheet AER only (hidden)
B1: Data in these columns used for data validation and database purposes.
B2: Date last modified: | C2: 2017-01-16 | D2: added (Albury and Victora) for AGN
C3: 2016-10-17 | D3: updated TransGrid's correct legal name, corrected TasNetworks (T) to June financial year
C4: 2017-02-01 | D4: inserted Power and Water, added NRs (dms_FeederCat_1 and dms_FeederCat_2)
C5: 2017-03-03 | D5: inserted AEMO as a business | AB5: FOR ELECTRICITY BUSINESSES ONLY
C6: 2018-03-28 | D6: major changes to accommodate STPIS
C7: Template Version | D7: 5 | AB7: Feeder Types | AF7: TasNetworks (D) | AG7: MAIFI flag | AH7: Feeder Names
AB9: CBD | AC9: Urban | AD9: Short rural | AE9: long rural | AF9: EXTRA
B10: dms_TradingName_List | C10: dms_TradingNameFull_List | D10: dms_ABN_List | E10: dms_JurisdictionList | F10: dms_Sector_List | G10: dms_Segment_List | H10: dms_FormControl_List | I10: dms_RPT_List | J10: dms_RPTMonth_List | K10: dms_CRCPlength_List | L10: dms_FRCPlength_List | M10: dms_663_List | N10: dms_DeterminationRef_List | O10: dms_Addr1_List | P10: dms_Addr2_List | Q10: dms_Suburb_List | R10: dms_State_List | S10: dms_PostCode_List | T10: dms_PAddr1_List | U10: dms_PAddr2_List | V10: dms_PSuburb_List | W10: dms_PState_List | X10: dms_PPostCode_List | Y10: dms_ContactName1_List | Z10: dms_ContactPh1_List | AA10: dms_ContactEmail_List | AB10: dms_CBD_flag | AC10: dms_Urban_flag | AD10: dms_ShortRural_flag | AE10: dms_LongRural_flag | AF10: dms_FeederType_5_flag | AG10: dms_MAIFI_flag_List | AH10: dms_FeederName_1 | AI10: dms_FeederName_2 | AJ10: dms_FeederName_3 | AK10: dms_FeederName_4 | AL10: dms_FeederName_5 | AM10: dms_Public_Lighting_List | AN10: Column1
B11: ActewAGL Distribution | C11: ActewAGL Distribution | D11: 76670568688 | E11: ACT | F11: Electricity | G11: Distribution | H11: Revenue cap | I11: Financial | J11: June | K11: 5 | L11: 5 | M11: 5 | N11: 2014-19 Distribution Determination | O11: 40 Bunda Street | Q11: CANBERRA | R11: ACT | S11: 2600 | T11: GPO BOX 366 | V11: CANBERRA | W11: ACT | X11: 2601 | Y11: Robert Walker | Z11: 02 6248 3847 | AA11: robert.walker@actewagle.com.au | AB11: NO | AC11: YES | AD11: YES | AE11: NO | AF11: NO | AG11: NO | AH11: CBD | AI11: Urban | AJ11: Short rural | AK11: Long rural | AM11: YES | AN11: ActewAGL Distribution
B12: ActewAGL Distribution (Tx Assets) | C12: ActewAGL Distribution (Tx Assets) | D12: 76670568688 | E12: ACT | F12: Electricity | G12: Distribution | H12: Revenue cap | I12: Financial | J12: June | K12: 5 | L12: 5 | M12: 5 | N12: distribution determination | O12: 40 Bunda Street | Q12: CANBERRA | R12: ACT | S12: 2600 | T12: GPO BOX 366 | V12: CANBERRA | W12: ACT | X12: 2601 | Y12: Robert Walker | Z12: 02 6248 3847 | AA12: robert.walker@actewagle.com.au | AB12: NO | AC12: YES | AD12: YES | AE12: NO | AF12: NO | AG12: NO | AH12: CBD | AI12: Urban | AJ12: Short rural | AK12: Long rural | AM12: NO | AN12: ActewAGL Distribution (Tx Assets)
B13: ActewAGL Gas | C13: ActewAGL Gas | D13: 76670568688 | E13: ACT | F13: Gas | G13: Distribution | H13: Weighted average price cap | I13: Financial | J13: June | K13: 5 | L13: 5 | M13: x | O13: 40 Bunda Street | Q13: CANBERRA | R13: ACT | S13: 2600 | T13: GPO BOX 366 | V13: CANBERRA | W13: ACT | X13: 2601 | Y13: Philip Deamer | Z13: 02 6248 3438 | AA13: GasAAReview@actewagl.com.au | AB13: NO | AC13: NO | AD13: NO | AE13: NO | AF13: NO | AH13: CBD | AI13: Urban | AJ13: Short rural | AK13: Long rural | AM13: NO | AN13: ActewAGL Gas
B14: AEMO | C14: Australian Energy Market Operator Ltd | D14: 94072010327 | E14: Vic | F14: Electricity | G14: Transmission | H14: - | I14: Financial | J14: March | K14: 5 | L14: 5 | M14: x | N14: - | O14: Level 22 | P14: 530 Collins Street | Q14: MELBOURNE | R14: VIC | S14: 3000 | T14: GPO Box 2008 | V14: MELBOURNE | W14: VIC | X14: 3001 | AB14: NO | AC14: NO | AD14: NO | AE14: NO | AF14: NO | AH14: CBD | AI14: Urban | AJ14: Short rural | AK14: Long rural | AM14: NO | AN14: AEMO
B15: AGN (Albury and Victoria) | C15: Australian Gas Networks Limited (reporting data for Albury and Victoria) | D15: 19078551685 | E15: Vic | F15: Gas | G15: Distribution | H15: Weighted average price cap | I15: Calendar | J15: December | K15: 5 | L15: 5 | M15: x | O15: Level 6 | P15: 400 King William Street | Q15: ADELAIDE | R15: SA | S15: 5000 | T15: PO Box 6468 | U15: Halifax Street | V15: ADELAIDE | W15: SA | X15: 5000 | Y15: Craig de Laine | Z15: 08 8418 1129 | AA15: craig.delaine@agn.com.au | AB15: NO | AC15: NO | AD15: NO | AE15: NO | AF15: NO | AH15: CBD | AI15: Urban | AJ15: Short rural | AK15: Long rural | AM15: NO | AN15: AGN (Albury)
B16: AGN (Albury) | C16: Australian Gas Networks Limited (reporting data for Albury) | D16: 19078551685 | E16: Vic | F16: Gas | G16: Distribution | H16: Weighted average price cap | I16: Calendar | J16: December | K16: 5 | L16: 5 | M16: x | O16: Level 6 | P16: 400 King William Street | Q16: ADELAIDE | R16: SA | S16: 5000 | T16: PO Box 6468 | U16: Halifax Street | V16: ADELAIDE | W16: SA | X16: 5000 | Y16: Craig de Laine | Z16: 08 8418 1129 | AA16: craig.delaine@agn.com.au | AB16: NO | AC16: NO | AD16: NO | AE16: NO | AF16: NO | AH16: CBD | AI16: Urban | AJ16: Short rural | AK16: Long rural | AM16: NO
B17: AGN (SA) | C17: Australian Gas Networks Limited (reporting data for SA) | D17: 19078551685 | E17: SA | F17: Gas | G17: Distribution | H17: Weighted average price cap | I17: Financial | J17: June | K17: 5 | L17: 5 | M17: 5 | N17: distribution determination | O17: Level 6 | P17: 400 King William Street | Q17: ADELAIDE | R17: SA | S17: 5000 | T17: PO Box 6468 | U17: Halifax Street | V17: ADELAIDE | W17: SA | X17: 5000 | Y17: Craig de Laine | Z17: 08 8418 1129 | AA17: craig.delaine@agn.com.au | AB17: NO | AC17: NO | AD17: NO | AE17: NO | AF17: NO | AH17: CBD | AI17: Urban | AJ17: Short rural | AK17: Long rural | AM17: NO | AN17: AGN (SA)
B18: AGN (Victoria) | C18: Australian Gas Networks Limited (reporting data for Victoria) | D18: 19078551685 | E18: Vic | F18: Gas | G18: Distribution | H18: Weighted average price cap | I18: Calendar | J18: December | K18: 5 | L18: 5 | M18: x | O18: Level 6 | P18: 400 King William Street | Q18: ADELAIDE | R18: SA | S18: 5000 | T18: PO Box 6468 | U18: Halifax Street | V18: ADELAIDE | W18: SA | X18: 5000 | Y18: Craig de Laine | Z18: 08 8418 1129 | AA18: craig.delaine@agn.com.au | AB18: NO | AC18: NO | AD18: NO | AE18: NO | AF18: NO | AH18: CBD | AI18: Urban | AJ18: Short rural | AK18: Long rural | AM18: NO | AN18: AGN (Victoria)
B19: Amadeus | C19: APT Pipelines (NT) Pty Ltd | D19: 39009737393 | E19: NT | F19: Gas | G19: Transmission | H19: Weighted average price cap | I19: Financial | J19: June | K19: 5 | L19: 5 | M19: x | N19: n/a | O19: Level 19, HSBC Building | P19: 580 George Street | Q19: SYDNEY | R19: NSW | S19: 2000 | T19: Level 19, HSBC Building | U19: 580 George Street | V19: SYDNEY | W19: NSW | X19: 2000 | Y19: Alexandra Curran | Z19: 02 9275 0020 | AA19: alexandra.curran@apa.com.au | AB19: NO | AC19: NO | AD19: NO | AE19: NO | AF19: NO | AH19: CBD | AI19: Urban | AJ19: Short rural | AK19: Long rural | AM19: NO | AN19: Amadeus
B20: APA GasNet | C20: APA GasNet Australia (Operations) Pty Ltd | D20: 065083009 | E20: Vic | F20: Gas | G20: Transmission | H20: Weighted average price cap | I20: Calendar | J20: December | K20: 5 | L20: 5 | M20: x | O20: Level 19, HSBC Building | P20: 580 George Street | Q20: SYDNEY | R20: NSW | S20: 2000 | T20: PO Box R41 | V20: ROYAL EXCHANGE | W20: NSW | X20: 1225 | Y20: Alexandra Curran | Z20: 02 9275 0020 | AA20: alexandra.curran@apa.com.au | AB20: NO | AC20: NO | AD20: NO | AE20: NO | AF20: NO | AH20: CBD | AI20: Urban | AJ20: Short rural | AK20: Long rural | AM20: NO | AN20: APA GasNet
B21: Ausgrid | C21: Ausgrid | D21: 78508211731 | E21: NSW | F21: Electricity | G21: Distribution | H21: Revenue cap | I21: Financial | J21: June | K21: 5 | L21: 5 | M21: 5 | N21: 2014-19 Distribution Determination | O21: 570 George St | Q21: SYDNEY | R21: NSW | S21: 2000 | T21: GPO Box 4009 | V21: SYDNEY | W21: NSW | X21: 2001 | Y21: John Thomson | Z21: 02 9269 2312 | AA21: john.thomson@ausgrid.com.au | AB21: YES | AC21: YES | AD21: YES | AE21: YES | AF21: NO | AG21: NO | AH21: CBD | AI21: Urban | AJ21: Short rural | AK21: Long rural | AM21: YES | AN21: Ausgrid
B22: Ausgrid (Tx Assets) | C22: Ausgrid (Tx Assets) | D22: 67505337385 | E22: NSW | F22: Electricity | G22: Distribution | H22: Revenue cap | I22: Financial | J22: June | K22: 5 | L22: 5 | M22: 5 | N22: distribution determination | O22: 570 George St | Q22: SYDNEY | R22: NSW | S22: 2000 | T22: GPO Box 4009 | V22: SYDNEY | W22: NSW | X22: 2001 | Y22: John Thomson | Z22: 02 9269 2312 | AA22: john.thomson@ausgrid.com.au | AB22: YES | AC22: YES | AD22: YES | AE22: YES | AF22: NO | AG22: NO | AH22: CBD | AI22: Urban | AJ22: Short rural | AK22: Long rural | AM22: NO | AN22: Ausgrid (Tx Assets)
B23: AusNet (D) | C23: AusNet Electricity Services Pty Ltd | D23: 91064651118 | E23: Vic | F23: Electricity | G23: Distribution | H23: Revenue cap | I23: Calendar | J23: December | K23: 5 | L23: 5 | M23: 2 | N23: 2016-20 Distribution Determination | O23: Level 32 | P23: 2 Southbank Boulevard | Q23: SOUTHBANK | R23: Vic | S23: 3006 | T23: Locked Bag 14051 | V23: MELBOURNE CITY MAIL CENTRE | W23: VIC | X23: 8001 | Y23: please provide contact details | AB23: NO | AC23: YES | AD23: YES | AE23: YES | AF23: NO | AH23: CBD | AI23: Urban | AJ23: Short rural | AK23: Long rural | AM23: YES | AN23: AusNet (D)
B24: AusNet (Gas) | C24: AusNet Gas Services | D24: 086015036 | E24: Vic | F24: Gas | G24: Distribution | H24: Weighted average price cap | I24: Calendar | J24: December | K24: 5 | L24: 5 | M24: X | O24: Level 19, HSBC Building | P24: 580 George Street | Q24: SYDNEY | R24: NSW | S24: 2000 | T24: PO Box R41 | V24: ROYAL EXCHANGE | W24: NSW | X24: 1225 | Y24: Alexandra Curran | Z24: 02 9275 0020 | AA24: alexandra.curran@apa.com.au | AB24: NO | AC24: NO | AD24: NO | AE24: NO | AF24: NO | AH24: CBD | AI24: Urban | AJ24: Short rural | AK24: Long rural | AM24: NO | AN24: AusNet (Gas)
B25: AusNet (T) | C25: Ausnet Services (Transmission) Ltd | D25: 48116124362 | E25: Vic | F25: Electricity | G25: Transmission | H25: Revenue cap | I25: Financial | J25: March | K25: 5 | L25: 5 | M25: 2 | N25: transmission determination | O25: Level 32 | P25: 2 Southbank Boulevard | Q25: SOUTHBANK | R25: Vic | S25: 3006 | T25: Locked Bag 14051 | V25: MELBOURNE CITY MAIL CENTRE | W25: Vic | X25: 8001 | Y25: Clare Thompson | Z25: 03 9695 6670 | AA25: clare.e.thompson@ausnetservices.com.au | AB25: NO | AC25: NO | AD25: NO | AE25: NO | AF25: NO | AH25: CBD | AI25: Urban | AJ25: Short rural | AK25: Long rural | AM25: NO | AN25: AusNet (T)
B26: Australian Distribution Co. | C26: Australian Distribution Co. | D26: 11222333444 | E26: - | F26: Electricity | G26: Distribution | H26: Revenue cap | I26: Financial | J26: June | K26: 5 | L26: 5 | M26: 2 | N26: distribution determination | O26: 123 Straight Street | Q26: SYDNEY | R26: NSW | S26: 2000 | T26: PO Box 123 | V26: SYDNEY | W26: NSW | X26: 2000 | Y26: Bob Smith | Z26: 02 1234 5678 | AA26: bob@auselec.net.au | AB26: YES | AC26: YES | AD26: YES | AE26: YES | AF26: NO | AH26: CBD | AI26: Urban | AJ26: Short rural | AK26: Long rural | AM26: YES | AN26: Australian Distribution Co.
B27: Australian Distribution Co. (Vic) | C27: Australian Distribution Co. (Victoria) | D27: 11222333444 | E27: Vic | F27: Electricity | G27: Distribution | H27: Revenue cap | I27: Calendar | J27: December | K27: 5 | L27: 5 | M27: 2 | N27: distribution determination | O27: 123 Straight Street | Q27: MELBOURNE | R27: Vic | S27: 3000 | T27: PO Box 123 | V27: MELBOURNE | W27: VIC | X27: 3000 | Y27: Bob Smith | Z27: 02 1234 5678 | AA27: bob@auselec.net.au | AB27: NO | AC27: NO | AD27: NO | AE27: NO | AF27: NO | AH27: CBD | AI27: Urban | AJ27: Short rural | AK27: Long rural | AM27: YES | AN27: Australian Distribution Co. (Vic)
B28: Australian Distribution Co. (Gas) | C28: Australian Gas Distribution Co. | D28: 11222333444 | E28: NSW | F28: Gas | G28: Distribution | H28: Weighted average price cap | I28: Financial | J28: June | K28: 5 | L28: 5 | O28: 123 Straight Street | Q28: SYDNEY | R28: NSW | S28: 2000 | T28: PO Box 123 | V28: SYDNEY | W28: NSW | X28: 2000 | Y28: Bob Smith | Z28: 02 1234 5678 | AA28: bob@auselec.net.au | AB28: NO | AC28: NO | AD28: NO | AE28: NO | AF28: NO | AH28: CBD | AI28: Urban | AJ28: Short rural | AK28: Long rural | AM28: NO | AN28: Australian Distribution Co. (Vic)
B29: Australian Transmission Co. | C29: Australian Transmission Co. | D29: 11222333444 | E29: - | F29: Electricity | G29: Transmission | H29: Revenue cap | I29: Financial | J29: June | K29: 5 | L29: 5 | M29: 5 | N29: transmission determination | O29: 123 Straight Street | Q29: SYDNEY | R29: NSW | S29: 2000 | T29: PO Box 123 | V29: SYDNEY | W29: NSW | X29: 2000 | Y29: Bob Smith | Z29: 02 1234 5678 | AA29: bob@auselec.net.au | AB29: NO | AC29: NO | AD29: NO | AE29: NO | AF29: NO | AH29: CBD | AI29: Urban | AJ29: Short rural | AK29: Long rural | AM29: NO | AN29: Australian Transmission Co.
B30: Central Ranges Pipeline (D) | C30: Central Ranges Pipeline Pty Ltd | D30: 108218355 | E30: NSW | F30: Gas | G30: Distribution | H30: Weighted average price cap | I30: Financial | J30: June | K30: 15 | L30: 5 | M30: 5 | N30: distribution determination | O30: Level 19 | P30: 580 George Street | Q30: SYDNEY | R30: NSW | S30: 2000 | T30: PO Box R41 | V30: ROYAL EXCHANGE | W30: NSW | X30: 1225 | Y30: Scott Young | Z30: 02 9275 0031 | AA30: scott.young@apa.com.au | AB30: NO | AC30: NO | AD30: NO | AE30: NO | AF30: NO | AH30: CBD | AI30: Urban | AJ30: Short rural | AK30: Long rural | AM30: NO
B31: Central Ranges Pipeline (T) | C31: Central Ranges Pipeline Pty Ltd | D31: 108218355 | E31: NSW | F31: Gas | G31: Distribution | H31: Weighted average price cap | I31: Financial | J31: June | K31: 14 | L31: 5 | M31: 5 | N31: transmission determination | O31: Level 19 | P31: 580 George Street | Q31: SYDNEY | R31: NSW | S31: 2000 | T31: PO Box R41 | V31: ROYAL EXCHANGE | W31: NSW | X31: 1225 | Y31: Scott Young | Z31: 02 9275 0031 | AA31: scott.young@apa.com.au | AB31: NO | AC31: NO | AD31: NO | AE31: NO | AF31: NO | AH31: CBD | AI31: Urban | AJ31: Short rural | AK31: Long rural | AM31: NO
B32: CitiPower | C32: CitiPower | D32: 76064651056 | E32: Vic | F32: Electricity | G32: Distribution | H32: Revenue cap | I32: Calendar | J32: December | K32: 5 | L32: 5 | M32: 2 | N32: 2016-20 Distribution Determination | O32: 40 Market Street | Q32: MELBOURNE | R32: Vic | S32: 3000 | T32: Locked Bag 14090 | V32: MELBOURNE | W32: VIC | X32: 8001 | Y32: Hannah Williams | Z32: 03 9683 4088 | AA32: hwilliams@powercor.com.au | AB32: YES | AC32: YES | AD32: NO | AE32: NO | AF32: NO | AH32: CBD | AI32: Urban | AJ32: Short rural | AK32: Long rural | AM32: YES | AN32: CitiPower
B33: Directlink | C33: Directlink | D33: 16779340889 | E33: Qld | F33: Electricity | G33: Transmission | H33: Revenue cap | I33: Financial | J33: June | K33: 9 | L33: 5 | M33: 5 | N33: transmission determination | O33: Level 19, HSBC Building | P33: 580 George Street | Q33: SYDNEY | R33: NSW | S33: 2000 | T33: PO Box R41 | V33: ROYAL EXCHANGE | W33: NSW | X33: 1225 | Y33: Scott Young | Z33: 02 9275 0031 | AA33: scott.young@apa.com.au | AB33: NO | AC33: NO | AD33: NO | AE33: NO | AF33: NO | AH33: CBD | AI33: Urban | AJ33: Short rural | AK33: Long rural | AM33: NO | AN33: Directlink
B34: ElectraNet | C34: ElectraNet | D34: 41094482416 | E34: SA | F34: Electricity | G34: Transmission | H34: Revenue cap | I34: Financial | J34: June | K34: 5 | L34: 5 | M34: 5 | N34: transmission determination | O34: 52-55 East Terrace | P34: Rymill Park | Q34: ADELAIDE | R34: SA | S34: 5000 | T34: PO Box 7096 | U34: Hutt Street Post Office | V34: ADELAIDE | W34: SA | X34: 5000 | Y34: Bill Jackson | Z34: 08 8404 7969 | AA34: jackson.bill@electranet.com.au | AB34: NO | AC34: NO | AD34: NO | AE34: NO | AF34: NO | AH34: CBD | AI34: Urban | AJ34: Short rural | AK34: Long rural | AM34: NO | AN34: ElectraNet
B35: Endeavour Energy | C35: Endeavour Energy | D35: 11247365823 | E35: NSW | F35: Electricity | G35: Distribution | H35: Revenue cap | I35: Financial | J35: June | K35: 5 | L35: 5 | M35: 5 | N35: 2014-19 Distribution Determination | O35: 51 Huntingwood Drive | Q35: HUNTINGWOOD | R35: NSW | S35: 2148 | T35: PO Box 811 | V35: SEVEN HILLS | W35: NSW | X35: 1730 | Y35: Jon Hocking | Z35: 02 9853 4386 / 0407 348 156 | AA35: Jon.Hocking@Endeavourenergy.com.au | AB35: NO | AC35: YES | AD35: YES | AE35: YES | AF35: NO | AG35: NO | AH35: CBD | AI35: Urban | AJ35: Short rural | AK35: Long rural | AM35: YES | AN35: Endeavour Energy
B36: Energex | C36: Energex | D36: 40078849055 | E36: Qld | F36: Electricity | G36: Distribution | H36: Revenue cap | I36: Financial | J36: June | K36: 5 | L36: 5 | M36: 5 | N36: 2015-20 Distribution Determination | O36: 26 Reddacliff Street | Q36: NEWSTEAD | R36: Qld | S36: 4006 | T36: 26 Reddacliff Street | V36: NEWSTEAD | W36: QLD | X36: 4006 | Y36: Jenny Doyle, Group Manager Regulatory Affairs | Z36: (07) 3851 6416 | AA36: jenny.doyle@ergon.com.au | AB36: YES | AC36: YES | AD36: YES | AE36: NO | AF36: NO | AG36: NO | AH36: CBD | AI36: Urban | AJ36: Short rural | AK36: Long rural | AM36: YES | AN36: Energex
B37: Ergon Energy | C37: Ergon Energy | D37: 50087646062 | E37: Qld | F37: Electricity | G37: Distribution | H37: Revenue cap | I37: Financial | J37: June | K37: 5 | L37: 5 | M37: 5 | N37: 2015-20 Distribution Determination | O37: 22 Walker Street | Q37: TOWNSVILLE | R37: Qld | S37: 4810 | T37: Po Box 264 | V37: FORTITUDE VALLEY | W37: QLD | X37: 4006 | Y37: Jenny Doyle, Group Manager Regulatory Affairs | Z37: (07) 3851 6416 | AA37: jenny.doyle@ergon.com.au | AB37: NO | AC37: YES | AD37: YES | AE37: YES | AF37: NO | AG37: NO | AH37: CBD | AI37: Urban | AJ37: Short rural | AK37: Long rural | AM37: YES | AN37: Ergon Energy
B38: Essential Energy | C38: Essential Energy | D38: 37428185226 | E38: NSW | F38: Electricity | G38: Distribution | H38: Revenue cap | I38: Financial | J38: June | K38: 5 | L38: 5 | M38: 5 | N38: 2014-19 Distribution Determination | O38: 8 Buller Street | Q38: PORT MACQUARIE | R38: NSW | S38: 2444 | T38: PO Box 5730 | V38: PORT MACQUARIE | W38: NSW | X38: 2444 | Y38: Catherine Waddell | Z38: 02 6338 3553 | AA38: catherine.waddell@essentialenergy.com.au | AB38: NO | AC38: NO | AD38: YES | AE38: YES | AF38: NO | AG38: NO | AH38: CBD | AI38: Urban | AJ38: Short rural | AK38: Long rural | AM38: YES | AN38: Essential Energy
B39: Jemena Electricity | C39: Jemena Electricity | D39: 82064651083 | E39: Vic | F39: Electricity | G39: Distribution | H39: Revenue cap | I39: Calendar | J39: December | K39: 5 | L39: 5 | M39: 2 | N39: 2016-20 Distribution Determination | O39: Level 16 | P39: 567 Collins Street | Q39: MELBOURNE | R39: VIC | S39: 3000 | T39: PO Box 16182 | V39: MELBOURNE | W39: VIC | X39: 8001 | Y39: Matthew Serpell | Z39: 03 9173 8231 | AA39: matthew.serpell@jemena.com.au | AB39: NO | AC39: YES | AD39: YES | AE39: NO | AF39: NO | AH39: CBD | AI39: Urban | AJ39: Short rural | AK39: Long rural | AM39: YES | AN39: Jemena Electricity
B40: JGN | C40: Jemena Gas Networks (NSW) Ltd | D40: 003 004 322 | E40: NSW | F40: Gas | G40: Distribution | H40: Weighted average price cap | I40: Financial | J40: June | K40: 5 | L40: 5 | Y40: please provide contact details | AB40: NO | AC40: NO | AD40: NO | AE40: NO | AF40: NO | AH40: CBD | AI40: Urban | AJ40: Short rural | AK40: Long rural | AM40: NO | AN40: JGN
B41: Multinet Gas | C41: Multinet Gas (DB No.1) Pty Ltd (ACN 086 026 986), Multinet Gas (DB No.2) Pty Ltd (ACN 086 230 122) | D41: 086026986 | E41: Vic | F41: Gas | G41: Distribution | H41: Weighted average price cap | I41: Calendar | J41: December | K41: 5 | L41: 5 | M41: x | O41: 43-45 Centreway | Q41: MT WAVERLEY | R41: Vic | S41: 3149 | Y41: Andrew Schille | Z41: 03 8846 9860 | AA41: andrew.schille@ue.com.au | AB41: NO | AC41: NO | AD41: NO | AE41: NO | AF41: NO | AH41: CBD | AI41: Urban | AJ41: Short rural | AK41: Long rural | AM41: NO | AN41: Multinet Gas
B42: Murraylink | C42: Murraylink | D42: 79181207909 | E42: SA | F42: Electricity | G42: Transmission | H42: Revenue cap | I42: Financial | J42: June | K42: 5 | L42: 5 | M42: 5 | N42: transmission determination | O42: Level 19 | P42: 580 George Street | Q42: SYDNEY | R42: NSW | S42: 2000 | T42: PO Box R41 | V42: ROYAL EXCHANGE | W42: NSW | X42: 1225 | Y42: Scott Young | Z42: 02 9275 0031 | AA42: scott.young@apa.com.au | AB42: NO | AC42: NO | AD42: NO | AE42: NO | AF42: NO | AH42: CBD | AI42: Urban | AJ42: Short rural | AK42: Long rural | AM42: NO | AN42: Murraylink
B43: Power and Water | C43: Power and Water Corporation | D43: 15947352360 | E43: NT | F43: Electricity | G43: Distribution | H43: Revenue cap | I43: Financial | J43: June | K43: 5 | L43: 5 | M43: x | N43: distribution determination | O43: GPO Box 1921 | Q43: DARWIN | R43: NT | S43: 801 | T43: GPO Box 1921 | V43: DARWIN | W43: NT | X43: 801 | Y43: Lucy Moon | Z43: 08 8924 5822 | AA43: Lucy.Moon@powerwater.com.au | AB43: YES | AC43: YES | AD43: YES | AE43: YES | AF43: NO | AH43: CBD | AI43: Urban | AJ43: Short rural | AK43: Long rural | AM43: NO | AN43: Power and Water
B44: Powercor Australia | C44: Powercor Australia | D44: 89064651109 | E44: Vic | F44: Electricity | G44: Distribution | H44: Revenue cap | I44: Calendar | J44: December | K44: 5 | L44: 5 | M44: 2 | N44: 2016-20 Distribution Determination | O44: 40 Market Street | Q44: MELBOURNE | R44: Vic | S44: 3000 | T44: Locked bag 14090 | V44: MELBOURNE | W44: VIC | X44: 8001 | Y44: Hannah Williams | Z44: 03 9683 4088 | AA44: hwilliams@powercor.com.au | AB44: NO | AC44: NO | AD44: YES | AE44: YES | AF44: NO | AH44: CBD | AI44: Urban | AJ44: Short rural | AK44: Long rural | AM44: YES | AN44: Powercor Australia
B45: Powerlink | C45: Queensland Electricity Transmission Corporation Limited trading as Powerlink Queensland | D45: 82078849233 | E45: Qld | F45: Electricity | G45: Transmission | H45: Revenue cap | I45: Financial | J45: June | K45: 5 | L45: 5 | M45: 5 | N45: transmission determination | O45: 33 Harold St | Q45: VIRGINIA | R45: Qld | S45: 4014 | T45: PO Box 1193 | V45: VIRGINIA | W45: QLD | X45: 4014 | Y45: Jennifer Harris | Z45: 07 3860 2667 | AA45: jharris@powerlink.com.au | AB45: NO | AC45: NO | AD45: NO | AE45: NO | AF45: NO | AH45: CBD | AI45: Urban | AJ45: Short rural | AK45: Long rural | AM45: NO | AN45: Powerlink
B46: Roma to Brisbane Pipeline | C46: APT Petroleum Pipelines Limited t/a Roma to Brisbane Pipeline | D46: 009 737 393 | E46: Qld | F46: Gas | G46: Transmission | H46: Weighted average price cap | I46: Financial | J46: June | K46: 5 | L46: 5 | M46: x | N46: n/a | O46: 580 George Street | Q46: SYDNEY | R46: NSW | S46: 2000 | T46: PO Box R41 | V46: ROYAL EXCHANGE | W46: NSW | X46: 1225 | Y46: Mark Allen | Z46: 02 9275 0010 | AA46: mark.allen@apa.com.au | AB46: NO | AC46: NO | AD46: NO | AE46: NO | AF46: NO | AH46: CBD | AI46: Urban | AJ46: Short rural | AK46: Long rural | AM46: NO | AN46: Roma to Brisbane Pipeline
B47: SA Power Networks | C47: SA Power Networks | D47: 13332330749 | E47: SA | F47: Electricity | G47: Distribution | H47: Revenue cap | I47: Financial | J47: June | K47: 5 | L47: 5 | M47: 5 | N47: 2015-20 Distribution Determination | O47: 1 Anzac Highway | Q47: KESWICK | R47: SA | S47: 5035 | T47: GPO Box 77 | V47: ADELAIDE | W47: SA | X47: 5000 | Y47: Richard Sibly | Z47: 08 8404 5613 | AA47: richard.sibly@sapowernetworks.com.au | AB47: YES | AC47: YES | AD47: YES | AE47: YES | AF47: NO | AG47: NO | AH47: CBD | AI47: Urban | AJ47: Short rural | AK47: Long rural | AM47: NO | AN47: SA Power Networks
B48: TasNetworks (D) | C48: TasNetworks (D) | D48: 24167357299 | E48: Tas | F48: Electricity | G48: Distribution | H48: Revenue cap | I48: Financial | J48: June | K48: 5 | L48: 5 | M48: 5 | N48: distribution determination | O48: 1-7 Maria Street | Q48: LENAH VALLEY | R48: Tas | S48: 7008 | T48: PO Box 606 | V48: MOONAH | W48: Tas | X48: 7009 | Y48: John Sayers | Z48: 03 6271 6469 | AA48: john.sayers@tasnetworks.com.au | AB48: YES | AC48: YES | AD48: YES | AE48: YES | AF48: YES | AG48: NO | AH48: Critical Infrastructure | AI48: High density commercial | AJ48: Urban | AK48: High density rural | AL48: Low density rural | AM48: YES | AN48: TasNetworks (D)
B49: TasNetworks (T) | C49: TasNetworks (T) | D49: 24167357299 | E49: Tas | F49: Electricity | G49: Transmission | H49: Revenue cap | I49: Financial | J49: June | K49: 5 | L49: 5 | M49: 5 | N49: transmission determination | O49: 1-7 Maria Street | Q49: LENAH VALLEY | R49: Tas | S49: 7008 | T49: PO Box 606 | V49: MOONAH | W49: Tas | X49: 7009 | Y49: John Sayers | Z49: 03 6271 6469 | AA49: john.sayers@tasnetworks.com.au | AB49: NO | AC49: NO | AD49: NO | AE49: NO | AF49: NO | AH49: CBD | AI49: Urban | AJ49: Short rural | AK49: Long rural | AM49: NO | AN49: TasNetworks (T)
B50: TransGrid | C50: NSW Electricity Networks Operations Pty Ltd trading as TransGrid | D50: 70 250 995 390 | E50: NSW | F50: Electricity | G50: Transmission | H50: Revenue cap | I50: Financial | J50: June | K50: 4 | L50: 5 | M50: 5 | N50: transmission determination | O50: 180 Thomas Street | Q50: SYDNEY | R50: NSW | S50: 2000 | T50: PO Box A1000 | V50: SYDNEY SOUTH | W50: NSW | X50: 1235 | Y50: Garrie Chubb | Z50: 0408 210 221 | AA50: garrie.chubb@transgrid.com.au | AB50: NO | AC50: NO | AD50: NO | AE50: NO | AF50: NO | AH50: CBD | AI50: Urban | AJ50: Short rural | AK50: Long rural | AM50: NO | AN50: TransGrid
B51: United Energy | C51: United Energy | D51: 70064651029 | E51: Vic | F51: Electricity | G51: Distribution | H51: Revenue cap | I51: Calendar | J51: December | K51: 5 | L51: 5 | M51: 2 | N51: 2016-20 Distribution Determination | O51: Level 3 | P51: 6 Nexus Court | Q51: MULGRAVE | R51: Vic | S51: 3149 | T51: PO Box 449 | V51: MOUNT WAVERLEY | W51: VIC | X51: 3170 | Y51: Mathew Abraham | Z51: 03 8846 9758 | AA51: mathew.abraham@ue.com.au | AB51: NO | AC51: NO | AD51: YES | AE51: NO | AF51: NO | AH51: CBD | AI51: Urban | AJ51: Short rural | AK51: Long rural | AM51: YES | AN51: United Energy
Z54: For EB & Reset RINs only | AE54: For AARs only
B55: The Reg Year Ending (dms_RYE) must be set to the last year of the regulatory period. For forecast data is is usually (FRCP_y5) for actual it is a single year (CRY). For historical actual data the RYE will need to be set manually in the business details sheet by setting the dms_Multiyear_flag to 1 and putting the correct value in 'dms_Specified_FinalYear. See cells C67:C68 | N55: Drop down selector box for CA & Reset RINs. | O55: For CA & Reset RINs only | Z55: for DNSP only | AE55: For DNSPs only
B56: dms_Model_List | C56: dms_Worksheet_List | E56: dms_RYE_Formula_Result | N56: dms_0203_ProjectType | O56: dms_020303_01_UOM | P56: dms_020501_01_UOM | Q56: dms_020501_02_UOM | R56: dms_020501_03_UOM | S56: dms_020501_04_UOM | T56: dms_020603_01_UOM | U56: dms_020701_01_UOM | V56: dms_020701_02_UOM | W56: dms_020701_01_Rows | X56: dms_040102_01_UOM | Y56: dms_040102_04_UOM | Z56: dms_030601_01_UOM | AA56: dms_030601_02_UOM | AB56: dms_030701_01_UOM | AC56: dms_030702_01_UOM | AD56: dms_030703_01_UOM | AE56: dms_030605_UOM | AF56: dms_03060703_UOM
B57: ARR | C57: ANNUAL REPORTING STATEMENT | E57: =LEFT(dms_SingleYear_FinalYear_Result,2)&RIGHT(dms_SingleYear_FinalYear_Result,2) -> 2018 | F57: =LEFT(dms_SingleYear_FinalYear_Result,2)&RIGHT(dms_SingleYear_FinalYear_Result,2) | H57: Formula errors are OK | N57: New line on new route - single circuit | O57: Circuit line length in km | P57: 0's | Q57: 0's | R57: 0's | S57: 0's | T57: 0's | U57: km | V57: km | W57: Route line length within zone | X57: 0's | Y57: days | Z57: minutes/customer | AA57: minutes/customer | AB57: Customer / km | AC57: % | AD57: km | AE57: number | AF57: number
B58: CA | C58: CATEGORY ANALYSIS | E58: =LEFT(dms_SingleYear_FinalYear_Result,2)&RIGHT(dms_SingleYear_FinalYear_Result,2) -> 2018 | F58: =LEFT(dms_SingleYear_FinalYear_Result,2)&RIGHT(dms_SingleYear_FinalYear_Result,2) | H58: Formula errors are OK | N58: New line on new route - dual circuit | O58: Circuit line length in km | P58: 0's | Q58: 0's | R58: 0's | S58: 0's | T58: 0's | U58: 0's | V58: 0's | W58: Number of maintenance spans | X58: 0's | Y58: 0's | Z58: minutes/customer | AA58: minutes/customer | AB58: MWh/customer | AC58: Number of spans | AE58: number | AF58: number
B59: CESS | C59: CAPITLAL EXPENDITURE SHARING SCHEMING | E59: 2016 | F59: =LEFT(dms_SingleYear_FinalYear_Result,2)&RIGHT(dms_SingleYear_FinalYear_Result,2) | N59: New line on new route - other | O59: Circuit line length in km | P59: MVA added | Q59: MVA added | R59: MVA added | S59: MVA added | T59: 0's | U59: km | V59: km | W59: Total length of maintenance spans | X59: 0's | Y59: $0s | Z59: interruptions/customer | AA59: interruptions/customer | AB59: kVA / customer | AC59: Number of spans | AE59: number | AF59: number
B60: CPI | C60: CPI | N60: Line rebuild over existing route - single circuit | O60: Circuit line length in km | P60: 0's | Q60: 0's | R60: 0's | S60: 0's | T60: 0's | U60: km | V60: km | W60: Length of vegetation corridors | X60: $0s | Y60: 0's | Z60: interruptions/customer | AA60: interruptions/customer | AC60: Number of spans | AE60: number | AF60: number
B61: EB | C61: ECONOMIC BENCHMARKING | E61: =LEFT(dms_SingleYear_FinalYear_Result,2)&RIGHT(dms_SingleYear_FinalYear_Result,2) -> 2018 | F61: =LEFT(dms_SingleYear_FinalYear_Result,2)&RIGHT(dms_SingleYear_FinalYear_Result,2) | H61: Formula errors are OK | N61: Line rebuild over existing route - dual circuit | O61: Number | P61: total spend $0s | Q61: total spend $0s | R61: total spend $0s | S61: total spend $0s | T61: (per cent) | U61: 0's | V61: 0's | W61: Average number of trees per maintenance span | AC61: Number of spans | AE61: number | AF61: (per cent)
B62: PTRM | C62: POST TAX REVENUE MODEL | E62: =LEFT(dms_MultiYear_FinalYear_Result,2)&RIGHT(dms_MultiYear_FinalYear_Result,2) -> 2025 | F62: =LEFT(dms_MultiYear_FinalYear_Result,2)&RIGHT(dms_MultiYear_FinalYear_Result,2) | N62: Reconductor - Single circuit | O62: Number | P62: net circuit km added | Q62: net circuit km added | R62: net circuit km added | S62: net circuit km added | U62: years | V62: years | W62: Average frequency of cutting cycle | AC62: Years | AE62: number
B63: Reset | C63: REGULATORY REPORTING STATEMENT | E63: =LEFT(dms_MultiYear_FinalYear_Result,2)&RIGHT(dms_MultiYear_FinalYear_Result,2) -> 2025 | F63: =LEFT(dms_MultiYear_FinalYear_Result,2)&RIGHT(dms_MultiYear_FinalYear_Result,2) | H63: Formula errors are OK | N63: Reconductor - Dual circuit | O63: Number | P63: total spend $0s | Q63: total spend $0s | R63: total spend $0s | S63: total spend $0s | AC63: Years | AE63: number
B64: RFM | C64: ROLL FORWARD MODEL | E64: =LEFT(dms_CRCP_FinalYear_Result,2)&RIGHT(dms_CRCP_FinalYear_Result,2) -> 2018 | F64: =LEFT(dms_CRCP_FinalYear_Result,2)&RIGHT(dms_CRCP_FinalYear_Result,2) | N64: Other | P64: net circuit km added | Q64: net circuit km added | R64: net circuit km added | S64: net circuit km added | AC64: Trees | AE64: number
B65: WACC | C65: WEIGHTED AVERAGE COST OF CAPITAL | E65: =LEFT(dms_MultiYear_FinalYear_Result,2)&RIGHT(dms_MultiYear_FinalYear_Result,2) -> 2025 | F65: =LEFT(dms_MultiYear_FinalYear_Result,2)&RIGHT(dms_MultiYear_FinalYear_Result,2) | P65: total spend $0s | Q65: total spend $0s | R65: total spend $0s | S65: total spend $0s | AC65: Trees | AE65: number
P66: 0's | R66: $0s | AC66: Defects | AE66: number
B67: dms_DataQuality_List | P67: 0's | AC67: Defects | AE67: number
B68: Actual | P68: 0's | AC68: Spans | AE68: number
B69: Estimate | P69: $0s | AC69: km | AE69: (per cent)
B70: Consolidated | AC70: Spans | AE70: (per cent)
B71: Recast
B72: Public
O73: For PTRM files - this field set the text for the named range "DMS_Xfactor" which in all cases is simply the text "x factors" - this saves putting in each old gas PTRM file | Z73: for TNSP only
B74: For all files either AER or business needs to be able to specify the type of submission | C74: For PTRM & RFM templates we must provide a choice in case they change their form of control - otherwise it is drawn from the business specific lookup table above. | O74: DMS_Xfactor | Z74: dms_030601_01_UOM | AB74: dms_030701_01_UOM | AC74: dms_030702_01_UOM
B75: dms_SourceList | C75: dms_FormControl_Choices | O75: x factors | Z75: % | AB75: Number of spans | AC75: km
B76: After appeal | C76: Revenue cap | Z76: number | AB76: Years | AC76: %
B77: Draft decision | C77: Revenue yield | Z77: number | AB77: Trees | AC77: km
B78: Final decision | C78: Weighted average price cap | Z78: % | AB78: Defects | AC78: number
B79: PTRM update 1 | Z79: number | AB79: Number of spans
B80: PTRM update 2 | Z80: number | AB80: km
B81: PTRM update 3 | Z81: % | AB81: km
B82: PTRM update 4 | Z82: number | AB82: Number of spans
B83: PTRM update 5 | Z83: number
B84: PTRM update 6 | Z84: %
B85: PTRM update 7 | Z85: number
B86: Regulatory proposal | Z86: %
B87: Reporting | Z87: number
B88: Revised regulatory proposal | Z88: %
Z89: number
B93: Reason for interruption | C93: dms_Reason_Interruption_Detailed | D93: dms_Reason_Interruption | E93: dms_STPIS_Exclusion_List | F93: dms_020301_ProjectType_List | G93: dms_020302_ProjectType_List
B94: Animal | C94: Animal impact | D94: Animal | E94: Weather | F94: New substation establishment | G94: New line on new route - single circuit
C95: Animal nesting/burrowing, etc and other | D95: Asset failure | E95: Equipment failure | F95: Capacity upgrade | G95: New line on new route - dual circuit
C96: Other | D96: Other | E96: Operational error | F96: Voltage upgrade | G96: New line on new route - other
B97: Asset failure | C97: LV | D97: Overloads | E97: Vegetation | F97: Other | G97: Line rebuild over existing route - single circuit
C98: Distribution substation | D98: Planned | E98: Animals | G98: Line rebuild over existing route - dual circuit
C99: HV | D99: Network business | E99: Third party impacts | G99: Reconductor - Single circuit
C100: Zone substation | D100: Third party | E100: Transmission failure | G100: Reconductor - Dual circuit
C101: Subtransmission | D101: Unknown | E101: Load shedding | G101: Reconductor - Other
B102: Other | C102: insert description of 'other' | D102: Vegetation | E102: Inter-distributor connection failure | G102: Line upgrade - raising/retensoring
B103: Overloads | C103: - | D103: Weather | E103: Other | G103: Line upgrade - voltage upgrade
B104: Planned | C104: - | D104: 2 - STPIS Exclusion (3.3)(a) | G104: Line upgrade - capacity
B105: Network business | C105: Network error | D105: 3 - STPIS Exclusion (3.3)(a) | G105: String spare circuit
C106: Switching and protection error | D106: 4 - STPIS Exclusion (3.3)(a) | G106: Other
B107: Third party | C107: Fire | D107: 5 - STPIS Exclusion (3.3)(a)
C108: Other | D108: 6 - STPIS Exclusion (3.3)(a)
C109: Dig-in | D109: 7 - STPIS Exclusion (3.3)(a)
C110: Unauthorised access
C111: Vehicle impact
B112: Unknown | C112: Unknown
B113: Vegetation | C113: Blow-in/Fall-in - NSP responsibility
C114: Grow-in - NSP responsibility
C115: Blow-in/Fall-in - Other responsible party
C116: Grow-in - Other responsible party
B117: Weather
B118: 2 - STPIS Exclusion (3.3)(a)
B119: 3 - STPIS Exclusion (3.3)(a)
B120: 4 - STPIS Exclusion (3.3)(a)
B121: 5 - STPIS Exclusion (3.3)(a)
B122: 6 - STPIS Exclusion (3.3)(a)
B123: 7 - STPIS Exclusion (3.3)(a)
B131: These are indeces and lookup values for various dates. All step from the value placed in FRCP_y1 on the business and other details worksheet | C131: =IF(dms_FifthFeeder_flag_NSP="NO","This NSP has only 4 feeder categories","This NSP has 5 feeder categories") -> This NSP has only 4 feeder categories | O131: These date tables are currently used in the Recast templates to provide column headings and conditional formatting
B132: dms_FRCPlength_Num_List | C132: dms_FinalYear_List | D132: dms_CRCPlength_Num_List | E132: dms_CFinalYear_List | F132: dms_FRCP_years | H132: dms_CRCP_years | J132: dms_CRCP_index | L132: dms_Financial_Years | M132: dms_Calendar_Years | O132: CRY from input cell on business sheet | P132: CRY - financial | Q132: dms_FinYears | R132: CRY calendar | S132: dms_CalYears
B133: 1 | C133: dms_FRCP_y1 | D133: 1 | E133: CRCP_y1 | F133: =FRCP_y1 -> 2020-21 | G133: dms_FRCP_y1 | H133: =IF(dms_RPT="financial",VALUE(LEFT(dms_FRCP_y1,4)-1)&"-"&TEXT(VALUE(MID(dms_FRCP_y1,3,2)),"00"),VALUE(LEFT(dms_FRCP_y1,4)-1)) -> 2019-20 | I133: dms_CRCP_yZ | J133: 1 | L133: 2005-06 | M133: 2006 | O133: =CRY -> 2017-18 | P133: =VALUE(LEFT(CRY,4))&"-"&TEXT(MID(CRY,3,2)+1,"00") -> 2017-18 | Q133: dms_CRYf_y1 | R133: =VALUE(LEFT(CRY,4)+1) -> 2018 | S133: dms_CRYc_y1
B134: 2 | C134: dms_FRCP_y2 | D134: 2 | E134: CRCP_y2 | F134: =IF(dms_RPT="financial",VALUE(LEFT(dms_FRCP_y1,4)+1)&"-"&TEXT(VALUE(RIGHT(dms_FRCP_y1,2)+1),"00"),VALUE(LEFT(dms_FRCP_y1,4)+1)) -> 2021-22 | G134: dms_FRCP_y2 | H134: =IF(dms_RPT="financial",VALUE(LEFT(dms_CRCP_yZ,4)-1)&"-"&TEXT(VALUE(MID(dms_CRCP_yZ,3,2)),"00"),VALUE(LEFT(dms_CRCP_yZ,4)-1)) -> 2018-19 | I134: dms_CRCP_yY | J134: 2 | L134: 2006-07 | M134: 2007 | P134: =VALUE(LEFT(dms_CRYf_y1,4)+1)&"-"&TEXT(MID(dms_CRYf_y1,3,2)+2,"00") -> 2018-19 | Q134: dms_CRYf_y2 | R134: =VALUE(LEFT(dms_CRYc_y1,4)+1) -> 2019 | S134: dms_CRYc_y2
B135: 3 | C135: dms_FRCP_y3 | D135: 3 | E135: CRCP_y3 | F135: =IF(dms_RPT="financial",VALUE(LEFT(dms_FRCP_y2,4)+1)&"-"&TEXT(VALUE(RIGHT(dms_FRCP_y2,2)+1),"00"),VALUE(LEFT(dms_FRCP_y2,4)+1)) -> 2022-23 | G135: dms_FRCP_y3 | H135: =IF(dms_RPT="financial",VALUE(LEFT(dms_CRCP_yY,4)-1)&"-"&TEXT(VALUE(MID(dms_CRCP_yY,3,2)),"00"),VALUE(LEFT(dms_CRCP_yY,4)-1)) -> 2017-18 | I135: dms_CRCP_yX | J135: 3 | L135: 2007-08 | M135: 2008 | P135: =VALUE(LEFT(dms_CRYf_y2,4)+1)&"-"&TEXT(MID(dms_CRYf_y2,3,2)+2,"00") -> 2019-20 | Q135: dms_CRYf_y3 | R135: =VALUE(LEFT(dms_CRYc_y2,4)+1) -> 2020 | S135: dms_CRYc_y3
B136: 4 | C136: dms_FRCP_y4 | D136: 4 | E136: CRCP_y4 | F136: =IF(dms_RPT="financial",VALUE(LEFT(dms_FRCP_y3,4)+1)&"-"&TEXT(VALUE(RIGHT(dms_FRCP_y3,2)+1),"00"),VALUE(LEFT(dms_FRCP_y3,4)+1)) -> 2023-24 | G136: dms_FRCP_y4 | H136: =IF(dms_RPT="financial",VALUE(LEFT(dms_CRCP_yX,4)-1)&"-"&TEXT(VALUE(MID(dms_CRCP_yX,3,2)),"00"),VALUE(LEFT(dms_CRCP_yX,4)-1)) -> 2016-17 | I136: dms_CRCP_yW | J136: 4 | L136: 2008-09 | M136: 2009 | P136: =VALUE(LEFT(dms_CRYf_y3,4)+1)&"-"&TEXT(MID(dms_CRYf_y3,3,2)+2,"00") -> 2020-21 | Q136: dms_CRYf_y4 | R136: =VALUE(LEFT(dms_CRYc_y3,4)+1) -> 2021 | S136: dms_CRYc_y4
B137: 5 | C137: dms_FRCP_y5 | D137: 5 | E137: CRCP_y5 | F137: =IF(dms_RPT="financial",VALUE(LEFT(dms_FRCP_y4,4)+1)&"-"&TEXT(VALUE(RIGHT(dms_FRCP_y4,2)+1),"00"),VALUE(LEFT(dms_FRCP_y4,4)+1)) -> 2024-25 | G137: dms_FRCP_y5 | H137: =IF(dms_RPT="financial",VALUE(LEFT(dms_CRCP_yW,4)-1)&"-"&TEXT(VALUE(MID(dms_CRCP_yW,3,2)),"00"),VALUE(LEFT(dms_CRCP_yW,4)-1)) -> 2015-16 | I137: dms_CRCP_yV | J137: 5 | L137: 2009-10 | M137: 2010 | P137: =VALUE(LEFT(dms_CRYf_y4,4)+1)&"-"&TEXT(MID(dms_CRYf_y4,3,2)+2,"00") -> 2021-22 | Q137: dms_CRYf_y5 | R137: =VALUE(LEFT(dms_CRYc_y4,4)+1) -> 2022 | S137: dms_CRYc_y5
B138: 6 | C138: dms_FRCP_y6 | D138: 6 | E138: CRCP_y6 | F138: =IF(dms_RPT="financial",VALUE(LEFT(dms_FRCP_y5,4)+1)&"-"&TEXT(VALUE(RIGHT(dms_FRCP_y5,2)+1),"00"),VALUE(LEFT(dms_FRCP_y5,4)+1)) -> 2025-26 | G138: dms_FRCP_y6 | H138: =IF(dms_RPT="financial",VALUE(LEFT(dms_CRCP_yV,4)-1)&"-"&TEXT(VALUE(MID(dms_CRCP_yV,3,2)),"00"),VALUE(LEFT(dms_CRCP_yV,4)-1)) -> 2014-15 | I138: dms_CRCP_yU | J138: 6 | L138: 2010-11 | M138: 2011 | P138: =VALUE(LEFT(dms_CRYf_y5,4)+1)&"-"&TEXT(MID(dms_CRYf_y5,3,2)+2,"00") -> 2022-23 | Q138: dms_CRYf_y6 | R138: =VALUE(LEFT(dms_CRYc_y5,4)+1) -> 2023 | S138: dms_CRYc_y6
B139: 7 | C139: dms_FRCP_y7 | D139: 7 | E139: CRCP_y7 | F139: =IF(dms_RPT="financial",VALUE(LEFT(dms_FRCP_y6,4)+1)&"-"&TEXT(VALUE(RIGHT(dms_FRCP_y6,2)+1),"00"),VALUE(LEFT(dms_FRCP_y6,4)+1)) -> 2026-27 | G139: dms_FRCP_y7 | H139: =IF(dms_RPT="financial",VALUE(LEFT(dms_CRCP_yU,4)-1)&"-"&TEXT(VALUE(MID(dms_CRCP_yU,3,2)),"00"),VALUE(LEFT(dms_CRCP_yU,4)-1)) -> 2013-14 | I139: dms_CRCP_yT | J139: 7 | L139: 2011-12 | M139: 2012 | P139: =VALUE(LEFT(dms_CRYf_y6,4)+1)&"-"&TEXT(MID(dms_CRYf_y6,3,2)+2,"00") -> 2023-24 | Q139: dms_CRYf_y7 | R139: =VALUE(LEFT(dms_CRYc_y6,4)+1) -> 2024 | S139: dms_CRYc_y7
B140: 8 | C140: dms_FRCP_y8 | D140: 8 | E140: CRCP_y8 | F140: =IF(dms_RPT="financial",VALUE(LEFT(dms_FRCP_y7,4)+1)&"-"&TEXT(VALUE(RIGHT(dms_FRCP_y7,2)+1),"00"),VALUE(LEFT(dms_FRCP_y7,4)+1)) -> 2027-28 | G140: dms_FRCP_y8 | H140: =IF(dms_RPT="financial",VALUE(LEFT(dms_CRCP_yT,4)-1)&"-"&TEXT(VALUE(MID(dms_CRCP_yT,3,2)),"00"),VALUE(LEFT(dms_CRCP_yT,4)-1)) -> 2012-13 | I140: dms_CRCP_yS | J140: 8 | L140: 2012-13 | M140: 2013 | P140: =VALUE(LEFT(dms_CRYf_y7,4)+1)&"-"&TEXT(MID(dms_CRYf_y7,3,2)+2,"00") -> 2024-25 | Q140: dms_CRYf_y8 | R140: =VALUE(LEFT(dms_CRYc_y7,4)+1) -> 2025 | S140: dms_CRYc_y8
B141: 9 | C141: dms_FRCP_y9 | D141: 9 | E141: CRCP_y9 | F141: =IF(dms_RPT="financial",VALUE(LEFT(dms_FRCP_y8,4)+1)&"-"&TEXT(VALUE(RIGHT(dms_FRCP_y8,2)+1),"00"),VALUE(LEFT(dms_FRCP_y8,4)+1)) -> 2028-29 | G141: dms_FRCP_y9 | H141: =IF(dms_RPT="financial",VALUE(LEFT(dms_CRCP_yS,4)-1)&"-"&TEXT(VALUE(MID(dms_CRCP_yS,3,2)),"00"),VALUE(LEFT(dms_CRCP_yS,4)-1)) -> 2011-12 | I141: dms_CRCP_yR | J141: 9 | L141: 2013-14 | M141: 2014 | P141: =VALUE(LEFT(dms_CRYf_y8,4)+1)&"-"&TEXT(MID(dms_CRYf_y8,3,2)+2,"00") -> 2025-26 | Q141: dms_CRYf_y9 | R141: =VALUE(LEFT(dms_CRYc_y8,4)+1) -> 2026 | S141: dms_CRYc_y9
B142: 10 | C142: dms_FRCP_y10 | D142: 10 | E142: CRCP_y10 | F142: =IF(dms_RPT="financial",VALUE(LEFT(dms_FRCP_y9,4)+1)&"-"&TEXT(VALUE(RIGHT(dms_FRCP_y9,2)+1),"00"),VALUE(LEFT(dms_FRCP_y9,4)+1)) -> 2029-30 | G142: dms_FRCP_y10 | H142: =IF(dms_RPT="financial",VALUE(LEFT(dms_CRCP_yR,4)-1)&"-"&TEXT(VALUE(MID(dms_CRCP_yR,3,2)),"00"),VALUE(LEFT(dms_CRCP_yR,4)-1)) -> 2010-11 | I142: dms_CRCP_yQ | J142: 10 | L142: 2014-15 | M142: 2015 | P142: =VALUE(LEFT(dms_CRYf_y9,4)+1)&"-"&TEXT(MID(dms_CRYf_y9,3,2)+2,"00") -> 2026-27 | Q142: dms_CRYf_y10 | R142: =VALUE(LEFT(dms_CRYc_y9,4)+1) -> 2027 | S142: dms_CRYc_y10
B143: 11 | C143: dms_FRCP_y11 | D143: 11 | E143: CRCP_y11 | F143: =IF(dms_RPT="financial",VALUE(LEFT(dms_FRCP_y10,4)+1)&"-"&TEXT(VALUE(RIGHT(dms_FRCP_y10,2)+1),"00"),VALUE(LEFT(dms_FRCP_y10,4)+1)) -> 2030-31 | G143: dms_FRCP_y11 | H143: =IF(dms_RPT="financial",VALUE(LEFT(dms_CRCP_yQ,4)-1)&"-"&TEXT(VALUE(MID(dms_CRCP_yQ,3,2)),"00"),VALUE(LEFT(dms_CRCP_yQ,4)-1)) -> 2009-10 | I143: dms_CRCP_yP | J143: 11 | L143: 2015-16 | M143: 2016 | P143: =VALUE(LEFT(dms_CRYf_y10,4)+1)&"-"&TEXT(MID(dms_CRYf_y10,3,2)+2,"00") -> 2027-28 | Q143: dms_CRYf_y11 | R143: =VALUE(LEFT(dms_CRYc_y10,4)+1) -> 2028 | S143: dms_CRYc_y11
B144: 12 | C144: dms_FRCP_y12 | D144: 12 | E144: CRCP_y12 | F144: =IF(dms_RPT="financial",VALUE(LEFT(dms_FRCP_y11,4)+1)&"-"&TEXT(VALUE(RIGHT(dms_FRCP_y11,2)+1),"00"),VALUE(LEFT(dms_FRCP_y11,4)+1)) -> 2031-32 | G144: dms_FRCP_y12 | H144: =IF(dms_RPT="financial",VALUE(LEFT(dms_CRCP_yP,4)-1)&"-"&TEXT(VALUE(MID(dms_CRCP_yP,3,2)),"00"),VALUE(LEFT(dms_CRCP_yP,4)-1)) -> 2008-09 | I144: dms_CRCP_yO | J144: 12 | L144: 2016-17 | M144: 2017 | P144: =VALUE(LEFT(dms_CRYf_y11,4)+1)&"-"&TEXT(MID(dms_CRYf_y11,3,2)+2,"00") -> 2028-29 | Q144: dms_CRYf_y12 | R144: =VALUE(LEFT(dms_CRYc_y11,4)+1) -> 2029 | S144: dms_CRYc_y12
B145: 13 | C145: dms_FRCP_y13 | D145: 13 | E145: CRCP_y13 | F145: =IF(dms_RPT="financial",VALUE(LEFT(dms_FRCP_y12,4)+1)&"-"&TEXT(VALUE(RIGHT(dms_FRCP_y12,2)+1),"00"),VALUE(LEFT(dms_FRCP_y12,4)+1)) -> 2032-33 | G145: dms_FRCP_y13 | H145: =IF(dms_RPT="financial",VALUE(LEFT(dms_CRCP_yO,4)-1)&"-"&TEXT(VALUE(MID(dms_CRCP_yO,3,2)),"00"),VALUE(LEFT(dms_CRCP_yO,4)-1)) -> 2007-08 | I145: dms_CRCP_yN | J145: 13 | L145: 2017-18 | M145: 2018 | P145: =VALUE(LEFT(dms_CRYf_y12,4)+1)&"-"&TEXT(MID(dms_CRYf_y12,3,2)+2,"00") -> 2029-30 | Q145: dms_CRYf_y13 | R145: =VALUE(LEFT(dms_CRYc_y12,4)+1) -> 2030 | S145: dms_CRYc_y13
B146: 14 | C146: dms_FRCP_y14 | D146: 14 | E146: CRCP_y14 | F146: =IF(dms_RPT="financial",VALUE(LEFT(dms_FRCP_y13,4)+1)&"-"&TEXT(VALUE(RIGHT(dms_FRCP_y13,2)+1),"00"),VALUE(LEFT(dms_FRCP_y13,4)+1)) -> 2033-34 | G146: dms_FRCP_y14 | H146: =IF(dms_RPT="financial",VALUE(LEFT(dms_CRCP_yN,4)-1)&"-"&TEXT(VALUE(MID(dms_CRCP_yN,3,2)),"00"),VALUE(LEFT(dms_CRCP_yN,4)-1)) -> 2006-07 | I146: dms_CRCP_yM | J146: 14 | L146: 2018-19 | M146: 2019 | P146: =VALUE(LEFT(dms_CRYf_y13,4)+1)&"-"&TEXT(MID(dms_CRYf_y13,3,2)+2,"00") -> 2030-31 | Q146: dms_CRYf_y14 | R146: =VALUE(LEFT(dms_CRYc_y13,4)+1) -> 2031 | S146: dms_CRYc_y14
B147: 15 | C147: dms_FRCP_y15 | D147: 15 | E147: CRCP_y15 | F147: =IF(dms_RPT="financial",VALUE(LEFT(dms_FRCP_y14,4)+1)&"-"&TEXT(VALUE(RIGHT(dms_FRCP_y14,2)+1),"00"),VALUE(LEFT(dms_FRCP_y14,4)+1)) -> 2034-35 | G147: dms_FRCP_y15 | H147: =IF(dms_RPT="financial",VALUE(LEFT(dms_CRCP_yM,4)-1)&"-"&TEXT(VALUE(MID(dms_CRCP_yM,3,2)),"00"),VALUE(LEFT(dms_CRCP_yM,4)-1)) -> 2005-06 | I147: dms_CRCP_yL | J147: 15 | L147: 2019-20 | M147: 2020 | P147: =VALUE(LEFT(dms_CRYf_y14,4)+1)&"-"&TEXT(MID(dms_CRYf_y14,3,2)+2,"00") -> 2031-32 | Q147: dms_CRYf_y15 | R147: =VALUE(LEFT(dms_CRYc_y14,4)+1) -> 2032 | S147: dms_CRYc_y15
L148: 2020-21 | M148: 2021 | P148: =VALUE(LEFT(dms_CRYf_y15,4)+1)&"-"&TEXT(MID(dms_CRYf_y15,3,2)+2,"00") -> 2032-33 | Q148: dms_CRYf_y16 | R148: =VALUE(LEFT(dms_CRYc_y15,4)+1) -> 2033 | S148: dms_CRYc_y16
B149: These are drop down lists for businesses to select the correct FRCP_y1 on the business and other details worksheet. This also populates the column headings in the worksheets | L149: 2021-22 | M149: 2022 | P149: =VALUE(LEFT(dms_CRYf_y16,4)+1)&"-"&TEXT(MID(dms_CRYf_y16,3,2)+2,"00") -> 2033-34 | Q149: dms_CRYf_y17 | R149: =VALUE(LEFT(dms_CRYc_y16,4)+1) -> 2034 | S149: dms_CRYc_y17
B150: dms_RCP_fyear_list | C150: dms_CRY_ListF | D150: dms_CRY_ListC | E150: dms_RCP_cyear_list | F150: dms_FRCP_fyear_list | G150: dms_FRCP_ListF | H150: dms_FRCP_ListC | I150: dms_FRCP_cyear_list | L150: 2022-23 | M150: 2023 | P150: =VALUE(LEFT(dms_CRYf_y17,4)+1)&"-"&TEXT(MID(dms_CRYf_y17,3,2)+2,"00") -> 2034-35 | Q150: dms_CRYf_y18 | R150: =VALUE(LEFT(dms_CRYc_y17,4)+1) -> 2035 | S150: dms_CRYc_y18
B151: dms_y1 | C151: =CRY -> 2017-18 | D151: 2006 | E151: dms_cy1 | F151: dms_frcp_fy1 | G151: 2010-11 | H151: 2011 | I151: dms_crcp_cy1 | L151: 2023-24 | M151: 2024 | P151: =VALUE(LEFT(dms_CRYf_y18,4)+1)&"-"&TEXT(MID(dms_CRYf_y18,3,2)+2,"00") -> 2035-36 | Q151: dms_CRYf_y19 | R151: =VALUE(LEFT(dms_CRYc_y18,4)+1) -> 2036 | S151: dms_CRYc_y19
B152: dms_y2 | C152: =IF(dms_RPT="financial",VALUE(LEFT(CRY,4)+1)&"-"&TEXT(MID(CRY,3,2)+2,"00"),VALUE(LEFT(CRY,4)+1)) -> 2018-19 | D152: 2007 | E152: dms_cy2 | F152: dms_frcp_fy2 | G152: 2011-12 | H152: 2012 | I152: dms_crcp_cy2 | L152: 2024-25 | M152: 2025 | P152: =VALUE(LEFT(dms_CRYf_y19,4)+1)&"-"&TEXT(MID(dms_CRYf_y19,3,2)+2,"00") -> 2036-37 | Q152: dms_CRYf_y20 | R152: =VALUE(LEFT(dms_CRYc_y19,4)+1) -> 2037 | S152: dms_CRYc_y20
B153: dms_y3 | C153: =IF(dms_RPT="financial",VALUE(LEFT(dms_fy2,4)+1)&"-"&TEXT(MID(dms_fy2,3,2)+2,"00"),VALUE(LEFT(dms_fy2,4)+1)) -> 2019-20 | D153: 2008 | E153: dms_cy3 | F153: dms_frcp_fy3 | G153: 2012-13 | H153: 2013 | I153: dms_crcp_cy3 | L153: 2025-26 | M153: 2026
B154: dms_y4 | C154: =IF(dms_RPT="financial",VALUE(LEFT(dms_fy3,4)+1)&"-"&TEXT(MID(dms_fy3,3,2)+2,"00"),VALUE(LEFT(dms_fy3,4)+1)) -> 2020-21 | D154: 2009 | E154: dms_cy4 | F154: dms_frcp_fy4 | G154: 2013-14 | H154: 2014 | I154: dms_crcp_cy4 | L154: 2026-27 | M154: 2027
B155: dms_y5 | C155: =IF(dms_RPT="financial",VALUE(LEFT(dms_fy4,4)+1)&"-"&TEXT(MID(dms_fy4,3,2)+2,"00"),VALUE(LEFT(dms_fy4,4)+1)) -> 2021-22 | D155: 2010 | E155: dms_cy5 | F155: dms_frcp_fy5 | G155: 2014-15 | H155: 2015 | I155: dms_crcp_cy5 | L155: 2027-28 | M155: 2028
B156: dms_y6 | C156: =IF(dms_RPT="financial",VALUE(LEFT(dms_fy5,4)+1)&"-"&TEXT(MID(dms_fy5,3,2)+2,"00"),VALUE(LEFT(dms_fy5,4)+1)) -> 2022-23 | D156: 2011 | E156: dms_cy6 | F156: dms_frcp_fy6 | G156: 2015-16 | H156: 2016 | I156: dms_crcp_cy6 | L156: 2028-29 | M156: 2029
B157: dms_y7 | C157: =IF(dms_RPT="financial",VALUE(LEFT(dms_fy6,4)+1)&"-"&TEXT(MID(dms_fy6,3,2)+2,"00"),VALUE(LEFT(dms_fy6,4)+1)) -> 2023-24 | D157: 2012 | E157: dms_cy7 | F157: dms_frcp_fy7 | G157: 2016-17 | H157: 2017 | I157: dms_crcp_cy7 | L157: 2029-30 | M157: 2030
B158: dms_y8 | C158: =IF(dms_RPT="financial",VALUE(LEFT(dms_fy7,4)+1)&"-"&TEXT(MID(dms_fy7,3,2)+2,"00"),VALUE(LEFT(dms_fy7,4)+1)) -> 2024-25 | D158: 2013 | E158: dms_cy8 | F158: dms_frcp_fy8 | G158: 2017-18 | H158: 2018 | I158: dms_crcp_cy8 | L158: 2030-31 | M158: 2031
B159: dms_y9 | C159: =IF(dms_RPT="financial",VALUE(LEFT(dms_fy8,4)+1)&"-"&TEXT(MID(dms_fy8,3,2)+2,"00"),VALUE(LEFT(dms_fy8,4)+1)) -> 2025-26 | D159: 2014 | E159: dms_cy9 | F159: dms_frcp_fy9 | G159: 2018-19 | H159: 2019 | I159: dms_crcp_cy9 | L159: 2031-32 | M159: 2032
B160: dms_y10 | C160: =IF(dms_RPT="financial",VALUE(LEFT(dms_fy9,4)+1)&"-"&TEXT(MID(dms_fy9,3,2)+2,"00"),VALUE(LEFT(dms_fy9,4)+1)) -> 2026-27 | D160: 2015 | E160: dms_cy10 | F160: dms_frcp_fy10 | G160: 2019-20 | H160: 2020 | I160: dms_crcp_cy10 | L160: 2032-33 | M160: 2033
B161: dms_y11 | C161: =IF(dms_RPT="financial",VALUE(LEFT(dms_fy10,4)+1)&"-"&TEXT(MID(dms_fy10,3,2)+2,"00"),VALUE(LEFT(dms_fy10,4)+1)) -> 2027-28 | D161: 2016 | E161: dms_cy11 | F161: dms_frcp_fy11 | G161: 2020-21 | H161: 2021 | I161: dms_crcp_cy11 | L161: 2033-34 | M161: 2034
B162: dms_y12 | C162: =IF(dms_RPT="financial",VALUE(LEFT(dms_fy11,4)+1)&"-"&TEXT(MID(dms_fy11,3,2)+2,"00"),VALUE(LEFT(dms_fy11,4)+1)) -> 2028-29 | D162: 2017 | E162: dms_cy12 | F162: dms_frcp_fy12 | G162: 2021-22 | H162: 2022 | I162: dms_crcp_cy12 | L162: 2034-35 | M162: 2035
B163: dms_y13 | C163: =IF(dms_RPT="financial",VALUE(LEFT(dms_fy12,4)+1)&"-"&TEXT(MID(dms_fy12,3,2)+2,"00"),VALUE(LEFT(dms_fy12,4)+1)) -> 2029-30 | D163: 2018 | E163: dms_cy13 | F163: dms_frcp_fy13 | G163: 2022-23 | H163: 2023 | I163: dms_crcp_cy13 | L163: 2035-36 | M163: 2036
B164: dms_y14 | C164: =IF(dms_RPT="financial",VALUE(LEFT(dms_fy13,4)+1)&"-"&TEXT(MID(dms_fy13,3,2)+2,"00"),VALUE(LEFT(dms_fy13,4)+1)) -> 2030-31 | D164: 2019 | E164: dms_cy14 | F164: dms_frcp_fy14 | G164: 2023-24 | H164: 2024 | I164: dms_crcp_cy14
B165: dms_y15 | C165: =IF(dms_RPT="financial",VALUE(LEFT(dms_fy14,4)+1)&"-"&TEXT(MID(dms_fy14,3,2)+2,"00"),VALUE(LEFT(dms_fy14,4)+1)) -> 2031-32 | D165: 2020 | E165: dms_cy15 | F165: dms_frcp_fy15 | G165: 2024-25 | H165: 2025 | I165: dms_crcp_cy15
B166: dms_y16 | C166: =IF(dms_RPT="financial",VALUE(LEFT(dms_fy15,4)+1)&"-"&TEXT(MID(dms_fy15,3,2)+2,"00"),VALUE(LEFT(dms_fy15,4)+1)) -> 2032-33 | D166: 2021 | E166: dms_cy16
B167: dms_y17 | C167: =IF(dms_RPT="financial",VALUE(LEFT(dms_fy16,4)+1)&"-"&TEXT(MID(dms_fy16,3,2)+2,"00"),VALUE(LEFT(dms_fy16,4)+1)) -> 2033-34 | D167: 2022 | E167: dms_cy17
B168: dms_y18 | C168: =IF(dms_RPT="financial",VALUE(LEFT(dms_fy17,4)+1)&"-"&TEXT(MID(dms_fy17,3,2)+2,"00"),VALUE(LEFT(dms_fy17,4)+1)) -> 2034-35 | D168: 2023 | E168: dms_cy18
B169: dms_y19 | C169: =IF(dms_RPT="financial",VALUE(LEFT(dms_fy18,4)+1)&"-"&TEXT(MID(dms_fy18,3,2)+2,"00"),VALUE(LEFT(dms_fy18,4)+1)) -> 2035-36 | D169: 2024 | E169: dms_cy19
B170: dms_y20 | C170: =IF(dms_RPT="financial",VALUE(LEFT(dms_fy19,4)+1)&"-"&TEXT(MID(dms_fy19,3,2)+2,"00"),VALUE(LEFT(dms_fy19)+1)) -> 2036-37 | D170: 2025 | E170: dms_cy20
B176: These "row descriptions" are the column headings in the various templates but become row descriptions in the ETL process
C177: Table 6.3 sustained interruptions - row descriptions
C178: dms_060301_CustNo_Affected_Row | D178: dms_060301_Avg_Duration_Sustained_Int_Row | E178: dms_060301_Effect_unplanned_SAIDI_Row | F178: dms_060301_Effect_unplanned_SAIFI_Row
C179: Number of customers affected by the interruption | D179: Average duration of sustained customer interruption | E179: Effect on unplanned SAIDI | F179: Effect on unplanned SAIFI
C183: Table 6.1 telephone answering - row descriptions and start date
C184: dms_060101_Rows | D184: dms_060102_Rows | E184: dms_060101_StartDateTxt
C185: Total number of calls (after removing excluded events) | D185: Number of calls answered within 30 seconds (after excluding excluded events) | E185: =dms_060701_StartDateTxt -> 1-Jul-2017
H189: dms_0603_FeederList | I189: =INDEX(dms_FeederName_1,MATCH(dms_TradingName,dms_TradingName_List)) -> CBD | J189: =INDEX(dms_FeederName_2,MATCH(dms_TradingName,dms_TradingName_List)) -> Urban | K189: =INDEX(dms_FeederName_3,MATCH(dms_TradingName,dms_TradingName_List)) -> Short rural | L189: =INDEX(dms_FeederName_4,MATCH(dms_TradingName,dms_TradingName_List)) -> Long rural | M189: =INDEX(dms_FeederName_5,MATCH(dms_TradingName,dms_TradingName_List)) -> 
C190: Table 6.7.1 - daily performance data - unplanned - MAIFI -- row descriptions and header named range values
C191: These headings (Lists) are determined from the INDEX/MATCH function on the NSP selected on the Business & other details sheet
B192: dms_060701_Feeder_Header_Lvl4 | C192: =INDEX(dms_FeederName_1,MATCH(dms_TradingName,dms_TradingName_List)) -> CBD | D192: =INDEX(dms_FeederName_1,MATCH(dms_TradingName,dms_TradingName_List)) -> CBD | E192: =INDEX(dms_FeederName_2,MATCH(dms_TradingName,dms_TradingName_List)) -> Urban | F192: =INDEX(dms_FeederName_2,MATCH(dms_TradingName,dms_TradingName_List)) -> Urban | G192: =INDEX(dms_FeederName_3,MATCH(dms_TradingName,dms_TradingName_List)) -> Short rural | H192: =INDEX(dms_FeederName_3,MATCH(dms_TradingName,dms_TradingName_List)) -> Short rural | I192: =INDEX(dms_FeederName_4,MATCH(dms_TradingName,dms_TradingName_List)) -> Long rural | J192: =INDEX(dms_FeederName_4,MATCH(dms_TradingName,dms_TradingName_List)) -> Long rural | K192: =IF((INDEX(dms_FeederName_5,MATCH(dms_TradingName,dms_TradingName_List))=0),"Network",(INDEX(dms_FeederName_5,MATCH(dms_TradingName,dms_TradingName_List)))) ->  | L192: =IF((INDEX(dms_FeederName_5,MATCH(dms_TradingName,dms_TradingName_List))=0),"Network",(INDEX(dms_FeederName_5,MATCH(dms_TradingName,dms_TradingName_List)))) ->  | M192: Network | N192: Network
B194: dms_060701_Rows | C194: All events | D194: After removing excluded events | E194: All events | F194: After removing excluded events | G194: All events | H194: After removing excluded events | I194: All events | J194: After removing excluded events | K194: All events | L194: After removing excluded events | M194: All events | N194: After removing excluded events
C195: the number of column headings changes from 10 to 12 depending on the number of feeder categories for the NSP
C200: Table 6.8.1 - row descriptions
C201: dms_060801_01_Rows | D201: dms_060801_02_Rows | E201: dms_060801_03_Rows | F201: dms_060801_04_Rows
C202: Number of interruptions | D202: Duration of interruptions | E202: Total unplanned minutes off supply | F202: Effect on unplanned MAIFI
C207: Table 7.9.4 - market impact component - row descriptions
B208: dms_070904_01_Rows | C208: without exclusions | D208: with exclusions
C214: Use this to add to existing files
C215: ARRs 6.7 STPIS daily performance
C216: dms_060101_Values | D216: dms_060102_Values | E216: dms_060701_Values
C218: ARR's 6.8 STPIS exclusions
C219: dms_060801_Event_Date | D219: dms_060801_OutageID | E219: dms_060801_FeederID | F219: dms_060801_FeederClass | G219: dms_060801_CauseID | H219: dms_060801_01_Values | I219: dms_060801_02_Values | J219: dms_060801_03_Values | K219: dms_060801_Excl_Cat | L219: dms_060801_04_Values
C220: dms_060801_StartCell
C222: CA 6.3 sustained interruptions
C223: dms_060301_Event_Date | D223: dms_060301_Event_Time | E223: dms_060301_AssetID | F223: dms_060301_FeederClass | G223: dms_060301_Reason | H223: dms_060301_DetailedReason | I223: dms_060301_CustNo_Affected_Values | J223: dms_060301_Avg_Duration_Sustained_Int_Values | K223: dms_060301_Effect_unplanned_SAIDI_Values | L223: dms_060301_Effect_unplanned_SAIFI_Values | M223: dms_060301_MED

Sheet Contents
B3: =CONCATENATE(dms_Segment," Network Service Provider") -> Distribution Network Service Provider
B5: Table of Contents
C8: Instructions
C9: Business & other details
B12: CATEGORY ANALYSIS | C12: STPIS | D12: STATUTORY ACCOUNTS
B14: 2.11 Labour | C14: 6.2 STPIS Reliability | D14: 8.1 Income
C15: 6.6 STPIS Customer Service | D15: 8.2 Capex
C16: 6.7 STPIS Daily Performance
C17: 6.8 STPIS Exclusions | D17: 8.4 Opex
C18: 6.9 STPIS GSL
B22: NETWORK PERFORMANCE | C22: OTHER INFORMATION | D22: PRICING PROPOSAL
D23: Victorian Businesses Only
B24: 3.6 Quality of services | C24: 7.8 Avoided Cost Payments
B25: 3.6.8 Network-feeders | C25: 7.10 Juris Scheme | D25: 9.5 TUoS
B26: 3.6.9 Network-reliability | C26: 7.11 DMIS-DMIA
C27: 7.12 Safety and Bushfire
B29: PUBLIC LIGHTING
B31: 4.1 Public lighting tariffs

Sheet Instructions
B2: =CONCATENATE(dms_Segment," Network Service Provider") -> Distribution Network Service Provider
B3: =IF(dms_Model="Reset","Regulatory Proposal RIN Template","Annual Reporting RIN") -> Annual Reporting RIN
C4: This template is to be used by Australian Distribution Co. to fulfil its reporting obligations to the AER.
C5: INSTRUCTIONS
C6: Complete the Business & other details worksheet before entering data or values in any other worksheets. The Business & other details worksheet is linked to other worksheets within the workbook and automatically generates certain column headings and conditional formatting.
C8: Identifying CONFIDENTIAL INFORMATION: Please use the macro at the top of each worksheet to identify confidential information.
C9: -Do this by selecting the cell or cells that contain confidential information and then run the Mark selected cells as CONFIDENTIAL macro. This will format the cells a specific colour that is identified by the AER's database which in turn marks that information as confidential. -To reverse this, select the cell or cells and run the Return cells to NON-CONFIDENTIAL macro.
C11: UNITS OF MEASURE All amounts are to be unrounded and reported on a one for one basis: that is 1000 is to be entered as '1000'. Applicable units of measure may be identified in the table column headings or row descriptors.
C13: COLOUR CODING OF INPUT / NON-INPUT CELLS:
D14: Yellow = Input cell (mandatory)
D15: Darker yellow = input cell (mandatory)
D16: Orange = input cell (if data available)
D17: Grey = Not applicable/No inputs required
D18: PLEASE DO NOT ENTER TEXT into cells that are to contain numeric data.
C21: WORKSHEET NAVIGATION Many tables in the worksheets have been "grouped" to allow for easy navigation. To ungroup or group data use the outline symbols in the left margin (for Row groupings) or above the columns (for column groupings).
C23: RETURNING COMPLETED RESPONSES Please return two (2) files to the AER: 1. A confidential version which must contain a complete set of all responses with confidential information marked using the Mark selection CONFIDENTIAL macro and which has been completed using the locked template file provided by the AER. 2. A public version with confidential information either removed completely or aggregated in some form together with writtten consent to disclose the public version of the response. Use the drop down box on the Business and other details worksheet to identify the file as either confidential ('consolidated') or public.
C25: SUBMITTING AMENDED DATA TO THE AER If an NSP wishes to correct data previously submitted to the AER it should resubmit that data using the original completed submission as the starting point. Please make any necessary changes to the data. Data that is not being amended should be left unchanged. NSPs must identify the reason for the amendments in the Amendment Reason box on the Business and other details worksheet. NSPs may provide further details regarding any amendments in the Amendments worksheet. .
C26: NSP may use Amended Data macro to highlight cells that contain amended data. NB: if data is also CONFIDENTIAL, re-apply the Confidentiality macro after applying the Amended macro
C27: Please resubmit two (2) files - a confidential version and a public version of the amended submission to the AER

Sheet Business & other details
B1: =IF(dms_DataQuality="backcast",INDEX(dms_Worksheet_List,MATCH(dms_Model,dms_Model_List))&" BACKCAST",INDEX(dms_Worksheet_List,MATCH(dms_Model,dms_Model_List))) -> ANNUAL REPORTING STATEMENT
B2: =INDEX(dms_TradingNameFull_List,MATCH(dms_TradingName,dms_TradingName_List)) -> Ergon Energy
B3: =IF(SUM(dms_SingleYear_Model)>0,CONCATENATE(CRY),CONCATENATE(FRCP_y1," to ",dms_MultiYear_FinalYear_Result)) -> 2017-18
B4: BUSINESS & OTHER DETAILS
B7: Instructions
B8: Complete the following business details regulatory template before entering data or values in any other regulatory template. This regulatory template is linked to other cells within the spreadsheet and automatically generates column headings and conditional formatting to distinguish business specific input and non-input cells.
B10: SUBMISSION PARTICULARS INPUT SHEETS
B12: ENTITY DETAILS
B14: Short name | C14: Ergon Energy | F14: Select business name from drop down list first
B15: ACN / ABN | C15: =INDEX(dms_ABN_List,MATCH(dms_TradingName,dms_TradingName_List)) -> 50087646062
B18: Business address | C18: Address 1 | E18: 420 Flinders Street
D19: Address 2 | E19: =IF(ISBLANK(INDEX(dms_Addr2_List,MATCH(dms_TradingName,dms_TradingName_List))),"",(INDEX(dms_Addr2_List,MATCH(dms_TradingName,dms_TradingName_List)))) -> 
C20: Suburb | E20: =INDEX(dms_Suburb_List,MATCH(dms_TradingName,dms_TradingName_List)) -> TOWNSVILLE
D21: State | E21: =INDEX(dms_State_List,MATCH(dms_TradingName,dms_TradingName_List)) -> Qld | F21: p/code | G21: =INDEX(dms_PostCode_List,MATCH(dms_TradingName,dms_TradingName_List)) -> 4810
B23: Postal address | C23: Address 1 | E23: GPO Box 1461
D24: Address 2 | E24: =IF(ISBLANK(INDEX(dms_PAddr2_List,MATCH(dms_TradingName,dms_TradingName_List))),"",(INDEX(dms_PAddr2_List,MATCH(dms_TradingName,dms_TradingName_List)))) -> 
C25: Suburb | E25: BRISBANE
D26: State | E26: =INDEX(dms_PState_List,MATCH(dms_TradingName,dms_TradingName_List)) -> QLD | F26: p/code | G26: 4001
B29: Contact name/s | C29: Jenny Doyle | F29: General Manager, Regulation and Pricing
B30: Contact phone/s | C30: (07) 3851 6416
B31: Contact email address/s | C31: jenny.doyle@energyq.com.au
B33: REGULATORY CONTROL PERIODS
B35: Forthcoming regulatory control period | C35: 2020-21 | D35: =dms_FRCP_y2 -> 2021-22 | E35: =dms_FRCP_y3 -> 2022-23 | F35: =dms_FRCP_y4 -> 2023-24 | G35: =dms_FRCP_y5 -> 2024-25
C36: =dms_FRCP_y6 -> 2025-26 | D36: =dms_FRCP_y7 -> 2026-27 | E36: =dms_FRCP_y8 -> 2027-28 | F36: =dms_FRCP_y9 -> 2028-29 | G36: =dms_FRCP_y10 -> 2029-30
B39: Current regulatory control period | C39: =dms_CRCP_FirstYear_Result -> 2015-16 | D39: =IF(dms_RPT="financial",VALUE(LEFT(CRCP_y1,4)+1)&"-"&TEXT(MID(CRCP_y1,3,2)+2,"00"),VALUE(LEFT(CRCP_y1,4)+1)) -> 2016-17 | E39: =IF(dms_RPT="financial",VALUE(LEFT(CRCP_y1,4)+2)&"-"&TEXT(VALUE(MID(CRCP_y1,3,2)+3),"00"),VALUE(LEFT(CRCP_y1,4)+2)) -> 2017-18 | F39: =IF(dms_RPT="financial",VALUE(LEFT(CRCP_y1,4)+3)&"-"&TEXT(MID(CRCP_y1,3,2)+4,"00"),VALUE(LEFT(CRCP_y1,4)+3)) -> 2018-19 | G39: =IF(dms_RPT="financial",VALUE(LEFT(CRCP_y1,4)+4)&"-"&TEXT(MID(CRCP_y1,3,2)+5,"00"),VALUE(LEFT(CRCP_y1,4)+4)) -> 2019-20
C40: =IF(dms_RPT="financial",VALUE(LEFT(CRCP_y1,4)+5)&"-"&TEXT(MID(CRCP_y1,3,2)+6,"00"),VALUE(LEFT(CRCP_y1,4)+5)) -> 2020-21 | D40: =IF(dms_RPT="financial",VALUE(LEFT(CRCP_y1,4)+6)&"-"&TEXT(MID(CRCP_y1,3,2)+7,"00"),VALUE(LEFT(CRCP_y1,4)+6)) -> 2021-22 | E40: =IF(dms_RPT="financial",VALUE(LEFT(CRCP_y1,4)+7)&"-"&TEXT(MID(CRCP_y1,3,2)+8,"00"),VALUE(LEFT(CRCP_y1,4)+7)) -> 2022-23 | F40: =IF(dms_RPT="financial",VALUE(LEFT(CRCP_y1,4)+8)&"-"&TEXT(MID(CRCP_y1,3,2)+9,"00"),VALUE(LEFT(CRCP_y1,4)+8)) -> 2023-24 | G40: =IF(dms_RPT="financial",VALUE(LEFT(CRCP_y1,4)+9)&"-"&TEXT(MID(CRCP_y1,3,2)+10,"00"),VALUE(LEFT(CRCP_y1,4)+9)) -> 2024-25
C41: =IF(dms_RPT="financial",VALUE(LEFT(CRCP_y1,4)+10)&"-"&TEXT(MID(CRCP_y1,3,2)+11,"00"),VALUE(LEFT(CRCP_y1,4)+10)) -> 2025-26 | D41: =IF(dms_RPT="financial",VALUE(LEFT(CRCP_y1,4)+11)&"-"&TEXT(MID(CRCP_y1,3,2)+12,"00"),VALUE(LEFT(CRCP_y1,4)+11)) -> 2026-27 | E41: =IF(dms_RPT="financial",VALUE(LEFT(CRCP_y1,4)+12)&"-"&TEXT(MID(CRCP_y1,3,2)+13,"00"),VALUE(LEFT(CRCP_y1,4)+12)) -> 2027-28 | F41: =IF(dms_RPT="financial",VALUE(LEFT(CRCP_y1,4)+13)&"-"&TEXT(MID(CRCP_y1,3,2)+14,"00"),VALUE(LEFT(CRCP_y1,4)+13)) -> 2028-29 | G41: =IF(dms_RPT="financial",VALUE(LEFT(CRCP_y1,4)+14)&"-"&TEXT(MID(CRCP_y1,3,2)+15,"00"),VALUE(LEFT(CRCP_y1,4)+14)) -> 2029-30
B44: Previous regulatory control period | C44: =IF(dms_RPT="financial",VALUE(LEFT(PRCP_y2,4)-1)&"-"&TEXT(VALUE(MID(PRCP_y2,3,2)),"00"),VALUE(LEFT(PRCP_y2,4)-1)) -> 2010-11 | D44: =IF(dms_RPT="financial",VALUE(LEFT(PRCP_y3,4)-1)&"-"&TEXT(VALUE(MID(PRCP_y3,3,2)),"00"),VALUE(LEFT(PRCP_y3,4)-1)) -> 2011-12 | E44: =IF(dms_RPT="financial",VALUE(LEFT(PRCP_y4,4)-1)&"-"&TEXT(VALUE(MID(PRCP_y4,3,2)),"00"),VALUE(LEFT(PRCP_y4,4)-1)) -> 2012-13 | F44: =IF(dms_RPT="financial",VALUE(LEFT(PRCP_y5,4)-1)&"-"&TEXT(VALUE(RIGHT(PRCP_y5,2)-1),"00"),VALUE(LEFT(PRCP_y5,4)-1)) -> 2013-14 | G44: =IF(dms_RPT="financial",VALUE(LEFT(CRCP_y1,4)-1)&"-"&TEXT(VALUE(RIGHT(CRCP_y1,2)-1),"00"),VALUE(LEFT(CRCP_y1,4)-1)) -> 2014-15
B48: Commencing regulatory year | C48: 2017-18 | D48: CRY
B50: Last completed regulatory year | C50: 2017-18 | D50: dms_FinalYear
C54: IF THIS IS AN ABC RIN - make sure the the named range CRY is applied and the named range dms_dollar_nom_UOM is applied
C55: IF THIS IS A RESET RIN - make sure the named ranges CRY and dms_dollar_nom_UOM are NOT present in the workbook
C56: FOR ABC RINS THAT SPAN MULTIPLE YEARS - make sure MultiYear Flag is set and final year entered as required
B58: Source | C58: Reporting | E58: Please select the correct submission type from the dropdown list.
B59: Data quality (actual, estimate, public, consolidated) | C59: Public | E59: Use Consolidated for Consolidated Confidential version Use Public for Consolidated Public version
B60: Amended RIN submission - amendment reason | C60: .
B61: Submission Date | C61: 2018-10-31 | D61: dms_SubmissionDate | E61: Please enter date this file submitted to AER (dd/mm/yyyy)
B62: EBSS - First application of scheme in forthcoming period? | C62: No
B63: Sector | C63: =INDEX(dms_Sector_List,MATCH(dms_TradingName,dms_TradingName_List)) -> Electricity | D63: dms_Sector | E63: =INDEX(dms_Sector_List,MATCH(dms_TradingName,dms_TradingName_List))
B64: Segment | C64: =INDEX(dms_Segment_List,MATCH(dms_TradingName,dms_TradingName_List)) -> Distribution | D64: dms_Segment | E64: =INDEX(dms_Segment_List,MATCH(dms_TradingName,dms_TradingName_List))
B65: Regulatory Year Ending | C65: =IF(dms_MultiYear_Flag=1,LEFT(dms_Specified_FinalYear,2)&RIGHT(dms_Specified_FinalYear,2),INDEX(dms_RYE_Formula_Result,MATCH(dms_Model,dms_Model_List))) -> 2018 | D65: dms_RYE | E65: =IF(dms_MultiYear_Flag=1,LEFT(dms_Specified_FinalYear,2)&RIGHT(dms_Specified_FinalYear,2),INDEX(dms_RYE_Formula_Result,MATCH(dms_Model,dms_Model_List)))
B66: Reporting Period Type | C66: =INDEX(dms_RPT_List,MATCH(dms_TradingName,dms_TradingName_List)) -> Financial | D66: dms_RPT | E66: =INDEX(dms_RPT_List,MATCH(dms_TradingName,dms_TradingName_List))
B67: Model or RIN Type | C67: ARR | D67: dms_Model | E67: Drop down selection
B68: EB/CA Unit of Measure for Monetary Values | C68: $0s | D68: dms_dollar_nom_UOM | E68: If the cover sheet is attached to an ABC RIN apply the NAMED RANGE to the cell
B69: Security Classification | C69: Public | D69: dms_Classification | E69: Always Public
B70: Jurisdiction | C70: =INDEX(dms_JurisdictionList,MATCH(dms_TradingName,dms_TradingName_List)) -> Qld | D70: dms_Jurisdiction | E70: =INDEX(dms_JurisdictionList,MATCH(dms_TradingName,dms_TradingName_List))
B71: FORECAST and MultiYear RINS
B72: CRY-1 (last full calendar year before CRY) | C72: =IF(dms_RPT="financial",VALUE(LEFT(dms_SingleYear_FinalYear_Result,4)),VALUE(LEFT(dms_SingleYear_FinalYear_Result,4)-1)) -> 2017 | D72: dms_Cal_Year_B4_CRY | E72: '=IF(dms_RPT="financial",VALUE(LEFT(dms_SingleYear_FinalYear_Result,4)),VALUE(LEFT(dms_SingleYear_FinalYear_Result,4)-1))
B73: Dollar $ real month | C73: =INDEX(dms_RPTMonth_List,MATCH(dms_TradingName,dms_TradingName_List)) -> June | D73: dms_RPTMonth | E73: =INDEX(dms_RPTMonth_List,MATCH(dms_TradingName,dms_TradingName_List))
B74: Dollar $ real (the last month before the FRCP_y1) | C74: =IF(SUM(dms_SingleYear_Model)>0,CONCATENATE(dms_RPTMonth)&" "&VALUE((LEFT(CRY,2))&RIGHT(CRY,2)),CONCATENATE(dms_RPTMonth)&" "&VALUE((LEFT(dms_CRCP_FinalYear_Result,2)&RIGHT(dms_CRCP_FinalYear_Result,2)))) -> June 2018 | D74: dms_DollarReal | E74: =IF(SUM(dms_SingleYear_Model)>0,CONCATENATE(dms_RPTMonth)&" "&VALUE((LEFT(CRY,2))&RIGHT(CRY,2)),CONCATENATE(dms_RPTMonth)&" "&VALUE((LEFT(dms_CRCP_FinalYear_Result,2)&RIGHT(dms_CRCP_FinalYear_Result,2))))
B75: Dollar $ real previous year (PRCP_y5) | C75: =IF(SUM(dms_SingleYear_Model)>0,CONCATENATE(dms_RPTMonth)&" "&VALUE(((LEFT(CRY,2))&RIGHT(CRY,2))-1),CONCATENATE(dms_RPTMonth)&" "&VALUE(((LEFT(dms_CRCP_FirstYear_Result,2)&RIGHT(dms_CRCP_FirstYear_Result,2))))-1) -> June 2017 | D75: dms_DollarReal_Prev | E75: =IF(SUM(dms_SingleYear_Model)>0,CONCATENATE(dms_RPTMonth)&" "&VALUE(((LEFT(CRY,2))&RIGHT(CRY,2))-1),CONCATENATE(dms_RPTMonth)&" "&VALUE(((LEFT(dms_CRCP_FirstYear_Result,2)&RIGHT(dms_CRCP_FirstYear_Result,2))))-1)
B76: This block works out the various RYE's for ALL RIN types and MODELS
B77: Single Year Model T/F | C77: =IF(dms_Model="EB",1,0) -> 0 | D77: dms_EB
C78: =IF(dms_Model="CA",1,0) -> 0 | D78: dms_CA | E78: =dms_SingleYear_Model
C79: =IF(dms_Model="ARR",1,0) -> 1 | D79: dms_ARR
B80: Is this a single Year RIN? | C80: =IF(SUM(dms_SingleYear_Model)=1,"yes","no") -> yes | D80: dms_SingleYearModel | E80: =IF(SUM(dms_SingleYear_Model)=1,"yes","no")
B81: Single Year Final Year Reference | C81: CRY | D81: dms_SingleYear_FinalYear_Ref | E81: This is the reference for EB, CA & ARR RINs
B82: Single Year Final Year Result | C82: =IFERROR(IF(SUM(dms_SingleYear_Model)<>0,(INDIRECT(dms_SingleYear_FinalYear_Ref)),"not a single year RIN"),"CRY not present") -> 2017-18 | D82: dms_SingleYear_FinalYear_Result | E82: =IFERROR(IF(SUM(dms_SingleYear_Model)<>0,(INDIRECT(dms_SingleYear_FinalYear_Ref)),"not a single year RIN"),"CRY not present")
B83: FRCP length in years | C83: =INDEX(dms_FRCPlength_List,MATCH(dms_TradingName,dms_TradingName_List)) -> 5 | D83: dms_FRCPlength_Num | E83: =INDEX(dms_FRCPlength_List,MATCH(dms_TradingName,dms_TradingName_List))
B84: Multi Year Final Year Reference | C84: =INDEX(dms_FinalYear_List,MATCH(dms_FRCPlength_Num,dms_FRCPlength_Num_List)) -> dms_FRCP_y5 | D84: dms_MultiYear_FinalYear_Ref | E84: =INDEX(dms_FinalYear_List,MATCH(dms_FRCPlength_Num,dms_FRCPlength_Num_List))
B85: Multi Year Final Year Result | C85: =IF(dms_MultiYear_Flag=0,INDIRECT(dms_MultiYear_FinalYear_Ref),dms_Specified_FinalYear) -> 2024-25 | D85: dms_MultiYear_FinalYear_Result | E85: =IF(dms_MultiYear_Flag=0,INDIRECT(dms_MultiYear_FinalYear_Ref),dms_Specified_FinalYear) | I85: Formula errors OK
B86: CRCP length in years | C86: =INDEX(dms_CRCPlength_List,MATCH(dms_TradingName,dms_TradingName_List)) -> 5 | D86: dms_CRCPlength_Num | E86: =INDEX(dms_CRCPlength_List,MATCH(dms_TradingName,dms_TradingName_List))
B87: CRCP Final Year Reference | C87: =INDEX(dms_CFinalYear_List,MATCH(dms_CRCPlength_Num,dms_CRCPlength_Num_List)) -> CRCP_y5 | D87: dms_CRCP_FinalYear_Ref | E87: =INDEX(dms_CFinalYear_List,MATCH(dms_CRCPlength_Num,dms_CRCPlength_Num_List))
B88: CRCP First Year Result | C88: =INDEX(dms_CRCP_years,MATCH(dms_CRCPlength_Num,dms_CRCP_index)) -> 2015-16 | D88: dms_CRCP_FirstYear_Result | E88: =INDEX(dms_CRCP_years,MATCH(dms_CRCPlength_Num,dms_CRCP_index))
B89: CRCP Final Year Result | C89: =IF(dms_MultiYear_Flag=0,(IF(SUM(dms_SingleYear_Model)>0,CRY,dms_CRCP_yZ)),dms_Specified_FinalYear) -> 2017-18 | D89: dms_CRCP_FinalYear_Result | E89: =IF(dms_MultiYear_Flag=0,(IF(SUM(dms_SingleYear_Model)>0,CRY,dms_CRCP_yZ)),dms_Specified_FinalYear)
B90: PTRM/ RFMs
B91: Form of control | C91: =INDEX(dms_FormControl_List,MATCH(dms_TradingName,dms_TradingName_List)) -> Revenue cap | D91: dms_FormControl | E91: =INDEX(dms_FormControl_List,MATCH(dms_TradingName,dms_TradingName_List))
B92: ABC RINS THAT SPAN MULTIPLE YEARS
B93: Is this a multi year ABC RIN? | C93: No
B94: Multiyear EB, CA or ARR? | C94: =IF(dms_MultiYear_ResponseFlag="No",0,1) -> 0 | D94: dms_MultiYear_Flag | E94: This is set from the answer provided above
C95: =IF(dms_MultiYear_Flag=1,FRY,"not a Multiple year submission") -> not a Multiple year submission | D95: dms_Specified_FinalYear | E95: The result here is returned to dms_CRCP_FinalYear_Result if response to Q in C73 is "yes" and dms_MultiYear_Flag is set to 1
B96: Start year for 5.2 in Multi year ABC RINS | C96: =IFERROR(IF(dms_MultiYear_Flag=1,FRY,CRY),"not an ABC") -> 2017-18 | D96: dms_0502_Inst_Year | E96: =IF(dms_MultiYear_Flag=1,FRY,CRY) | G96: For single year RINS this is CRY - multi year RINS need to start a the end of the span of years (ie. FRY)
B97: EB RINS
B98: Calendar Year for table 3.6 data | C98: =IF(dms_RPT="financial",VALUE(LEFT(dms_SingleYear_FinalYear_Result,4)),VALUE(LEFT(dms_SingleYear_FinalYear_Result,4)-1)) -> 2017 | D98: dms_0306_Year | E98: =IF(dms_RPT="financial",VALUE(LEFT(dms_SingleYear_FinalYear_Result,4)),VALUE(LEFT(dms_SingleYear_FinalYear_Result,4)-1))
B99: CA RINS
B100: Find how many rows in tables 6.3 sustained interruptions? | E100: dms_060301_MaxRows only returns a valid value when cover sheet is attached to a CA file
C101: =IF(dms_Model<>"CA","not a CA","Is a CA") -> not a CA | E101: =IF(dms_Model<>"CA","not a CA","Is a CA")
B102: dms_060301_Avg_Duration_Sustained_Int_Values present? | C102: =IFERROR(IF(INDEX(dms_060301_Avg_Duration_Sustained_Int_Values,1,1)<>"","yes","no"),"no") -> no | D102: dms_060301_checkvalue | E102: =IFERROR(IF(INDEX(dms_060301_Avg_Duration_Sustained_Int_Values,1,1)<>"","yes","no"),"no")
C103: =IF(AND(dms_Model="CA",(dms_060301_checkvalue="no")),"error - NR not present","no errors") -> no errors | E103: =IF(AND(dms_Model="CA",(dms_060301_checkvalue="no")),"error - NR not present","no errors")
B104: Table 6.3.1 - last row reference | C104: =IFERROR(IF(dms_Model="CA",LOOKUP(2,1/(dms_060301_Avg_Duration_Sustained_Int_Values<>""),(ROW(dms_060301_Avg_Duration_Sustained_Int_Values))),"not a CA"),"6.3 not present") -> not a CA | D104: dms_060301_LastRow | E104: =IFERROR(IF(dms_Model="CA",LOOKUP(2,1/(dms_060301_Avg_Duration_Sustained_Int_Values<>""),(ROW(dms_060301_Avg_Duration_Sustained_Int_Values))),"not a CA"),"6.3 not present")
B105: Table 6.3.1 - max number rows | C105: =IFERROR(IF(dms_Model="CA",(dms_060301_LastRow-15),"not a CA"),"error") -> not a CA | D105: dms_060301_MaxRows | E105: =IFERROR(IF(dms_Model="CA",(dms_060301_LastRow-15),"not a CA"),"error")
B106: Table 6.6.3 - Public lighting repair - no. business days | C106: =INDEX(dms_663_List,MATCH(dms_TradingName,dms_TradingName_List)) -> 5 | D106: dms_663 | E106: =INDEX(dms_663_List,MATCH(dms_TradingName,dms_TradingName_List))
B107: ARR or RESET RINS
B108: How many rows in tables 6.1 or 6.7? (leap year?) | C108: insert dms_LeapYear NR if required | E108: 'dms_LeapYear is used to determine dms_060701_Max_Rows BUT it is only found on worksheet 6.1 or 6.7 and the date value in the cell is used to determine whether it is a leap year
B109: Is dms_LeapYear named range present? | C109: =IFERROR(IF(dms_LeapYear,"yes"),"no") -> yes
B110: Table 6.7.1 - includes a leap year? | C110: =IFERROR(IF(MONTH(DATE(YEAR(dms_LeapYear),2,29))=2,"is a leap year","not a leap year"), "dms_LeapYear not present") -> not a leap year | D110: dms_LeapYear_Result | E110: =IFERROR(IF(MONTH(DATE(YEAR(dms_LeapYear),2,29))=2,"is a leap year","not a leap year"),"dms_LeapYear not present")
B111: MaxRows if Reset and leap year | C111: =IF(dms_LeapYear_Result="is a leap year",1827,1826) -> 1826 | D111: dms_060701_Reset_MaxRows | E111: =IF(dms_LeapYear_Result="is a leap year",1827,1826) | H111: number of days present in Reset RIN table
B112: MaxRows if ARR and leap year | C112: =IF(dms_LeapYear_Result="is a leap year",366,365) -> 365 | D112: dms_060701_ARR_MaxRows | E112: =IF(dms_LeapYear_Result="is a leap year",366,365) | H112: number of days present in ARR RIN table
B113: Table 6.7.1 - Max Rows (leap year/ non leap year) | C113: =IF(dms_Model="ARR",dms_060701_ARR_MaxRows,IF(dms_Model="Reset",dms_060701_Reset_MaxRows,"not a relevant RIN type")) -> 365 | D113: dms_060701_MaxRows | E113: =IF(dms_Model="ARR",dms_060701_ARR_MaxRows,IF(dms_Model="Reset",dms_060701_Reset_MaxRows,"not a relevant RIN type"))
B114: How many columns in 6.7? (4 or 5 feeder categories) | C114: =IF(dms_FifthFeeder_flag_NSP="NO","This NSP has only 4 feeder categories","This NSP has 5 feeder categories") -> This NSP has only 4 feeder categories
B115: Table 6.7.1 - Last column (# of feeder categories > 4) | C115: =IF(dms_FifthFeeder_flag_NSP="NO",10,12) -> 10 | D115: dms_060701_MaxCols | E115: =IF(dms_FifthFeeder_flag_NSP="NO",8,10)
B116: Table 6.7.1 - Number of offset rows | C116: =IF(dms_Model="ARR",15,9) -> 15 | D116: dms_060701_OffsetRows | E116: =IF(dms_Model="ARR",15,9)
B117: Start date for telephone answering in 6.1 or 6.7? | E117: Using 060101 as naming standard not 060701 for start dates
B118: Table 6.1.1 and 6.7.1 - Start Date as Text | C118: =IF(dms_SingleYearModel="yes",(CONCATENATE(IF(LEN(CRY)=4,"1-Jan-","1-Jul-"),LEFT(CRY,4))),(CONCATENATE(IF(LEN(PRCP_y4)=4,"1-Jan-","1-Jul-"),LEFT(PRCP_y4,4)))) -> 1-Jul-2017 | D118: dms_060101_StartDateTxt | E118: =IF(SUM(dms_SingleYear_Model)>1,(CONCATENATE(IF(LEN(CRY)=4,"1-Jan-","1-Jul-"),LEFT(CRY,4))),(CONCATENATE(IF(LEN(CRCP_y4)=4,"1-Jan-","1-Jul-"),LEFT(CRCP_y4,4))))
B119: Table 6.1.1 and 6.7.1 - Start Date as Date Value | C119: =DATEVALUE(dms_060701_StartDateTxt) -> 42917 | D119: dms_060101_StartDateVal | E119: =DATEVALUE(dms_060701_StartDateTxt)
B120: ARRs
B121: How many rows in table 6.8? | C121: insert dms_060801_StartCell NR if required | E121: dms_060801_StartCell is only found on worksheet 6.8 and is used to determine the starting date for the date range
B122: Is dms_060801_StartCell named range present? | C122: yes | E122: =IFERROR(IF((ROW(dms_060801_StartCell)-1)=1,"yes","yes"),"no")
B123: Table 6.8 - Number of offset rows | C123: =IFERROR(IF(dms_Model="ARR",(ROW(dms_060801_StartCell)-1),"not an ARR"),"6.8 error") -> 11 | D123: dms_0608_OffsetRows | E123: =IFERROR(IF(dms_Model="ARR",(ROW(dms_060801_StartCell)-1),"not an ARR"),"6.8 error")
B124: Table 6.8 - Last row | C124: =IFERROR(IF(dms_060801_StartCell<>"",IF(dms_Model="ARR",(LOOKUP(2,1/(dms_060801_01_Values<>""),(ROW(dms_060801_01_Values)))),"not an ARR"),0),"6.8 not present") -> 0 | D124: dms_0608_LastRow | E124: =IFERROR(IF(dms_060801_StartCell<>"",IF(dms_Model="ARR",(LOOKUP(2,1/(dms_060801_01_Values<>""),(ROW(dms_060801_01_Values)))),"not an ARR"),0),"6.8 not present")
B125: Table 6.8 - MaxRows | C125: =IFERROR(IF(dms_Model="ARR",(MAX(0,dms_0608_LastRow-dms_0608_OffsetRows)),"not an ARR"),"6.8 not present") -> 0 | D125: dms_060801_MaxRows | E125: =IFERROR(IF(dms_Model="ARR",(MAX(0,dms_0608_LastRow-dms_0608_OffsetRows)),"not an ARR"),"6.8 not present")
B126: TNSP RESET RINS
B127: Table 7.9.4 only appears in TNSPs Reset RIN
B128: Table 7.9.4 - first year | C128: =LEFT(PRCP_y3,4) -> 2012 | D128: dms_070904_Start_Year | E128: =LEFT(PRCP_y3,4)
B129: SUBSET FILES
B130: Is this Submission File a Subset File | C130: NO | D130: dms_Partial
B131: MISC
B132: Distribution Determination Reference | C132: =INDEX(dms_DeterminationRef_List,MATCH(dms_TradingName,dms_TradingName_List)) -> 2015-20 Distribution Determination | D132: dms_DeterminationRef
B133: Public lighting NSP? | C133: =INDEX(dms_Public_Lighting_List,MATCH(dms_TradingName,dms_TradingName_List)) -> YES | D133: dms_Public_Lighting | E133: =INDEX(dms_Public_Lighting_List,MATCH(dms_TradingName,dms_TradingName_List))
B134: CBD Feeder for this business | C134: =INDEX(dms_CBD_flag,MATCH(dms_TradingName,dms_TradingName_List)) -> NO | D134: dms_CBD_flag_NSP
B135: Urban Feeder for this business | C135: =INDEX(dms_Urban_flag,MATCH(dms_TradingName,dms_TradingName_List)) -> YES | D135: dms_Urban_flag_NSP
B136: Short rural Feeder for this business | C136: =INDEX(dms_ShortRural_flag,MATCH(dms_TradingName,dms_TradingName_List)) -> YES | D136: dms_ShortRural_flag_NSP
B137: Long rural Feeder for this business | C137: =INDEX(dms_LongRural_flag,MATCH(dms_TradingName,dms_TradingName_List)) -> YES | D137: dms_LongRural_flag_NSP
B138: Fifth Feeder Category (eg. TasNetworks (D)) | C138: =INDEX(dms_FeederType_5_flag,MATCH(dms_TradingName,dms_TradingName_List)) -> NO | D138: dms_FifthFeeder_flag_NSP | E138: =INDEX(dms_FeederType_5_flag,MATCH(dms_TradingName,dms_TradingName_List))
B140: DISCARD FILES
B141: discard this record? | C141: NO | D141: dms_DISCARD | E141: If record is to be discarded from DB set this flag to YES
B143: USES NAMED RANGES FLAG | C143: yes | D143: dms_Defined_Names_Used
B145: REGULATORY YEARS FOR MULTI RYE SUBMISSIONS
B146: Multiple RYE flag | C146: NO | D146: dms_Multi_RYE_flag
C147: Manually specify RYE | D147: Named ranges to apply
C148: 2013 | D148: dms_RYE_01
C149: 2014 | D149: dms_RYE_02
C150: 2015 | D150: dms_RYE_03
C151: 2016 | D151: dms_RYE_04
C152: 2017 | D152: dms_RYE_05
C153: 2018 | D153: dms_RYE_06
C154: 2019 | D154: dms_RYE_07
C155: 2020 | D155: dms_RYE_08
C156: 2021 | D156: dms_RYE_09

Sheet 2.11 Labour
B1: =IF(dms_DataQuality="backcast",INDEX(dms_Worksheet_List,MATCH(dms_Model,dms_Model_List))&" BACKCAST",INDEX(dms_Worksheet_List,MATCH(dms_Model,dms_Model_List))) -> ANNUAL REPORTING STATEMENT
B2: =INDEX(dms_TradingNameFull_List,MATCH(dms_TradingName,dms_TradingName_List)) -> Ergon Energy
B3: =CONCATENATE("Annual Reporting RIN Response ",IF(SUM(dms_SingleYear_Model)>0,CONCATENATE(CRY),CONCATENATE(FRCP_y1," to ",dms_MultiYear_FinalYear_Result))) -> Annual Reporting RIN Response 2017-18
B4: 2.11 LABOUR
B6: Tables 2.11.1 and 2.11.2 deliberately omitted.
B8: 2.11.3 - LABOUR / NON-LABOUR EXPENDITURE SPLIT
B9: 2.11.3.1 - Opex
C10: =CRY -> 2017-18
C11: $0's, nominal
C12: Opex
B13: In-house labour expenditure | C13: 130564967
B14: Labour expenditure outsourced to related parties | C14: 10859149
B15: Labour expenditure outsourced to unrelated parties | C15: 87619404
B16: Controllable non-labour expenditure | C16: 155898015
B17: Uncontrollable non-labour expenditure | C17: 0
B18: Total | C18: =SUM(C13:C17) -> 384941535
B20: Reconciliation with Opex worksheets - SCS | C20: Opex
B21: Total including margins | C21: =dms_Total_Actual_Opex -> 384941535 | D21: =IF(ROUND(C18,0)=ROUND(dms_Total_Actual_Opex,0),"OK","Error") -> OK
B24: 2.11.3.2 - Capex
C25: =CRY -> 2017-18
C26: $0's, nominal
C27: Capex
B28: In-house labour expenditure | C28: 243681786.5
B29: Labour expenditure outsourced to related parties | C29: 11753967.1
B30: Labour expenditure outsourced to unrelated parties | C30: 85663929.17
B31: Controllable non-labour expenditure | C31: 202868415.7
B32: Uncontrollable non-labour expenditure | C32: 0
B33: Total | C33: =SUM(C28:C32) -> 543968098.4
B35: Reconciliation with Capex & Opex worksheets - SCS | C35: Capex
B36: Total including margins | C36: =dms_Total_Actual_Capex -> 543968098.4 | D36: =IF(ROUND(C33,0)=ROUND(dms_Total_Actual_Capex,0),"OK","Error") -> OK

Sheet 3.6 Quality of services
B1: =IF(dms_DataQuality="backcast",INDEX(dms_Worksheet_List,MATCH(dms_Model,dms_Model_List))&" BACKCAST",INDEX(dms_Worksheet_List,MATCH(dms_Model,dms_Model_List))) -> ANNUAL REPORTING STATEMENT
B2: =INDEX(dms_TradingNameFull_List,MATCH(dms_TradingName,dms_TradingName_List)) -> Ergon Energy
B3: =CONCATENATE("Annual Reporting RIN Response ",IF(SUM(dms_SingleYear_Model)>0,CONCATENATE(CRY),CONCATENATE(FRCP_y1," to ",dms_MultiYear_FinalYear_Result))) -> Annual Reporting RIN Response 2017-18
B4: 3.6 QUALITY OF SERVICES
B6: 3.6.5 - QUALITY OF SUPPLY METRICS
D7: Volume
C8: Units | D8: =CRY -> 2017-18
B9: Over voltage events - due to high voltage injection | C9: number
B10: Customers receiving over-voltage - due to high voltage injection | C10: number
B11: Over voltage events - due to lightning | C11: number
B12: Customers receiving over-voltage - due to lightning | C12: number
B13: Over voltage events - due to voltage regulation or other cause | C13: number
B14: Customers receiving over-voltage - due to voltage regulation or other cause | C14: number
B15: Voltage variations - steady state (zone sub) | C15: number
B16: Voltage variations - one minute (zone sub) | C16: number
B17: Voltage variations - 10 seconds (zone sub) Min<0.7 | C17: number
B18: Voltage variations - 10 seconds (zone sub) Min<0.8 | C18: number
B19: Voltage variations - 10 seconds (zone sub) Min<0.9 | C19: number
B20: Voltage variations - steady state (feeder) | C20: number
B21: Voltage variations - % zone subs monitored | C21: (per cent)
B22: Voltage variations - % feeders monitored | C22: (per cent)
B24: 3.6.6 - COMPLAINTS - TECHNICAL QUALITY OF SUPPLY
D25: Volume
C26: Units | D26: =CRY -> 2017-18
B27: 3.6.6.1 - TECHNICAL QUALITY OF SUPPLY
B28: Number of complaints - technical quality of supply | C28: number | D28: 1888
B29: 3.6.6.2 - PERCENTAGE OF COMPLAINTS BY CATEGORY
B30: Low voltage supply | C30: (per cent)
B31: Voltage dips | C31: (per cent)
B32: Voltage swell | C32: (per cent)
B33: Voltage spike (impulsive transient) | C33: (per cent)
B34: Waveform distortion | C34: (per cent)
B35: TV or radio interference | C35: (per cent)
B36: Solar related | C36: (per cent)
B37: Noise from appliances | C37: (per cent)
B38: Other | C38: (per cent)
B39: 3.6.6.3 - PERCENTAGE OF COMPLAINTS BY LIKELY CAUSE
B40: Network equipment faulty | C40: (per cent)
B41: Network interference by NSP equipment | C41: (per cent)
B42: Network interference by another customer | C42: (per cent)
B43: Network limitation | C43: (per cent)
B44: Customer internal problem | C44: (per cent)
B45: No problem identified | C45: (per cent)
B46: Environmental | C46: (per cent)
B47: Other | C47: (per cent)
B51: 3.6.7 - CUSTOMER SERVICE METRICS
D52: Volume
C53: Unit | D53: =CRY -> 2017-18
B54: 3.6.7.1 - TIMELY PROVISIONS OF SERVICES
B55: Number of connections made | C55: number | D55: 7691
B56: Number of connections not made on or before agreed date | C56: number | D56: 52
B57: 3.6.7.2 - TIMELY REPAIR OF FAULTY STREET LIGHTS
B58: Street lights - average monthly number "out" | C58: number | D58: 629
B59: Street lights - not repaired by "fix by" date | C59: number | D59: 4172
B60: Street lights - average number of days to repair | C60: number | D60: 8.8
B61: Total number of street lights | C61: number | D61: 144717
B62: 3.6.7.3 - CALL CENTRE PERFORMANCE
B63: Calls to call centre fault line | C63: number | D63: =IF(SUM(dms_060101_Values)=0,"",SUM(dms_060101_Values)) -> 115068
B64: Calls to fault line answered within 30 seconds | C64: number | D64: =IF(SUM(dms_060102_Values)=0,"",SUM(dms_060102_Values)) -> 91645
B65: Calls to fault line - average waiting time before call answered | C65: number | D65: 30
B66: Call centre - number of overload events | C66: number | D66: 0
B67: Percentage of calls abandoned | C67: (per cent) | D67: 0.091
B68: 3.6.7.4 - NUMBER OF CUSTOMER COMPLAINTS
B69: Complaint - reliability of supply | C69: number | D69: 552
B70: Complaint - technical quality of supply | C70: number | D70: =IF(ISBLANK(dms_030606_01_Values),"",dms_030606_01_Values) -> 1888
B71: Complaint - administrative process or customer service | C71: number | D71: 954
B72: Complaint - connection or augmentation | C72: number | D72: 482
B73: Complaint - other | C73: number | D73: 2352
B74: Total number of complaints | C74: number | D74: =IF(SUM(D69:D73)=0,"",(SUM(D69:D73))) -> 6228

Sheet 3.6.8 Network-feeders
B1: =IF(dms_DataQuality="backcast",INDEX(dms_Worksheet_List,MATCH(dms_Model,dms_Model_List))&" BACKCAST",INDEX(dms_Worksheet_List,MATCH(dms_Model,dms_Model_List))) -> ANNUAL REPORTING STATEMENT
B2: =INDEX(dms_TradingNameFull_List,MATCH(dms_TradingName,dms_TradingName_List)) -> Ergon Energy
B3: =CONCATENATE("Annual Reporting RIN Response ",IF(SUM(dms_SingleYear_Model)>0,CONCATENATE(CRY),CONCATENATE(FRCP_y1," to ",dms_MultiYear_FinalYear_Result))) -> Annual Reporting RIN Response 2017-18
B4: 3.6 QUALITY OF SERVICES
B6: Did the MAIFI parameter of the STPIS apply during the period? | F6: No | G6: ** IMPORTANT Please ensure this question is answered correctly. Your response will affect other tables throughout this workbook and will determine which cells are grey and which are input cells.
B10: 3.6.8 - NETWORK FEEDER RELIABILITY
B11: Feeder ID / name | C11: Description of the service area for the feeder | D11: Feeder classification (drop down) | E11: Number of distribution customers | F11: Length of high voltage distribution lines | H11: Maximum demand (MVA) | I11: Energy not supplied (MWh) | K11: Unplanned Outages | P11: Planned Outages | U11: Momentary feeder outages
F12: Overhead | G12: Underground | I12: Unplanned | J12: Planned | K12: Total number of unplanned outages | L12: Unplanned customer minutes off-supply (SAIDI) | N12: Unplanned interruptions (SAIFI) | P12: Total number of planned outages | Q12: Planned customer minutes off-supply (SAIDI) | S12: Planned interruptions (SAIFI) | U12: Total number of momentary feeder outages | V12: Momentary interruptions due to feeder outages (MAIFI)
L13: Including excluded events and MEDs | M13: After removing excluded events and MED | N13: Including excluded events and MEDs | O13: After removing excluded events and MED | Q13: Including MEDs | R13: After removing MED | S13: Including MEDs | T13: After removing MED | V13: Including excluded events and MEDs | W13: After removing excluded events and MED
B14: 10020655 | C14: FN | D14: RURAL SHORT | E14: 728 | F14: 101.46151 | G14: 0.9734 | H14: 2.758 | I14: 0.2267 | J14: 5.7832 | K14: 31 | L14: 20.60929 | M14: 20.4022 | N14: 0.4478 | O14: 0.44643 | P14: 78 | Q14: 525.73913 | R14: 525.73913 | S14: 1.96291 | T14: 1.96291
B15: 10020657 | C15: FN | D15: RURAL SHORT | E15: 743 | F15: 8.81279 | G15: 1.26866 | H15: 2.499 | I15: 7.642 | J15: 0.055 | K15: 35 | L15: 522.31254 | M15: 522.31254 | N15: 5.06999 | O15: 5.06999 | P15: 9 | Q15: 3.76072 | R15: 3.76072 | S15: 0.03499 | T15: 0.03499
B16: 10020658 | C16: FN | D16: RURAL SHORT | E16: 0 | F16: 0 | G16: 0 | H16: 0.35 | I16: 0 | J16: 0 | K16: 0 | L16: 0 | M16: 0 | N16: 0 | O16: 0 | P16: 0 | Q16: 0 | R16: 0 | S16: 0 | T16: 0
B17: 10020659 | C17: FN | D17: RURAL LONG | E17: 964 | F17: 217.20684 | G17: 0.88016 | H17: 1.298 | I17: 10.5877 | J17: 0.1037 | K17: 72 | L17: 1161.64397 | M17: 1103.40923 | N17: 10.25726 | O17: 9.26037 | P17: 10 | Q17: 11.38067 | R17: 11.35996 | S17: 0.08091 | T17: 0.07884
B18: 10020660 | C18: FN | D18: RURAL SHORT | E18: 795 | F18: 13.34709 | G18: 11.12228 | H18: 2.366 | I18: 2.0775 | J18: 0.7739 | K18: 11 | L18: 101.10367 | M18: 100.82474 | N18: 0.93208 | O18: 0.93082 | P18: 7 | Q18: 37.66415 | R18: 37.66415 | S18: 0.21384 | T18: 0.21384
B19: 10020661 | C19: FN | D19: URBAN | E19: 1368 | F19: 4.49179 | G19: 9.36736 | H19: 5.36 | I19: 0.5597 | J19: 0.2162 | K19: 10 | L19: 29.91149 | M19: 29.91149 | N19: 0.19664 | O19: 0.19664 | P19: 14 | Q19: 11.55556 | R19: 11.55556 | S19: 0.14108 | T19: 0.14108
B20: 10020662 | C20: FN | D20: RURAL SHORT | E20: 501 | F20: 35.1712 | G20: 2.58147 | H20: 1.206 | I20: 0.1281 | J20: 0.1524 | K20: 19 | L20: 11.59248 | M20: 7.42701 | N20: 0.10778 | O20: 0.05988 | P20: 5 | Q20: 13.79042 | R20: 13.79042 | S20: 0.07984 | T20: 0.07984
B21: 10020663 | C21: FN | D21: URBAN | E21: 677 | F21: 0 | G21: 11.32787 | H21: 5.836 | I21: 9.7124 | J21: 0.9268 | K21: 13 | L21: 241.50359 | M21: 212.67826 | N21: 1.45347 | O21: 1.36928 | P21: 7 | Q21: 23.04579 | R21: 23.04579 | S21: 0.11078 | T21: 0.11078
B22: 10020669 | C22: FN | D22: RURAL LONG | E22: 353 | F22: 1130.49673 | G22: 0.16616 | H22: 0.962 | I22: 12.2085 | J22: 4.8599 | K22: 55 | L22: 1177.31572 | M22: 745.71015 | N22: 11.41076 | O22: 6.07932 | P22: 8 | Q22: 468.65722 | R22: 468.65722 | S22: 1.71388 | T22: 1.71388
B23: 10020670 | C23: FN | D23: RURAL LONG | E23: 167 | F23: 452.50882 | G23: 0 | H23: 0.554 | I23: 7.68 | J23: 7.7653 | K23: 41 | L23: 782.3502 | M23: 432.86796 | N23: 10.65269 | O23: 6.49701 | P23: 16 | Q23: 791.04192 | R23: 775.47305 | S23: 2.55689 | T23: 2.43713
B24: 10020671 | C24: FN | D24: RURAL LONG | E24: 149 | F24: 329.05497 | G24: 0 | H24: 0.525 | I24: 16.2861 | J24: 7.4854 | K24: 46 | L24: 1139.62438 | M24: 787.10548 | N24: 17.79866 | O24: 13.92617 | P24: 18 | Q24: 523.79351 | R24: 523.79351 | S24: 2.47651 | T24: 2.47651
B25: 10020673 | C25: FN | D25: RURAL LONG | E25: 580 | F25: 470.14006 | G25: 0 | H25: 2.866 | I25: 19.2265 | J25: 9.1027 | K25: 61 | L25: 1070.0477 | M25: 796.5402 | N25: 21.21379 | O25: 17.24138 | P25: 56 | Q25: 506.61167 | R25: 506.61167 | S25: 2.8 | T25: 2.8
B26: 10020674 | C26: FN | D26: RURAL LONG | E26: 70 | F26: 884.94838 | G26: 0 | H26: 0.704 | I26: 145.2733 | J26: 36.4329 | K26: 58 | L26: 5689.05833 | M26: 4698.21381 | N26: 26.34286 | O26: 21.17143 | P26: 35 | Q26: 1426.75048 | R26: 1424.40762 | S26: 5.74286 | T26: 5.71429
B27: 10020675 | C27: FN | D27: RURAL SHORT | E27: 386 | F27: 76.87341 | G27: 0.23818 | H27: 1.987 | I27: 13.6865 | J27: 8.1215 | K27: 36 | L27: 618.66382 | M27: 339.50635 | N27: 21.48705 | O27: 17.42487 | P27: 4 | Q27: 367.10881 | R27: 367.10881 | S27: 1.01554 | T27: 1.01554
B28: 10020677 | C28: FN | D28: URBAN | E28: 15 | F28: 9.07974 | G28: 0.19936 | H28: 3.259 | I28: 156.7163 | J28: 205.7418 | K28: 6 | L28: 205.05333 | M28: 205.05333 | N28: 2.73333 | O28: 2.73333 | P28: 3 | Q28: 269.2 | R28: 241.46667 | S28: 1.06667 | T28: 0.93333
B29: 10020679 | C29: FN | D29: RURAL SHORT | E29: 1252 | F29: 92.17379 | G29: 2.99597 | H29: 2.976 | I29: 0.3748 | J29: 1.6492 | K29: 32 | L29: 44.13009 | M29: 44.13009 | N29: 1.11502 | O29: 1.11502 | P29: 62 | Q29: 194.16406 | R29: 193.69121 | S29: 1.00479 | T29: 1.0008
B30: 10020689 | C30: FN | D30: RURAL SHORT | E30: 171 | F30: 76.76109 | G30: 0.0526 | H30: 0.98 | I30: 5.7927 | J30: 3.6317 | K30: 30 | L30: 769.35624 | M30: 566.54922 | N30: 6.19298 | O30: 5.19883 | P30: 17 | Q30: 482.34503 | R30: 482.34503 | S30: 1.8538 | T30: 1.8538
B31: 10020700 | C31: FN | D31: RURAL SHORT | E31: 12 | F31: 4.54702 | G31: 0.03744 | H31: 0.117 | I31: 4.4397 | J31: 0 | K31: 5 | L31: 526.67083 | M31: 339.67083 | N31: 4.58333 | O31: 3.66667 | P31: 0 | Q31: 0 | R31: 0 | S31: 0 | T31: 0
B32: 10020711 | C32: FN | D32: RURAL SHORT | E32: 7 | F32: 9.22529 | G32: 0.20542 | H32: 0.052 | I32: 2.8209 | J32: 0 | K32: 7 | L32: 700.39286 | M32: 496.39286 | N32: 5.85714 | O32: 4.85714 | P32: 0 | Q32: 0 | R32: 0 | S32: 0 | T32: 0
B33: 10020722 | C33: FN | D33: RURAL SHORT | E33: 507 | F33: 153.95271 | G33: 0.12215 | H33: 0.974 | I33: 9.8709 | J33: 2.5013 | K33: 64 | L33: 1402.70049 | M33: 1189.68928 | N33: 8.69231 | O33: 7.66469 | P33: 23 | Q33: 355.43984 | R33: 355.43984 | S33: 1.32939 | T33: 1.32939
B34: 10020744 | C34: FN | D34: RURAL LONG | E34: 67 | F34: 350.63237 | G34: 0.16099 | H34: 0.339 | I34: 19.132 | J34: 0.0751 | K34: 28 | L34: 1379.94403 | M34: 904.88831 | N34: 12.32836 | O34: 10.28358 | P34: 1 | Q34: 5.41791 | R34: 5.41791 | S34: 0.0597 | T34: 0.0597
B35: 10020755 | C35: FN | D35: RURAL LONG | E35: 414 | F35: 290.97425 | G35: 0.0447 | H35: 1.621 | I35: 50.8939 | J35: 25.675 | K35: 50 | L35: 1522.87279 | M35: 1017.40543 | N35: 12.00725 | O35: 9.82367 | P35: 33 | Q35: 768.25926 | R35: 764.75684 | S35: 2.49517 | T35: 2.48309
B36: 10020761 | C36: FN | D36: RURAL SHORT | E36: 930 | F36: 7.37687 | G36: 2.08333 | H36: 2.603 | I36: 3.6569 | J36: 0.1313 | K36: 17 | L36: 287.8898 | M36: 271.225 | N36: 3.57957 | O36: 3.50108 | P36: 7 | Q36: 10.33871 | R36: 10.33871 | S36: 0.05914 | T36: 0.05914
B37: 10020764 | C37: FN | D37: RURAL SHORT | E37: 2090 | F37: 58.50093 | G37: 18.07502 | H37: 5.409 | I37: 10.3159 | J37: 0.2248 | K37: 57 | L37: 1080.11458 | M37: 700.017 | N37: 8.43014 | O37: 6.24402 | P37: 32 | Q37: 23.53493 | R37: 23.53493 | S37: 0.12823 | T37: 0.12823
B38: 10020765 | C38: FN | D38: RURAL SHORT | E38: 443 | F38: 87.70206 | G38: 0.80042 | H38: 0.995 | I38: 1.2311 | J38: 2.2195 | K38: 28 | L38: 222.08299 | M38: 219.10271 | N38: 4.76749 | O38: 3.77201 | P38: 31 | Q38: 400.39466 | R38: 399.71746 | S38: 1.32506 | T38: 1.31603
B39: 10020767 | C39: FN | D39: RURAL SHORT | E39: 1353 | F39: 121.70215 | G39: 8.49084 | H39: 4.348 | I39: 2.6209 | J39: 1.687 | K39: 50 | L39: 238.26569 | M39: 193.80423 | N39: 3.67406 | O39: 2.50259 | P39: 41 | Q39: 153.3644 | R39: 153.3644 | S39: 0.56171 | T39: 0.56171
B40: 10020768 | C40: FN | D40: RURAL SHORT | E40: 228 | F40: 17.69942 | G40: 0.32851 | H40: 0.862 | I40: 0.0676 | J40: 0.9457 | K40: 4 | L40: 11.56652 | M40: 9.22683 | N40: 2 | O40: 1.00439 | P40: 5 | Q40: 161.84649 | R40: 161.84649 | S40: 0.64035 | T40: 0.64035
B41: 10020770 | C41: FN | D41: RURAL SHORT | E41: 119 | F41: 82.72449 | G41: 0.75368 | H41: 9.33 | I41: 6.5976 | J41: 9.2281 | K41: 28 | L41: 289.17899 | M41: 286.86849 | N41: 4.94958 | O41: 3.96639 | P41: 31 | Q41: 404.47899 | R41: 402.10924 | S41: 1.60504 | T41: 1.54622
B42: 10020771 | C42: FN | D42: RURAL LONG | E42: 384 | F42: 202.06642 | G42: 0.45889 | H42: 3.243 | I42: 12.3186 | J42: 0.3232 | K42: 72 | L42: 825.78316 | M42: 823.0069 | N42: 6.04167 | O42: 5.03646 | P42: 36 | Q42: 21.66406 | R42: 21.66406 | S42: 0.17448 | T42: 0.17448
B43: 10020772 | C43: FN | D43: RURAL LONG | E43: 866 | F43: 216.66035 | G43: 0.3214 | H43: 2.82 | I43: 4.8517 | J43: 0.5819 | K43: 113 | L43: 594.16226 | M43: 552.39532 | N43: 2.82448 | O43: 2.54042 | P43: 43 | Q43: 71.26097 | R43: 71.26097 | S43: 0.33949 | T43: 0.33949
B44: 10020773 | C44: FN | D44: RURAL SHORT | E44: 591 | F44: 99.81376 | G44: 3.11244 | H44: 2.3 | I44: 3.6026 | J44: 0.609 | K44: 31 | L44: 369.96105 | M44: 274.77109 | N44: 2.06091 | O44: 1.01354 | P44: 11 | Q44: 62.53638 | R44: 62.53638 | S44: 0.32657 | T44: 0.32657
B45: 10020774 | C45: FN | D45: RURAL SHORT | E45: 1807 | F45: 38.02566 | G45: 2.53041 | H45: 5.448 | I45: 4.3679 | J45: 0.8227 | K45: 38 | L45: 360.3673 | M45: 156.97216 | N45: 4.26674 | O45: 3.26121 | P45: 34 | Q45: 67.87327 | R45: 67.87327 | S45: 0.39015 | T45: 0.39015
B46: 10020775 | C46: FN | D46: RURAL SHORT | E46: 1106 | F46: 113.73704 | G46: 1.127 | H46: 3.76 | I46: 4.6279 | J46: 0.1844 | K46: 48 | L46: 355.71297 | M46: 355.32943 | N46: 4.7604 | O46: 4.75497 | P46: 15 | Q46: 14.17722 | R46: 14.17722 | S46: 0.09313 | T46: 0.09313
B47: 10020776 | C47: FN | D47: RURAL SHORT | E47: 316 | F47: 21.39292 | G47: 0.60933 | H47: 4.069 | I47: 2.5884 | J47: 4.2486 | K47: 7 | L47: 125.20237 | M47: 6.66123 | N47: 0.2057 | O47: 0.05696 | P47: 14 | Q47: 205.50949 | R47: 205.50949 | S47: 1.03797 | T47: 1.03797
B48: 10020777 | C48: FN | D48: RURAL SHORT | E48: 1842 | F48: 87.87431 | G48: 3.36273 | H48: 5.268 | I48: 0.9831 | J48: 0.3477 | K48: 49 | L48: 102.1921 | M48: 87.2312 | N48: 2.38545 | O48: 1.34799 | P48: 32 | Q48: 36.1397 | R48: 36.1397 | S48: 0.17047 | T48: 0.17047
B49: 10020778 | C49: FN | D49: RURAL SHORT | E49: 624 | F49: 128.90864 | G49: 2.5503 | H49: 2.6 | I49: 2.5071 | J49: 4.2047 | K49: 68 | L49: 364.89607 | M49: 364.22727 | N49: 3.34936 | O49: 3.34615 | P49: 52 | Q49: 611.98261 | R49: 611.98261 | S49: 2.32212 | T49: 2.32212
B50: 10020779 | C50: FN | D50: RURAL SHORT | E50: 602 | F50: 88.29559 | G50: 0.56763 | H50: 2.717 | I50: 2.5303 | J50: 0.6378 | K50: 53 | L50: 243.79109 | M50: 211.24646 | N50: 2.75415 | O50: 2.21262 | P50: 23 | Q50: 61.45581 | R50: 61.2814 | S50: 0.30731 | T50: 0.30399
B51: 10020780 | C51: FN | D51: RURAL SHORT | E51: 662 | F51: 57.04508 | G51: 1.33618 | H51: 1.735 | I51: 2.6936 | J51: 3.6477 | K51: 29 | L51: 308.86445 | M51: 228.0673 | N51: 3.32779 | O51: 2.32024 | P51: 26 | Q51: 418.26528 | R51: 418.26528 | S51: 1.54985 | T51: 1.54985
B52: 10020781 | C52: FN | D52: RURAL SHORT | E52: 290 | F52: 16.60132 | G52: 0.21306 | H52: 0.85 | I52: 1.1559 | J52: 0.8612 | K52: 11 | L52: 146.80351 | M52: 63.74661 | N52: 2.54138 | O52: 1.53448 | P52: 10 | Q52: 109.38385 | R52: 83.84592 | S52: 0.50345 | T52: 0.42414
B53: 10020782 | C53: FN | D53: RURAL SHORT | E53: 965 | F53: 13.6158 | G53: 13.66284 | H53: 8.3 | I53: 5.5303 | J53: 0.0197 | K53: 28 | L53: 380.26086 | M53: 267.65611 | N53: 3.0715 | O53: 1.70674 | P53: 10 | Q53: 1.35301 | R53: 1.35301 | S53: 0.02073 | T53: 0.02073
B54: 10020783 | C54: FN | D54: URBAN | E54: 2077 | F54: 9.83168 | G54: 3.13142 | H54: 9.537 | I54: 1.2376 | J54: 0.583 | K54: 27 | L54: 64.18318 | M54: 36.28253 | N54: 1.1507 | O54: 0.14492 | P54: 82 | Q54: 30.23255 | R54: 30.23255 | S54: 0.24506 | T54: 0.24506
B55: 10020784 | C55: FN | D55: URBAN | E55: 852 | F55: 6.26019 | G55: 1.56363 | H55: 2.796 | I55: 2.5121 | J55: 2.0835 | K55: 14 | L55: 216.08644 | M55: 191.49552 | N55: 2.1608 | O55: 1.15845 | P55: 23 | Q55: 179.21948 | R55: 179.21948 | S55: 0.78286 | T55: 0.78286
B56: 10020785 | C56: FN | D56: RURAL SHORT | E56: 886 | F56: 6.12566 | G56: 5.03638 | H56: 2.185 | I56: 1.0191 | J56: 0.0003 | K56: 5 | L56: 118.19729 | M56: 5.02318 | N56: 1.25508 | O56: 0.03273 | P56: 1 | Q56: 0.03386 | R56: 0.03386 | S56: 0.00226 | T56: 0.00226
B57: 10020786 | C57: FN | D57: URBAN | E57: 2565 | F57: 8.27547 | G57: 5.64802 | H57: 6.841 | I57: 1.9538 | J57: 0.9936 | K57: 29 | L57: 187.14407 | M57: 160.15958 | N57: 3.11384 | O57: 2.09591 | P57: 103 | Q57: 95.16643 | R57: 95.15473 | S57: 0.48655 | T57: 0.48538
B58: 10020787 | C58: FN | D58: RURAL SHORT | E58: 1496 | F58: 151.34353 | G58: 0.8605 | H58: 2.448 | I58: 0.7237 | J58: 0.1185 | K58: 62 | L58: 124.73881 | M58: 124.11373 | N58: 0.78476 | O58: 0.78075 | P58: 14 | Q58: 20.4258 | R58: 20.4258 | S58: 0.17313 | T58: 0.17313
B59: 10020788 | C59: FN | D59: URBAN | E59: 329 | F59: 0.05566 | G59: 8.21293 | H59: 5.618 | I59: 2.5612 | J59: 1.9999 | K59: 2 | L59: 27.34225 | M59: 0.0304 | N59: 0.98784 | O59: 0.00304 | P59: 8 | Q59: 21.34954 | R59: 21.34954 | S59: 0.29179 | T59: 0.29179
B60: 10020794 | C60: FN | D60: URBAN | E60: 129 | F60: 3.6005 | G60: 0.7293 | H60: 1.436 | I60: 3.5563 | J60: 1.2787 | K60: 3 | L60: 100.0761 | M60: 72.40943 | N60: 2.00775 | O60: 1.00775 | P60: 6 | Q60: 35.9845 | R60: 35.9845 | S60: 0.18605 | T60: 0.18605
B61: 10020795 | C61: FN | D61: URBAN | E61: 569 | F61: 4.37153 | G61: 0.61444 | H61: 3.92 | I61: 2.1765 | J61: 0.9361 | K61: 18 | L61: 135.68843 | M61: 111.01919 | N61: 2.22496 | O61: 1.23023 | P61: 12 | Q61: 58.35852 | R61: 58.35852 | S61: 0.38137 | T61: 0.38137
B62: 10020796 | C62: FN | D62: URBAN | E62: 2226 | F62: 8.0278 | G62: 5.63604 | H62: 6.266 | I62: 2.3285 | J62: 0.2809 | K62: 32 | L62: 285.37716 | M62: 258.21879 | N62: 3.37062 | O62: 2.36568 | P62: 166 | Q62: 34.42956 | R62: 34.40261 | S62: 0.20889 | T62: 0.2062
B63: 10020797 | C63: FN | D63: RURAL SHORT | E63: 763 | F63: 23.41187 | G63: 2.84659 | H63: 4.7 | I63: 0.5606 | J63: 0.6965 | K63: 22 | L63: 56.8732 | M63: 26.5434 | N63: 1.11402 | O63: 0.18873 | P63: 38 | Q63: 70.66588 | R63: 70.66588 | S63: 0.69856 | T63: 0.69856
B64: 10020798 | C64: FN | D64: RURAL SHORT | E64: 1813 | F64: 18.90542 | G64: 14.0568 | H64: 9.121 | I64: 4.6111 | J64: 1.9368 | K64: 37 | L64: 289.03226 | M64: 165.45231 | N64: 2.02978 | O64: 1.22504 | P64: 45 | Q64: 121.4032 | R64: 120.51186 | S64: 0.54826 | T64: 0.53227
B65: 10020799 | C65: FN | D65: RURAL SHORT | E65: 1008 | F65: 89.76635 | G65: 2.17756 | H65: 4.7 | I65: 13.2314 | J65: 1.1199 | K65: 74 | L65: 1052.91042 | M65: 548.81417 | N65: 6.04861 | O65: 4.03571 | P65: 27 | Q65: 89.11607 | R65: 89.11607 | S65: 0.85119 | T65: 0.85119
B66: 10020800 | C66: FN | D66: URBAN | E66: 437 | F66: 7.10675 | G66: 3.31047 | H66: 8.424 | I66: 6.9639 | J66: 2.0944 | K66: 12 | L66: 117.52986 | M66: 90.57048 | N66: 2.04805 | O66: 1.05263 | P66: 21 | Q66: 35.34783 | R66: 35.3135 | S66: 0.21739 | T66: 0.2151
B67: 10020802 | C67: FN | D67: URBAN | E67: 1502 | F67: 3.95075 | G67: 4.97046 | H67: 3.707 | I67: 0.7285 | J67: 0.7024 | K67: 11 | L67: 66.73549 | M67: 37.67152 | N67: 1.14714 | O67: 0.1478 | P67: 12 | Q67: 64.34754 | R67: 64.34754 | S67: 0.23169 | T67: 0.23169
B68: 10020803 | C68: FN | D68: URBAN | E68: 753 | F68: 5.18728 | G68: 4.46588 | H68: 6.076 | I68: 4.6959 | J68: 0.0741 | K68: 6 | L68: 140.78714 | M68: 0.61337 | N68: 2.02656 | O68: 0.00664 | P68: 4 | Q68: 2.22045 | R68: 2.22045 | S68: 0.01461 | T68: 0.01461
B69: 10020804 | C69: FN | D69: RURAL SHORT | E69: 1790 | F69: 62.81187 | G69: 11.31453 | H69: 3.222 | I69: 13.7038 | J69: 0.2835 | K69: 102 | L69: 1736.08621 | M69: 968.23937 | N69: 8.79441 | O69: 5.66201 | P69: 30 | Q69: 35.91117 | R69: 35.91117 | S69: 0.24022 | T69: 0.24022
B70: 10020805 | C70: FN | D70: URBAN | E70: 428 | F70: 5.36077 | G70: 5.05532 | H70: 6.396 | I70: 5.2616 | J70: 1.0582 | K70: 11 | L70: 133.70199 | M70: 100.678 | N70: 2.37617 | O70: 1.32243 | P70: 11 | Q70: 26.89019 | R70: 26.89019 | S70: 0.22664 | T70: 0.22664
B71: 10020806 | C71: FN | D71: RURAL LONG | E71: 1664 | F71: 248.94308 | G71: 5.71375 | H71: 3.124 | I71: 2.0464 | J71: 0.6848 | K71: 135 | L71: 330.94228 | M71: 229.22896 | N71: 3.21094 | O71: 2.1869 | P71: 54 | Q71: 110.73767 | R71: 107.08623 | S71: 0.65445 | T71: 0.63582
B72: 10020807 | C72: FN | D72: URBAN | E72: 1144 | F72: 7.44912 | G72: 1.2216 | H72: 4.089 | I72: 0.4904 | J72: 1.1422 | K72: 21 | L72: 34.01553 | M72: 9.03547 | N72: 1.05245 | O72: 0.05507 | P72: 27 | Q72: 79.23077 | R72: 79.23077 | S72: 0.42133 | T72: 0.42133
B73: 10020808 | C73: FN | D73: URBAN | E73: 3252 | F73: 20.03089 | G73: 3.52976 | H73: 8.947 | I73: 1.5281 | J73: 0.4238 | K73: 59 | L73: 160.49598 | M73: 133.5025 | N73: 3.32718 | O73: 2.26415 | P73: 52 | Q73: 44.51613 | R73: 44.51613 | S73: 0.26507 | T73: 0.26507
B74: 10020809 | C74: FN | D74: URBAN | E74: 1122 | F74: 6.43273 | G74: 1.87199 | H74: 5.04 | I74: 0.5588 | J74: 4.2561 | K74: 10 | L74: 33.95156 | M74: 9.17378 | N74: 1.03476 | O74: 0.041 | P74: 44 | Q74: 258.60606 | R74: 258.60606 | S74: 1.10517 | T74: 1.10517
B75: 10020810 | C75: FN | D75: URBAN | E75: 310 | F75: 0 | G75: 4.02625 | H75: 3.071 | I75: 2.1255 | J75: 0.1657 | K75: 3 | L75: 37.02973 | M75: 13.89812 | N75: 1.18065 | O75: 0.17419 | P75: 2 | Q75: 2.8871 | R75: 2.8871 | S75: 0.00968 | T75: 0.00968
B76: 10020811 | C76: FN | D76: URBAN | E76: 97 | F76: 0 | G76: 1.27765 | H76: 2.581 | I76: 2.766 | J76: 0.0478 | K76: 1 | L76: 28.65911 | M76: 0 | N76: 1.01031 | O76: 0 | P76: 1 | Q76: 0.49485 | R76: 0.49485 | S76: 0.01031 | T76: 0.01031
B77: 10020812 | C77: FN | D77: URBAN | E77: 179 | F77: 0 | G77: 1.76741 | H77: 3.628 | I77: 3.1975 | J77: 0.0087 | K77: 4 | L77: 47.26592 | M77: 19.90791 | N77: 1.12849 | O77: 0.15084 | P77: 4 | Q77: 0.12849 | R77: 0.12849 | S77: 0.02235 | T77: 0.02235
B78: 10020813 | C78: FN | D78: URBAN | E78: 114 | F78: 0 | G78: 2.31253 | H78: 2.12 | I78: 5.0166 | J78: 0.4239 | K78: 2 | L78: 30.62632 | M78: 3.25439 | N78: 1.02632 | O78: 0.00877 | P78: 4 | Q78: 2.58772 | R78: 2.58772 | S78: 0.08772 | T78: 0.08772
B79: 10020814 | C79: FN | D79: URBAN | E79: 134 | F79: 0 | G79: 2.58893 | H79: 3.656 | I79: 10.6381 | J79: 0.9493 | K79: 3 | L79: 103.61555 | M79: 78.45734 | N79: 1.91045 | O79: 0.94776 | P79: 3 | Q79: 9.24627 | R79: 9.24627 | S79: 0.08955 | T79: 0.08955
B80: 10020815 | C80: FN | D80: URBAN | E80: 104 | F80: 0 | G80: 2.23299 | H80: 6.454 | I80: 27.0891 | J80: 0.041 | K80: 2 | L80: 95.3117 | M80: 70.97837 | N80: 2.00962 | O80: 1.00962 | P80: 2 | Q80: 0.14423 | R80: 0.14423 | S80: 0.01923 | T80: 0.01923
B81: 10020816 | C81: FN | D81: URBAN | E81: 283 | F81: 0 | G81: 2.90549 | H81: 2.81 | I81: 2.5023 | J81: 0.8799 | K81: 6 | L81: 41.35925 | M81: 20.32503 | N81: 1.07774 | O81: 0.16254 | P81: 3 | Q81: 14.54417 | R81: 14.54417 | S81: 0.06714 | T81: 0.06714
B82: 10020817 | C82: FN | D82: RURAL SHORT | E82: 1480 | F82: 120.30857 | G82: 2.60159 | H82: 4.319 | I82: 6.0526 | J82: 0.2648 | K82: 60 | L82: 465.51608 | M82: 465.46854 | N82: 5.48514 | O82: 5.48378 | P82: 34 | Q82: 20.36622 | R82: 19.05878 | S82: 0.11351 | T82: 0.10743
B83: 10020818 | C83: FN | D83: URBAN | E83: 388 | F83: 0 | G83: 5.97234 | H83: 4.292 | I83: 8.0304 | J83: 0.7089 | K83: 3 | L83: 226.45851 | M83: 200.19025 | N83: 2.23711 | O83: 1.20361 | P83: 5 | Q83: 19.99227 | R83: 19.99227 | S83: 0.1701 | T83: 0.1701
B84: 10020820 | C84: FN | D84: URBAN | E84: 174 | F84: 0 | G84: 2.25432 | H84: 3.89 | I84: 1.9427 | J84: 0.0036 | K84: 1 | L84: 24.77481 | M84: 0 | N84: 1.04023 | O84: 0 | P84: 1 | Q84: 0.04598 | R84: 0.04598 | S84: 0.00575 | T84: 0.00575
B85: 10020821 | C85: FN | D85: URBAN | E85: 4 | F85: 0 | G85: 1.22756 | H85: 3.256 | I85: 3486.2763 | J85: 0 | K85: 2 | L85: 120.33333 | M85: 0 | N85: 2 | O85: 0 | P85: 0 | Q85: 0 | R85: 0 | S85: 0 | T85: 0
B86: 10020822 | C86: FN | D86: URBAN | E86: 314 | F86: 0 | G86: 2.65361 | H86: 3.626 | I86: 4.8537 | J86: 1.3296 | K86: 3 | L86: 121.38418 | M86: 97.45637 | N86: 2.12102 | O86: 1.09554 | P86: 6 | Q86: 33.25159 | R86: 33.25159 | S86: 0.09236 | T86: 0.09236
B87: 10020824 | C87: FN | D87: RURAL SHORT | E87: 561 | F87: 68.96241 | G87: 0.4557 | H87: 1.366 | I87: 5.3522 | J87: 0.1136 | K87: 40 | L87: 853.83087 | M87: 467.39436 | N87: 5.80036 | O87: 3.78966 | P87: 6 | Q87: 18.11943 | R87: 18.11943 | S87: 0.11052 | T87: 0.11052
B88: 10020825 | C88: FN | D88: RURAL SHORT | E88: 2615 | F88: 53.51574 | G88: 14.648 | H88: 7.057 | I88: 9.8702 | J88: 1.3678 | K88: 69 | L88: 1135.53234 | M88: 370.16843 | N88: 7.67954 | O88: 3.6501 | P88: 35 | Q88: 157.35457 | R88: 157.35457 | S88: 0.27189 | T88: 0.27189
B89: 10020826 | C89: FN | D89: RURAL SHORT | E89: 3110 | F89: 12.84789 | G89: 21.97173 | H89: 8.562 | I89: 0.9563 | J89: 0.3952 | K89: 27 | L89: 88.14496 | M89: 6.53771 | N89: 1.07685 | O89: 0.06977 | P89: 16 | Q89: 36.42476 | R89: 36.42219 | S89: 0.1074 | T89: 0.10707
B90: 10020827 | C90: FN | D90: RURAL SHORT | E90: 1335 | F90: 12.73004 | G90: 2.70529 | H90: 3.281 | I90: 2.3753 | J90: 0.0501 | K90: 30 | L90: 274.28029 | M90: 193.50441 | N90: 4.08914 | O90: 3.09513 | P90: 10 | Q90: 5.78502 | R90: 5.78502 | S90: 0.0809 | T90: 0.0809
B91: 10020828 | C91: FN | D91: RURAL LONG | E91: 1323 | F91: 222.38102 | G91: 1.71688 | H91: 2.452 | I91: 3.1885 | J91: 1.5697 | K91: 84 | L91: 485.64301 | M91: 439.72902 | N91: 5.38095 | O91: 4.81028 | P91: 113 | Q91: 239.08473 | R91: 238.44603 | S91: 1.02872 | T91: 1.02494
B92: 10020829 | C92: FN | D92: RURAL SHORT | E92: 2425 | F92: 22.0932 | G92: 19.01338 | H92: 7.345 | I92: 6.5335 | J92: 0.4043 | K92: 38 | L92: 757.02281 | M92: 676.10695 | N92: 6.02309 | O92: 5.01938 | P92: 15 | Q92: 46.8433 | R92: 46.84247 | S92: 0.18515 | T92: 0.18474
B93: 10020830 | C93: FN | D93: URBAN | E93: 179 | F93: 1.39944 | G93: 12.62772 | H93: 9.779 | I93: 5.4769 | J93: 0.0031 | K93: 1 | L93: 80.12849 | M93: 0 | N93: 1.00559 | O93: 0 | P93: 1 | Q93: 0.04469 | R93: 0.04469 | S93: 0.00559 | T93: 0.00559
B94: 10020831 | C94: FN | D94: RURAL SHORT | E94: 2985 | F94: 32.05858 | G94: 2.26755 | H94: 6.598 | I94: 2.3459 | J94: 2.8599 | K94: 48 | L94: 243.41304 | M94: 159.02234 | N94: 2.65427 | O94: 1.63752 | P94: 55 | Q94: 296.73794 | R94: 296.73794 | S94: 1.28174 | T94: 1.28174
B95: 10020832 | C95: FN | D95: URBAN | E95: 1533 | F95: 10.51942 | G95: 14.61625 | H95: 9.651 | I95: 4.1276 | J95: 0.0407 | K95: 30 | L95: 271.79477 | M95: 191.41919 | N95: 4.1259 | O95: 3.11742 | P95: 12 | Q95: 2.67841 | R95: 2.65101 | S95: 0.02022 | T95: 0.01892
B96: 10020833 | C96: FN | D96: RURAL SHORT | E96: 1985 | F96: 13.82129 | G96: 9.10112 | H96: 6.484 | I96: 4.1578 | J96: 0.0687 | K96: 15 | L96: 243.32976 | M96: 163.12457 | N96: 2.40353 | O96: 1.39698 | P96: 7 | Q96: 4.01965 | R96: 4.01965 | S96: 0.02267 | T96: 0.02267
B97: 10020834 | C97: FN | D97: RURAL SHORT | E97: 608 | F97: 7.92168 | G97: 1.49487 | H97: 2.162 | I97: 3.1316 | J97: 0.1183 | K97: 13 | L97: 245.89792 | M97: 166.34564 | N97: 3.07566 | O97: 2.0773 | P97: 5 | Q97: 9.29276 | R97: 9.29276 | S97: 0.08882 | T97: 0.08882
B98: 10020835 | C98: FN | D98: URBAN | E98: 1232 | F98: 3.62696 | G98: 4.6384 | H98: 3.158 | I98: 1.0335 | J98: 0.5213 | K98: 17 | L98: 121.40641 | M98: 41.98179 | N98: 1.13718 | O98: 0.14042 | P98: 19 | Q98: 61.24026 | R98: 61.24026 | S98: 0.5901 | T98: 0.5901
B99: 10020836 | C99: FN | D99: RURAL SHORT | E99: 900 | F99: 184.88721 | G99: 1.01076 | H99: 4.437 | I99: 4.7767 | J99: 4.7042 | K99: 62 | L99: 494.41954 | M99: 494.34494 | N99: 2.31667 | O99: 2.31556 | P99: 72 | Q99: 486.91559 | R99: 486.91559 | S99: 1.85444 | T99: 1.85444
B100: 10020837 | C100: FN | D100: RURAL SHORT | E100: 490 | F100: 147.32319 | G100: 0.32948 | H100: 3.897 | I100: 1.5405 | J100: 3.2479 | K100: 50 | L100: 114.87014 | M100: 112.9635 | N100: 1.3449 | O100: 1.33878 | P100: 69 | Q100: 242.18571 | R100: 241.30408 | S100: 1.2551 | T100: 1.24898
B101: 10020838 | C101: FN | D101: URBAN | E101: 936 | F101: 5.97201 | G101: 3.69494 | H101: 5.072 | I101: 4.015 | J101: 0.6171 | K101: 13 | L101: 203.69272 | M101: 203.34265 | N101: 3.03098 | O101: 3.02885 | P101: 49 | Q101: 31.30556 | R101: 31.30556 | S101: 0.37821 | T101: 0.37821
B102: 10020839 | C102: FN | D102: URBAN | E102: 1065 | F102: 6.42627 | G102: 2.45574 | H102: 3.073 | I102: 0.1278 | J102: 0.4684 | K102: 13 | L102: 10.72465 | M102: 10.72465 | N102: 0.79718 | O102: 0.79718 | P102: 18 | Q102: 39.29643 | R102: 39.09953 | S102: 0.25728 | T102: 0.23192
B103: 10020840 | C103: FN | D103: RURAL SHORT | E103: 2121 | F103: 32.97375 | G103: 4.32174 | H103: 4.8 | I103: 0.8586 | J103: 0.6718 | K103: 32 | L103: 74.40951 | M103: 71.16245 | N103: 1.06648 | O103: 1.033 | P103: 170 | Q103: 58.2132 | R103: 58.2132 | S103: 0.52852 | T103: 0.52852
B104: 10020841 | C104: FN | D104: RURAL SHORT | E104: 654 | F104: 109.17563 | G104: 2.41341 | H104: 2.816 | I104: 2.7425 | J104: 0.2656 | K104: 41 | L104: 284.44674 | M104: 283.96682 | N104: 3.46636 | O104: 3.45872 | P104: 26 | Q104: 27.54893 | R104: 27.53976 | S104: 0.2156 | T104: 0.21407
B105: 10020842 | C105: FN | D105: RURAL SHORT | E105: 1022 | F105: 118.59881 | G105: 5.92163 | H105: 1.786 | I105: 1.1867 | J105: 0.0886 | K105: 54 | L105: 185.12521 | M105: 184.68798 | N105: 1.97945 | O105: 1.97456 | P105: 26 | Q105: 13.82167 | R105: 13.31874 | S105: 0.09198 | T105: 0.09002
B106: 10020844 | C106: FN | D106: RURAL SHORT | E106: 636 | F106: 160.95695 | G106: 1.92312 | H106: 1.047 | I106: 4.2959 | J106: 1.2166 | K106: 59 | L106: 669.776 | M106: 396.16234 | N106: 4.47013 | O106: 3.40881 | P106: 13 | Q106: 189.68239 | R106: 189.68239 | S106: 0.80503 | T106: 0.80503
B107: 10020845 | C107: FN | D107: RURAL SHORT | E107: 94 | F107: 15.82314 | G107: 0.28848 | H107: 0.213 | I107: 4.8856 | J107: 1.275 | K107: 8 | L107: 830.16082 | M107: 15.50479 | N107: 4.09574 | O107: 3.08511 | P107: 7 | Q107: 216.64894 | R107: 216.64894 | S107: 1.03191 | T107: 1.03191
B108: 10020846 | C108: FN | D108: RURAL SHORT | E108: 1160 | F108: 23.9072 | G108: 5.65699 | H108: 5.269 | I108: 3.638 | J108: 0.0405 | K108: 21 | L108: 232.24763 | M108: 231.51376 | N108: 5.0931 | O108: 5.08879 | P108: 12 | Q108: 2.58448 | R108: 2.58448 | S108: 0.02586 | T108: 0.02586
B109: 10020847 | C109: FN | D109: RURAL SHORT | E109: 1780 | F109: 137.87016 | G109: 5.28926 | H109: 3.56 | I109: 4.0552 | J109: 0.6026 | K109: 70 | L109: 568.15285 | M109: 460.75534 | N109: 5.20899 | O109: 4.7073 | P109: 46 | Q109: 84.43184 | R109: 83.03858 | S109: 0.3309 | T109: 0.3264
B110: 10020848 | C110: FN | D110: RURAL SHORT | E110: 99 | F110: 76.73569 | G110: 0.19576 | H110: 0.216 | I110: 10.4133 | J110: 2.9691 | K110: 18 | L110: 1293.00084 | M110: 1291.56532 | N110: 7.49495 | O110: 7.48485 | P110: 22 | Q110: 368.66667 | R110: 341.18182 | S110: 1.33333 | T110: 1.24242
B111: 10020850 | C111: FN | D111: RURAL SHORT | E111: 1445 | F111: 133.25769 | G111: 4.00688 | H111: 2.567 | I111: 2.849 | J111: 0.4357 | K111: 80 | L111: 440.9766 | M111: 439.11742 | N111: 2.15363 | O111: 2.13426 | P111: 44 | Q111: 67.43391 | R111: 67.17509 | S111: 0.60069 | T111: 0.59377
B112: 10020855 | C112: FN | D112: RURAL SHORT | E112: 626 | F112: 138.4949 | G112: 0.41459 | H112: 2.829 | I112: 5.8083 | J112: 1.6124 | K112: 51 | L112: 539.3475 | M112: 390.24683 | N112: 3.63259 | O112: 2.50639 | P112: 87 | Q112: 149.72788 | R112: 148.01382 | S112: 0.76358 | T112: 0.7508
B113: 10020856 | C113: FN | D113: RURAL SHORT | E113: 138 | F113: 66.23007 | G113: 0.07105 | H113: 1.009 | I113: 5.4594 | J113: 0.1551 | K113: 22 | L113: 580.17246 | M113: 440.257 | N113: 3.28261 | O113: 2.26812 | P113: 5 | Q113: 16.48551 | R113: 16.48551 | S113: 0.07971 | T113: 0.07971
B114: 10020857 | C114: FN | D114: RURAL SHORT | E114: 219 | F114: 90.44716 | G114: 0.03982 | H114: 1.867 | I114: 10.7271 | J114: 1.2001 | K114: 48 | L114: 1296.99041 | M114: 854.97329 | N114: 10.63927 | O114: 8.68037 | P114: 9 | Q114: 145.10502 | R114: 145.10502 | S114: 0.7032 | T114: 0.7032
B115: 10020858 | C115: FN | D115: RURAL SHORT | E115: 0 | F115: 0 | G115: 0.04936 | H115: 0 | I115: 0 | J115: 0 | K115: 0 | L115: 0 | M115: 0 | N115: 0 | O115: 0 | P115: 0 | Q115: 0 | R115: 0 | S115: 0 | T115: 0
B116: 10128810 | C116: FN | D116: RURAL SHORT | E116: 275 | F116: 89.13104 | G116: 0.14173 | H116: 0.453 | I116: 6.614 | J116: 1.6916 | K116: 36 | L116: 1273.39703 | M116: 1155.56576 | N116: 6.45818 | O116: 5.87636 | P116: 11 | Q116: 325.69091 | R116: 325.69091 | S116: 1.14182 | T116: 1.14182
B117: 10129302 | C117: FN | D117: RURAL SHORT | E117: 1 | F117: 7.44332 | G117: 0.50651 | H117: 0.151 | I117: 16.0063 | J117: 0 | K117: 5 | L117: 791.46667 | M117: 587.46667 | N117: 5 | O117: 4 | P117: 0 | Q117: 0 | R117: 0 | S117: 0 | T117: 0
B118: 10129324 | C118: FN | D118: RURAL SHORT | E118: 1102 | F118: 86.91614 | G118: 1.28255 | H118: 2.202 | I118: 9.0329 | J118: 1.9018 | K118: 55 | L118: 1215.89793 | M118: 1009.32443 | N118: 6.36933 | O118: 5.30127 | P118: 32 | Q118: 256.00181 | R118: 256.00181 | S118: 0.95372 | T118: 0.95372
B119: 10129677 | C119: FN | D119: RURAL SHORT | E119: 3 | F119: 38.864 | G119: 0.1683 | H119: 0.703 | I119: 2.7374 | J119: 9.251 | K119: 4 | L119: 375.78889 | M119: 375.78889 | N119: 3.66667 | O119: 3.66667 | P119: 10 | Q119: 1269.95556 | R119: 1269.95556 | S119: 4.66667 | T119: 4.66667
B120: 10129863 | C120: FN | D120: URBAN | E120: 25 | F120: 1.77134 | G120: 2.82976 | H120: 1.682 | I120: 219.4806 | J120: 1.7795 | K120: 2 | L120: 483.488 | M120: 456.96 | N120: 5.04 | O120: 4.08 | P120: 1 | Q120: 3.92 | R120: 3.92 | S120: 0.28 | T120: 0.28
B121: 10130404 | C121: FN | D121: RURAL SHORT | E121: 1237 | F121: 4.40333 | G121: 9.60793 | H121: 1.426 | I121: 4.3463 | J121: 0.3548 | K121: 9 | L121: 469.54751 | M121: 432.53864 | N121: 3.0671 | O121: 1.54972 | P121: 11 | Q121: 38.33468 | R121: 38.33468 | S121: 0.27567 | T121: 0.27567
B122: 10130408 | C122: FN | D122: RURAL SHORT | E122: 290 | F122: 4.48183 | G122: 8.7959 | H122: 2.174 | I122: 0.4185 | J122: 1.2509 | K122: 9 | L122: 29.83287 | M122: 4.39879 | N122: 1.09655 | O122: 0.0931 | P122: 11 | Q122: 89.17931 | R122: 89.17931 | S122: 0.38621 | T122: 0.38621
B123: 10130452 | C123: FN | D123: URBAN | E123: 839 | F123: 1.53868 | G123: 5.2698 | H123: 2.822 | I123: 3.304 | J123: 0.5892 | K123: 3 | L123: 205.64338 | M123: 205.64338 | N123: 0.33492 | O123: 0.33492 | P123: 13 | Q123: 36.66985 | R123: 36.66985 | S123: 0.24195 | T123: 0.24195
B124: 10131875 | C124: FN | D124: RURAL SHORT | E124: 11 | F124: 11.34193 | G124: 0.06391 | H124: 0.22 | I124: 119.8865 | J124: 22.3075 | K124: 16 | L124: 2249.86515 | M124: 2190.11515 | N124: 8.63636 | O124: 5.63636 | P124: 11 | Q124: 418.63636 | R124: 418.63636 | S124: 2.09091 | T124: 2.09091
B125: 10131881 | C125: FN | D125: RURAL SHORT | E125: 7 | F125: 3.3835 | G125: 0.21842 | H125: 0.07 | I125: 9.3641 | J125: 14.0328 | K125: 6 | L125: 378.43095 | M125: 321.03333 | N125: 5.85714 | O125: 3 | P125: 8 | Q125: 567.10714 | R125: 567.10714 | S125: 3.57143 | T125: 3.57143
B126: 10132616 | C126: FN | D126: URBAN | E126: 330 | F126: 0 | G126: 2.82965 | H126: 4.362 | I126: 4.3466 | J126: 0.0014 | K126: 2 | L126: 66.17495 | M126: 38.70909 | N126: 1.99394 | O126: 1 | P126: 1 | Q126: 0.02121 | R126: 0.02121 | S126: 0.00303 | T126: 0.00303
B127: 10132684 | C127: FN | D127: RURAL LONG | E127: 174 | F127: 225.09469 | G127: 0.1905 | H127: 0.996 | I127: 18.8232 | J127: 2.8676 | K127: 26 | L127: 827.78247 | M127: 826.97443 | N127: 6.64943 | O127: 6.64368 | P127: 16 | Q127: 126.1092 | R127: 126.1092 | S127: 1.13218 | T127: 1.13218
B128: 10132687 | C128: FN | D128: RURAL SHORT | E128: 36 | F128: 97.72153 | G128: 0.21598 | H128: 0.78 | I128: 35.2286 | J128: 18.9624 | K128: 13 | L128: 691.1588 | M128: 691.1588 | N128: 3.55556 | O128: 3.55556 | P128: 12 | Q128: 372.02778 | R128: 372.02778 | S128: 1.75 | T128: 1.75
B129: 10134499 | C129: FN | D129: RURAL SHORT | E129: 1931 | F129: 9.23257 | G129: 8.5971 | H129: 5.11 | I129: 1.2559 | J129: 0.0834 | K129: 25 | L129: 123.37111 | M129: 100.82599 | N129: 2.08959 | O129: 1.08286 | P129: 75 | Q129: 8.19109 | R129: 8.19109 | S129: 0.08338 | T129: 0.08338
B130: 10134518 | C130: FN | D130: URBAN | E130: 2178 | F130: 1.09302 | G130: 14.41865 | H130: 7.509 | I130: 1.1771 | J130: 0.0404 | K130: 12 | L130: 121.63944 | M130: 103.64461 | N130: 2.04729 | O130: 1.23646 | P130: 13 | Q130: 4.17677 | R130: 4.17677 | S130: 0.04775 | T130: 0.04775
B131: 10134605 | C131: FN | D131: URBAN | E131: 2541 | F131: 6.12576 | G131: 13.14093 | H131: 9.011 | I131: 6.7748 | J131: 0.045 | K131: 16 | L131: 506.31226 | M131: 161.04662 | N131: 2.94215 | O131: 0.92483 | P131: 36 | Q131: 3.36639 | R131: 3.36639 | S131: 0.03266 | T131: 0.03266
B132: 10135223 | C132: FN | D132: RURAL SHORT | E132: 11 | F132: 9.6379 | G132: 0 | H132: 0.546 | I132: 2.0874 | J132: 0 | K132: 4 | L132: 523.07424 | M132: 34.05758 | N132: 3.09091 | O132: 1.09091 | P132: 0 | Q132: 0 | R132: 0 | S132: 0 | T132: 0
B133: 20001080 | C133: NQ | D133: URBAN | E133: 160 | F133: 0 | G133: 3.24855 | H133: 2.188 | I133: 0.171 | J133: 0.2663 | K133: 4 | L133: 4.79885 | M133: 3.91302 | N133: 0.0375 | O133: 0.025 | P133: 2 | Q133: 7.475 | R133: 7.475 | S133: 0.3125 | T133: 0.3125
B134: 20001081 | C134: NQ | D134: URBAN | E134: 603 | F134: 4.16758 | G134: 0.98003 | H134: 2.568 | I134: 11.1479 | J134: 5.6284 | K134: 13 | L134: 632.14431 | M134: 86.37341 | N134: 2.04146 | O134: 1.04146 | P134: 27 | Q134: 319.16086 | R134: 319.16086 | S134: 1.05804 | T134: 1.05804
B135: 20001108 | C135: NQ | D135: URBAN | E135: 817 | F135: 4.97865 | G135: 1.13454 | H135: 3.005 | I135: 1.4382 | J135: 3.4921 | K135: 24 | L135: 102.77844 | M135: 102.61169 | N135: 1.04896 | O135: 1.04651 | P135: 51 | Q135: 249.55879 | R135: 230.39355 | S135: 1.13831 | T135: 1.01958
B136: 20001141 | C136: NQ | D136: URBAN | E136: 41 | F136: 0 | G136: 1.71591 | H136: 1.301 | I136: 29.6966 | J136: 0.1376 | K136: 2 | L136: 226.32642 | M136: 226.32642 | N136: 0.90244 | O136: 0.90244 | P136: 2 | Q136: 1.04878 | R136: 1.04878 | S136: 0.04878 | T136: 0.04878
B137: 20001148 | C137: NQ | D137: URBAN | E137: 1221 | F137: 7.97598 | G137: 0.73376 | H137: 3.086 | I137: 3.6522 | J137: 0.9152 | K137: 40 | L137: 475.08201 | M137: 44.01013 | N137: 2.73464 | O137: 1.20475 | P137: 41 | Q137: 119.04914 | R137: 119.04914 | S137: 0.6208 | T137: 0.6208
B138: 20001165 | C138: NQ | D138: URBAN | E138: 107 | F138: 0.87363 | G138: 2.4673 | H138: 3.404 | I138: 0 | J138: 0.0041 | K138: 0 | L138: 0 | M138: 0 | N138: 0 | O138: 0 | P138: 1 | Q138: 0.06542 | R138: 0.06542 | S138: 0.00935 | T138: 0.00935
B139: 20001178 | C139: NQ | D139: URBAN | E139: 1217 | F139: 8.93735 | G139: 0.42231 | H139: 3.673 | I139: 0.0883 | J139: 0.3985 | K139: 22 | L139: 9.88132 | M139: 9.14845 | N139: 0.09942 | O139: 0.09696 | P139: 29 | Q139: 44.60805 | R139: 44.60805 | S139: 0.2613 | T139: 0.2613
B140: 20001196 | C140: NQ | D140: URBAN | E140: 478 | F140: 3.9618 | G140: 0.63752 | H140: 1.801 | I140: 0.5514 | J140: 4.2031 | K140: 16 | L140: 47.05216 | M140: 20.65234 | N140: 1.15481 | O140: 0.16527 | P140: 15 | Q140: 358.6523 | R140: 358.6523 | S140: 1.83682 | T140: 1.83682
B141: 20001246 | C141: NQ | D141: RURAL SHORT | E141: 64 | F141: 7.72987 | G141: 0.32629 | H141: 0.545 | I141: 2.1278 | J141: 1.0176 | K141: 6 | L141: 123.85755 | M141: 116.03073 | N141: 2.15625 | O141: 2.09375 | P141: 6 | Q141: 59.23438 | R141: 38.60938 | S141: 0.39063 | T141: 0.29688
B142: 20001263 | C142: NQ | D142: RURAL SHORT | E142: 243 | F142: 45.95769 | G142: 0.06865 | H142: 3.207 | I142: 3.0406 | J142: 5.0276 | K142: 25 | L142: 297.02668 | M142: 297.02668 | N142: 4.23457 | O142: 4.23457 | P142: 35 | Q142: 491.12757 | R142: 489.00412 | S142: 2.0823 | T142: 2.06584
B143: 20001353 | C143: NQ | D143: RURAL SHORT | E143: 216 | F143: 77.41765 | G143: 0.36984 | H143: 2.21 | I143: 6.3595 | J143: 8.6617 | K143: 53 | L143: 405.70162 | M143: 405.70162 | N143: 3.98611 | O143: 3.98611 | P143: 23 | Q143: 552.56944 | R143: 476.60648 | S143: 2.30093 | T143: 2.00463
B144: 20001488 | C144: NQ | D144: RURAL SHORT | E144: 602 | F144: 76.52524 | G144: 0.09412 | H144: 3.334 | I144: 12.0466 | J144: 3.4956 | K144: 90 | L144: 1312.99565 | M144: 515.83259 | N144: 6.86047 | O144: 6.79236 | P144: 42 | Q144: 380.99632 | R144: 379.8003 | S144: 1.23256 | T144: 1.22757
B145: 20001649 | C145: NQ | D145: RURAL SHORT | E145: 467 | F145: 110.41835 | G145: 0.31019 | H145: 3.641 | I145: 15.4085 | J145: 4.5456 | K145: 69 | L145: 1448.01274 | M145: 518.78933 | N145: 6.97645 | O145: 5.96146 | P145: 31 | Q145: 427.17409 | R145: 387.64732 | S145: 1.69379 | T145: 1.55889
B146: 20001859 | C146: NQ | D146: RURAL SHORT | E146: 91 | F146: 41.60728 | G146: 0 | H146: 0.295 | I146: 6.3999 | J146: 6.028 | K146: 16 | L146: 1159.18535 | M146: 785.66868 | N146: 4.25275 | O146: 3.25275 | P146: 15 | Q146: 1091.82985 | R146: 1091.82985 | S146: 4.18681 | T146: 4.18681
B147: 20001962 | C147: NQ | D147: RURAL SHORT | E147: 308 | F147: 74.8193 | G147: 0.01855 | H147: 1.481 | I147: 12.7081 | J147: 2.5813 | K147: 66 | L147: 1242.704 | M147: 1219.71126 | N147: 12.95779 | O147: 11.9513 | P147: 7 | Q147: 252.41558 | R147: 252.41558 | S147: 1.29545 | T147: 1.29545
B148: 20002064 | C148: NQ | D148: RURAL SHORT | E148: 104 | F148: 63.61963 | G148: 0 | H148: 1.137 | I148: 10.8232 | J148: 3.8771 | K148: 37 | L148: 688.39968 | M148: 666.18814 | N148: 10.21154 | O148: 9.20192 | P148: 4 | Q148: 246.59615 | R148: 246.59615 | S148: 1.21154 | T148: 1.21154
B149: 20002143 | C149: NQ | D149: RURAL SHORT | E149: 1 | F149: 8.31066 | G149: 0 | H149: 0.015 | I149: 0.3589 | J149: 0 | K149: 5 | L149: 752.6 | M149: 631.66667 | N149: 5 | O149: 2 | P149: 0 | Q149: 0 | R149: 0 | S149: 0 | T149: 0
B150: 20002149 | C150: NQ | D150: RURAL SHORT | E150: 2 | F150: 13.35168 | G150: 0 | H150: 0.02 | I150: 2.7743 | J150: 0 | K150: 5 | L150: 752.6 | M150: 631.66667 | N150: 5 | O150: 2 | P150: 0 | Q150: 0 | R150: 0 | S150: 0 | T150: 0
B151: 20002267 | C151: NQ | D151: RURAL SHORT | E151: 505 | F151: 33.30209 | G151: 0 | H151: 1.257 | I151: 11.4392 | J151: 5.8556 | K151: 34 | L151: 1355.75551 | M151: 341.72191 | N151: 5.79604 | O151: 3.16436 | P151: 33 | Q151: 693.9996 | R151: 693.9996 | S151: 2.60594 | T151: 2.60594
B152: 20002331 | C152: NQ | D152: RURAL SHORT | E152: 1001 | F152: 65.83022 | G152: 0.64412 | H152: 2.6 | I152: 8.0183 | J152: 1.4572 | K152: 45 | L152: 1063.38402 | M152: 836.87672 | N152: 6.54246 | O152: 6.1968 | P152: 16 | Q152: 193.24775 | R152: 193.24775 | S152: 1.04695 | T152: 1.04695
B153: 20002437 | C153: NQ | D153: RURAL SHORT | E153: 270 | F153: 23.61301 | G153: 0.13026 | H153: 0.759 | I153: 0.355 | J153: 0.0994 | K153: 16 | L153: 47.07204 | M153: 35.20833 | N153: 2.25556 | O153: 0.23333 | P153: 8 | Q153: 13.17778 | R153: 13.17778 | S153: 0.11111 | T153: 0.11111
B154: 20002494 | C154: NQ | D154: RURAL SHORT | E154: 397 | F154: 169.70089 | G154: 1.12003 | H154: 1.434 | I154: 6.1467 | J154: 1.3094 | K154: 41 | L154: 561.32909 | M154: 543.96482 | N154: 6.09068 | O154: 4.06297 | P154: 15 | Q154: 119.57767 | R154: 119.57767 | S154: 0.52393 | T154: 0.52393
B155: 20002622 | C155: NQ | D155: RURAL SHORT | E155: 1316 | F155: 9.42358 | G155: 7.38025 | H155: 3.141 | I155: 0.3458 | J155: 1.2223 | K155: 40 | L155: 30.88755 | M155: 18.88882 | N155: 2.06459 | O155: 0.05775 | P155: 44 | Q155: 109.17781 | R155: 109.17781 | S155: 0.68617 | T155: 0.68617
B156: 20002652 | C156: NQ | D156: RURAL SHORT | E156: 911 | F156: 10.01551 | G156: 3.57786 | H156: 3.511 | I156: 1.4834 | J156: 3.3788 | K156: 50 | L156: 104.89061 | M156: 39.06017 | N156: 2.64764 | O156: 0.66301 | P156: 71 | Q156: 238.91941 | R156: 238.91941 | S156: 1.00988 | T156: 1.00988
B157: 20002698 | C157: NQ | D157: RURAL SHORT | E157: 1629 | F157: 12.9104 | G157: 2.05733 | H157: 3.974 | I157: 0.4364 | J157: 0.1502 | K157: 52 | L157: 55.4743 | M157: 39.254 | N157: 2.72192 | O157: 0.66789 | P157: 59 | Q157: 19.10103 | R157: 19.10103 | S157: 0.1283 | T157: 0.1283
B158: 20002744 | C158: NQ | D158: URBAN | E158: 1 | F158: 1.4105 | G158: 0.48886 | H158: 4.396 | I158: 0 | J158: 14557.2564 | K158: 0 | L158: 0 | M158: 0 | N158: 0 | O158: 0 | P158: 5 | Q158: 1262 | R158: 1262 | S158: 5 | T158: 5
B159: 20002752 | C159: NQ | D159: RURAL SHORT | E159: 2086 | F159: 0.46028 | G159: 25.36317 | H159: 6.302 | I159: 0.002 | J159: 0.5502 | K159: 15 | L159: 0.23654 | M159: 0.23654 | N159: 0.00719 | O159: 0.00719 | P159: 23 | Q159: 66.53848 | R159: 66.53129 | S159: 2.03787 | T159: 2.03739
B160: 20002914 | C160: NQ | D160: URBAN | E160: 361 | F160: 10.7169 | G160: 3.71959 | H160: 4.497 | I160: 0.0929 | J160: 3.3225 | K160: 5 | L160: 2.81066 | M160: 2.81066 | N160: 0.01385 | O160: 0.01385 | P160: 10 | Q160: 100.51967 | R160: 100.51967 | S160: 2.07756 | T160: 2.07756
B161: 20002948 | C161: NQ | D161: RURAL SHORT | E161: 1086 | F161: 7.11473 | G161: 8.96769 | H161: 3.31 | I161: 0.0035 | J161: 0.9149 | K161: 4 | L161: 0.33338 | M161: 0.33338 | N161: 0.00368 | O161: 0.00368 | P161: 7 | Q161: 87.61051 | R161: 87.61051 | S161: 2.11418 | T161: 2.11418
B162: 20002985 | C162: NQ | D162: URBAN | E162: 53 | F162: 3.21503 | G162: 0.61882 | H162: 2.999 | I162: 5.428 | J162: 34.8669 | K162: 1 | L162: 69.62264 | M162: 69.62264 | N162: 0.84906 | O162: 0.84906 | P162: 7 | Q162: 447.22642 | R162: 447.22642 | S162: 3.09434 | T162: 3.09434
B163: 20003026 | C163: NQ | D163: RURAL SHORT | E163: 1332 | F163: 8.79343 | G163: 10.29171 | H163: 4.998 | I163: 0.8774 | J163: 0.7751 | K163: 16 | L163: 96.34533 | M163: 96.07317 | N163: 1.0533 | O163: 1.05255 | P163: 12 | Q163: 85.10811 | R163: 85.10811 | S163: 2.18619 | T163: 2.18619
B164: 20003061 | C164: NQ | D164: URBAN | E164: 261 | F164: 5.48973 | G164: 2.49316 | H164: 2.497 | I164: 2.0081 | J164: 4.7721 | K164: 12 | L164: 43.79125 | M164: 43.79125 | N164: 1.22989 | O164: 1.22989 | P164: 24 | Q164: 104.06513 | R164: 104.06513 | S164: 2.33333 | T164: 2.33333
B165: 20003088 | C165: NQ | D165: RURAL SHORT | E165: 1146 | F165: 19.69725 | G165: 8.0418 | H165: 3.821 | I165: 9.1646 | J165: 1.2559 | K165: 19 | L165: 921.12989 | M165: 82.30967 | N165: 3.16143 | O165: 1.12216 | P165: 32 | Q165: 126.22813 | R165: 126.22813 | S165: 2.36649 | T165: 2.36649
B166: 20003281 | C166: NQ | D166: RURAL SHORT | E166: 547 | F166: 4.75622 | G166: 1.33684 | H166: 1.44 | I166: 1.1008 | J166: 0.04 | K166: 16 | L166: 142.00932 | M166: 141.95996 | N166: 3.4936 | O166: 3.49177 | P166: 7 | Q166: 5.15905 | R166: 5.14077 | S166: 0.02559 | T166: 0.02377
B167: 20003294 | C167: NQ | D167: URBAN | E167: 1042 | F167: 7.82356 | G167: 0.16911 | H167: 3.052 | I167: 1.0824 | J167: 0.0866 | K167: 29 | L167: 112.66761 | M167: 112.5124 | N167: 3.09117 | O167: 3.08541 | P167: 27 | Q167: 9.01679 | R167: 9.01679 | S167: 0.14395 | T167: 0.14395
B168: 20003306 | C168: NQ | D168: RURAL SHORT | E168: 481 | F168: 4.66195 | G168: 1.07775 | H168: 1.701 | I168: 0.5533 | J168: 0.7758 | K168: 10 | L168: 35.41272 | M168: 35.41272 | N168: 2.30561 | O168: 2.30561 | P168: 8 | Q168: 49.65696 | R168: 49.65696 | S168: 0.18503 | T168: 0.18503
B169: 20003317 | C169: NQ | D169: URBAN | E169: 850 | F169: 4.70998 | G169: 1.03893 | H169: 3.153 | I169: 0.2435 | J169: 0.0408 | K169: 18 | L169: 17.11137 | M169: 16.66141 | N169: 2.02471 | O169: 2.02 | P169: 10 | Q169: 2.87059 | R169: 2.87059 | S169: 0.02353 | T169: 0.02353
B170: 20003329 | C170: NQ | D170: URBAN | E170: 24 | F170: 0 | G170: 2.22654 | H170: 3.026 | I170: 9.1079 | J170: 0 | K170: 2 | L170: 9.34028 | M170: 9.34028 | N170: 1 | O170: 1 | P170: 0 | Q170: 0 | R170: 0 | S170: 0 | T170: 0
B171: 20003349 | C171: NQ | D171: URBAN | E171: 991 | F171: 5.09595 | G171: 0.91056 | H171: 3.586 | I171: 1.2889 | J171: 0.6621 | K171: 19 | L171: 107.40425 | M171: 107.33848 | N171: 2.43189 | O171: 2.43088 | P171: 9 | Q171: 55.17578 | R171: 55.17578 | S171: 0.12412 | T171: 0.12412
B172: 20003387 | C172: NQ | D172: URBAN | E172: 182 | F172: 0 | G172: 4.09205 | H172: 1.974 | I172: 0.2966 | J172: 0.0037 | K172: 1 | L172: 6.67985 | M172: 6.67985 | N172: 1.03297 | O172: 1.03297 | P172: 2 | Q172: 0.08242 | R172: 0.08242 | S172: 0.01099 | T172: 0.01099
B173: 20003411 | C173: NQ | D173: URBAN | E173: 384 | F173: 0.13457 | G173: 4.56556 | H173: 1.943 | I173: 0.1714 | J173: 0.0149 | K173: 5 | L173: 10.76406 | M173: 10.76406 | N173: 1.15365 | O173: 1.15365 | P173: 7 | Q173: 0.9375 | R173: 0.9375 | S173: 0.02604 | T173: 0.02604
B174: 20003435 | C174: NQ | D174: RURAL LONG | E174: 426 | F174: 202.17594 | G174: 0.03355 | H174: 2.352 | I174: 10.6826 | J174: 6.0238 | K174: 25 | L174: 485.198 | M174: 422.41757 | N174: 5.46714 | O174: 3.34038 | P174: 29 | Q174: 273.59844 | R174: 273.59844 | S174: 1.07746 | T174: 1.07746
B175: 20003471 | C175: NQ | D175: URBAN | E175: 246 | F175: 6.36908 | G175: 0.09233 | H175: 2.624 | I175: 1.2453 | J175: 1.7543 | K175: 6 | L175: 43.75407 | M175: 10.91504 | N175: 1.0935 | O175: 0.02033 | P175: 7 | Q175: 61.63821 | R175: 61.63821 | S175: 0.26829 | T175: 0.26829
B176: 20003493 | C176: NQ | D176: RURAL SHORT | E176: 2 | F176: 1.2706 | G176: 0 | H176: 0.05 | I176: 8.6796 | J176: 21.2714 | K176: 3 | L176: 128.125 | M176: 97.525 | N176: 2 | O176: 1 | P176: 2 | Q176: 314 | R176: 314 | S176: 2 | T176: 2
B177: 20003547 | C177: NQ | D177: URBAN | E177: 2 | F177: 0.03532 | G177: 0.30441 | H177: 1.59 | I177: 18123.6097 | J177: 0 | K177: 3 | L177: 1235.56667 | M177: 1235.56667 | N177: 3 | O177: 3 | P177: 0 | Q177: 0 | R177: 0 | S177: 0 | T177: 0
B178: 20003550 | C178: NQ | D178: RURAL SHORT | E178: 342 | F178: 49.35201 | G178: 0.96174 | H178: 0.685 | I178: 8.917 | J178: 0.0175 | K178: 14 | L178: 1450.45229 | M178: 1450.45229 | N178: 4.89474 | O178: 4.89474 | P178: 2 | Q178: 2.85088 | R178: 2.85088 | S178: 0.0117 | T178: 0.0117
B179: 20003792 | C179: NQ | D179: RURAL SHORT | E179: 1152 | F179: 113.82834 | G179: 0.19079 | H179: 3.266 | I179: 2.152 | J179: 0.5998 | K179: 56 | L179: 201.01646 | M179: 54.13293 | N179: 2.30729 | O179: 0.29253 | P179: 16 | Q179: 56.02778 | R179: 56.02778 | S179: 0.26476 | T179: 0.26476
B180: 20003866 | C180: NQ | D180: RURAL LONG | E180: 83 | F180: 582.3946 | G180: 0.32686 | H180: 8.862 | I180: 2260.1935 | J180: 570.4901 | K180: 31 | L180: 2193.66908 | M180: 1776.44016 | N180: 6.06024 | O180: 3.83133 | P180: 3 | Q180: 553.6988 | R180: 553.6988 | S180: 0.38554 | T180: 0.38554
B181: 20003945 | C181: NQ | D181: URBAN | E181: 2 | F181: 1.3659 | G181: 0.00739 | H181: 8.394 | I181: 0.2471 | J181: 0 | K181: 1 | L181: 12.21667 | M181: 0 | N181: 1 | O181: 0 | P181: 0 | Q181: 0 | R181: 0 | S181: 0 | T181: 0
B182: 20003949 | C182: NQ | D182: RURAL LONG | E182: 189 | F182: 370.36476 | G182: 0 | H182: 0.454 | I182: 4.0552 | J182: 1.444 | K182: 18 | L182: 497.23201 | M182: 497.23201 | N182: 2.22222 | O182: 2.22222 | P182: 5 | Q182: 177.05291 | R182: 177.05291 | S182: 0.87302 | T182: 0.87302
B183: 20003983 | C183: NQ | D183: RURAL SHORT | E183: 75 | F183: 138.81877 | G183: 0 | H183: 0.426 | I183: 34.1832 | J183: 0.0078 | K183: 13 | L183: 1747.00111 | M183: 1747.00111 | N183: 3.16 | O183: 3.16 | P183: 1 | Q183: 0.4 | R183: 0.4 | S183: 0.01333 | T183: 0.01333
B184: 20004054 | C184: NQ | D184: RURAL LONG | E184: 789 | F184: 364.05637 | G184: 0.37353 | H184: 2.025 | I184: 6.6751 | J184: 0.722 | K184: 54 | L184: 719.42041 | M184: 450.79501 | N184: 3.61217 | O184: 2.3815 | P184: 46 | Q184: 77.81012 | R184: 77.81012 | S184: 0.46134 | T184: 0.46134
B185: 20004081 | C185: NQ | D185: RURAL SHORT | E185: 509 | F185: 32.98488 | G185: 0.03864 | H185: 1.481 | I185: 2.514 | J185: 0.0692 | K185: 27 | L185: 295.83847 | M185: 50.0406 | N185: 2.92731 | O185: 0.37917 | P185: 12 | Q185: 8.13949 | R185: 8.13949 | S185: 0.13949 | T185: 0.13949
B186: 20004307 | C186: NQ | D186: RURAL LONG | E186: 293 | F186: 652.27019 | G186: 0.08224 | H186: 2.443 | I186: 55.3789 | J186: 1.6272 | K186: 43 | L186: 1660.86854 | M186: 1295.51957 | N186: 5.76451 | O186: 4.63823 | P186: 9 | Q186: 48.80205 | R186: 48.80205 | S186: 0.5256 | T186: 0.5256
B187: 20004592 | C187: NQ | D187: RURAL SHORT | E187: 773 | F187: 48.18107 | G187: 0.22832 | H187: 2.906 | I187: 7.5575 | J187: 0.6233 | K187: 63 | L187: 490.12706 | M187: 489.84601 | N187: 4.3868 | O187: 4.38422 | P187: 43 | Q187: 40.42432 | R187: 39.69728 | S187: 0.28719 | T187: 0.28461
B188: 20004679 | C188: NQ | D188: RURAL SHORT | E188: 1 | F188: 0.24247 | G188: 0 | H188: 0 | I188: 0 | J188: 0 | K188: 0 | L188: 0 | M188: 0 | N188: 0 | O188: 0 | P188: 0 | Q188: 0 | R188: 0 | S188: 0 | T188: 0
B189: 20004700 | C189: NQ | D189: URBAN | E189: 484 | F189: 3.14195 | G189: 2.20649 | H189: 2.818 | I189: 4.1455 | J189: 2.579 | K189: 6 | L189: 170.3896 | M189: 170.3896 | N189: 1.08884 | O189: 1.08884 | P189: 18 | Q189: 106.00207 | R189: 106.00207 | S189: 0.35537 | T189: 0.35537
B190: 20004715 | C190: NQ | D190: URBAN | E190: 48 | F190: 0.69843 | G190: 1.17291 | H190: 1.762 | I190: 0 | J190: 0.0015 | K190: 0 | L190: 0 | M190: 0 | N190: 0 | O190: 0 | P190: 1 | Q190: 0.20833 | R190: 0.20833 | S190: 0.02083 | T190: 0.02083
B191: 20004751 | C191: NQ | D191: URBAN | E191: 895 | F191: 5.45923 | G191: 1.76107 | H191: 2.672 | I191: 2.1399 | J191: 0.043 | K191: 24 | L191: 243.88864 | M191: 243.47892 | N191: 1.72402 | O191: 1.72179 | P191: 31 | Q191: 4.89933 | R191: 4.87698 | S191: 0.09162 | T191: 0.08939
B192: 20004796 | C192: NQ | D192: RURAL SHORT | E192: 1146 | F192: 152.87534 | G192: 5.68843 | H192: 5.564 | I192: 8.0871 | J192: 0.3388 | K192: 37 | L192: 828.1672 | M192: 810.86592 | N192: 3.56283 | O192: 3.50785 | P192: 27 | Q192: 34.69116 | R192: 34.69116 | S192: 0.44677 | T192: 0.44677
B193: 20004893 | C193: NQ | D193: URBAN | E193: 1238 | F193: 5.53864 | G193: 3.89895 | H193: 4.771 | I193: 0.3751 | J193: 0.3608 | K193: 20 | L193: 22.54791 | M193: 22.12901 | N193: 0.11389 | O193: 0.11066 | P193: 15 | Q193: 21.6874 | R193: 21.67124 | S193: 0.1252 | T193: 0.12359
B194: 20004903 | C194: NQ | D194: RURAL SHORT | E194: 1553 | F194: 34.85154 | G194: 14.40794 | H194: 5.337 | I194: 0.2239 | J194: 0.0404 | K194: 20 | L194: 26.63327 | M194: 14.17899 | N194: 0.49195 | O194: 0.07598 | P194: 11 | Q194: 4.80326 | R194: 4.80326 | S194: 0.14681 | T194: 0.14681
B195: 20004937 | C195: NQ | D195: RURAL LONG | E195: 316 | F195: 720.75193 | G195: 0.2669 | H195: 2.2 | I195: 45.5496 | J195: 3.838 | K195: 48 | L195: 2672.92025 | M195: 2453.0116 | N195: 5.70253 | O195: 4.22785 | P195: 19 | Q195: 225.21835 | R195: 153.82595 | S195: 1.25633 | T195: 0.89241
B196: 20004955 | C196: NQ | D196: RURAL SHORT | E196: 183 | F196: 29.61562 | G196: 0.1771 | H196: 1.744 | I196: 4.2587 | J196: 0.5374 | K196: 11 | L196: 194.21302 | M196: 146.05565 | N196: 4.07104 | O196: 2.49727 | P196: 4 | Q196: 24.5082 | R196: 24.5082 | S196: 0.14754 | T196: 0.14754
B197: 20005039 | C197: NQ | D197: RURAL SHORT | E197: 2 | F197: 15.12455 | G197: 0 | H197: 0.08 | I197: 11.8626 | J197: 33.0594 | K197: 23 | L197: 3210.43333 | M197: 3099.91667 | N197: 21 | O197: 16 | P197: 2 | Q197: 8947.03333 | R197: 8947.03333 | S197: 1.5 | T197: 1.5
B198: 20005133 | C198: NQ | D198: RURAL LONG | E198: 1155 | F198: 252.74393 | G198: 0.45853 | H198: 3.877 | I198: 7.735 | J198: 0.7186 | K198: 52 | L198: 519.06932 | M198: 385.0774 | N198: 8.73333 | O198: 5.47619 | P198: 17 | Q198: 48.21991 | R198: 48.21991 | S198: 0.39048 | T198: 0.39048
B199: 20005188 | C199: NQ | D199: RURAL SHORT | E199: 545 | F199: 24.30258 | G199: 1.41812 | H199: 4.059 | I199: 5.0912 | J199: 0.0113 | K199: 23 | L199: 297.58823 | M199: 245.46018 | N199: 4.22202 | O199: 1.22202 | P199: 3 | Q199: 0.66239 | R199: 0.66239 | S199: 0.00917 | T199: 0.00917
B200: 20005242 | C200: NQ | D200: URBAN | E200: 157 | F200: 3.18654 | G200: 0.90834 | H200: 3.364 | I200: 0.3918 | J200: 9.9226 | K200: 4 | L200: 6.48662 | M200: 6.48662 | N200: 0.04459 | O200: 0.04459 | P200: 6 | Q200: 164.27389 | R200: 164.27389 | S200: 0.53503 | T200: 0.53503
B201: 20005265 | C201: NQ | D201: RURAL SHORT | E201: 1229 | F201: 20.0221 | G201: 0.48741 | H201: 4.231 | I201: 2.0123 | J201: 1.5976 | K201: 43 | L201: 135.64071 | M201: 37.20359 | N201: 4.17494 | O201: 0.17331 | P201: 31 | Q201: 107.68983 | R201: 86.82897 | S201: 0.45566 | T201: 0.37592
B202: 20005314 | C202: NQ | D202: RURAL SHORT | E202: 799 | F202: 13.28721 | G202: 0.40839 | H202: 2.96 | I202: 2.3012 | J202: 0.1377 | K202: 28 | L202: 157.56026 | M202: 102.98734 | N202: 4.13141 | O202: 1.12891 | P202: 8 | Q202: 9.43054 | R202: 9.43054 | S202: 0.08385 | T202: 0.08385
B203: 20005336 | C203: NQ | D203: URBAN | E203: 904 | F203: 6.91308 | G203: 1.08944 | H203: 4.048 | I203: 4.7731 | J203: 1.7417 | K203: 29 | L203: 288.62657 | M203: 231.70387 | N203: 6.1969 | O203: 3.18031 | P203: 26 | Q203: 105.32301 | R203: 91.45133 | S203: 0.48341 | T203: 0.38164
B204: 20005357 | C204: NQ | D204: URBAN | E204: 684 | F204: 5.57314 | G204: 1.40618 | H204: 2.502 | I204: 2.0247 | J204: 0.177 | K204: 9 | L204: 186.66101 | M204: 131.02841 | N204: 5.55117 | O204: 2.57749 | P204: 2 | Q204: 16.31871 | R204: 16.31871 | S204: 0.03509 | T204: 0.03509
... 1109 more rows

Sheet 3.6.9 Network-reliability
B1: =IF(dms_DataQuality="backcast",INDEX(dms_Worksheet_List,MATCH(dms_Model,dms_Model_List))&" BACKCAST",INDEX(dms_Worksheet_List,MATCH(dms_Model,dms_Model_List))) -> ANNUAL REPORTING STATEMENT
B2: =INDEX(dms_TradingNameFull_List,MATCH(dms_TradingName,dms_TradingName_List)) -> Ergon Energy
B3: =CONCATENATE("Annual Reporting RIN Response ",IF(SUM(dms_SingleYear_Model)>0,CONCATENATE(CRY),CONCATENATE(FRCP_y1," to ",dms_MultiYear_FinalYear_Result))) -> Annual Reporting RIN Response 2017-18
B4: 3.6 QUALITY OF SERVICES
B7: 3.6.9 - NETWORK FEEDER RELIABILITY - PLANNED OUTAGES
C8: =CRY -> 2017-18
B9: 3.6.9.1 - PLANNED MINUTES OFF SUPPLY (SAIDI)
B10: =INDEX(dms_FeederName_1,MATCH(dms_TradingName,dms_TradingName_List)) -> CBD
B11: =INDEX(dms_FeederName_2,MATCH(dms_TradingName,dms_TradingName_List)) -> Urban | C11: 41.2449
B12: =INDEX(dms_FeederName_3,MATCH(dms_TradingName,dms_TradingName_List)) -> Short rural | C12: 85.0327
B13: =INDEX(dms_FeederName_4,MATCH(dms_TradingName,dms_TradingName_List)) -> Long rural | C13: 211.9759
B14: =IF((INDEX(dms_FeederName_5,MATCH(dms_TradingName,dms_TradingName_List))=0),"",(INDEX(dms_FeederName_5,MATCH(dms_TradingName,dms_TradingName_List)))) -> 
C16: =CRY -> 2017-18
B17: 3.6.9.2 - PLANNED INTERRUPTIONS TO SUPPLY (SAIFI)
B18: =INDEX(dms_FeederName_1,MATCH(dms_TradingName,dms_TradingName_List)) -> CBD
B19: =INDEX(dms_FeederName_2,MATCH(dms_TradingName,dms_TradingName_List)) -> Urban | C19: 0.2619
B20: =INDEX(dms_FeederName_3,MATCH(dms_TradingName,dms_TradingName_List)) -> Short rural | C20: 0.4617
B21: =INDEX(dms_FeederName_4,MATCH(dms_TradingName,dms_TradingName_List)) -> Long rural | C21: 1.0293
B22: =IF((INDEX(dms_FeederName_5,MATCH(dms_TradingName,dms_TradingName_List))=0),"",(INDEX(dms_FeederName_5,MATCH(dms_TradingName,dms_TradingName_List)))) -> 

Sheet 4.1 Public lighting
B1: =IF(dms_DataQuality="backcast",INDEX(dms_Worksheet_List,MATCH(dms_Model,dms_Model_List))&" BACKCAST",INDEX(dms_Worksheet_List,MATCH(dms_Model,dms_Model_List))) -> ANNUAL REPORTING STATEMENT
B2: =INDEX(dms_TradingNameFull_List,MATCH(dms_TradingName,dms_TradingName_List)) -> Ergon Energy
B3: =CONCATENATE("Annual Reporting RIN Response ",IF(SUM(dms_SingleYear_Model)>0,CONCATENATE(CRY),CONCATENATE(FRCP_y1," to ",dms_MultiYear_FinalYear_Result))) -> Annual Reporting RIN Response 2017-18
B4: 4.1 PUBLIC LIGHTING
B6: Tables 4.1.1 - 4.1.3 deliberately omitted.
B8: 4.1.4 - PUBLIC LIGHTING METRICS BY TARIFF
C9: Number of Lights | D9: Public Lighting Revenue
B10: Tariff categories | C10: 0's | D10: $0's, nominal
B51: To enter further tariff categories - please insert new rows above this row.
B52: Total | C52: =SUM(C11:C50) -> 0 | D52: =SUM(D11:D50) -> 0

Sheet 6.2 STPIS Reliability
B1: =IF(dms_DataQuality="backcast",INDEX(dms_Worksheet_List,MATCH(dms_Model,dms_Model_List))&" BACKCAST",INDEX(dms_Worksheet_List,MATCH(dms_Model,dms_Model_List))) -> ANNUAL REPORTING STATEMENT
B2: =INDEX(dms_TradingNameFull_List,MATCH(dms_TradingName,dms_TradingName_List)) -> Ergon Energy
B3: =CONCATENATE("Annual Reporting RIN Response ",IF(SUM(dms_SingleYear_Model)>0,CONCATENATE(CRY),CONCATENATE(FRCP_y1," to ",dms_MultiYear_FinalYear_Result))) -> Annual Reporting RIN Response 2017-18
B4: 6.2 RELIABILITY AND CUSTOMER SERVICE PERFORMANCE
B6: Did the MAIFI parameter of the STPIS apply during the period? NB:This flag is set from the response on worksheet 3.6.8 Network feeders | D6: =dms_MAIFI_Flag -> No
B9: 6.2.1 - UNPLANNED MINUTES OFF SUPPLY (SAIDI)
D10: =CRY -> 2017-18
B11: Total sustained minutes off supply | C11: =INDEX(dms_FeederName_1,MATCH(dms_TradingName,dms_TradingName_List)) -> CBD
C12: =INDEX(dms_FeederName_2,MATCH(dms_TradingName,dms_TradingName_List)) -> Urban | D12: 144.0096
C13: =INDEX(dms_FeederName_3,MATCH(dms_TradingName,dms_TradingName_List)) -> Short rural | D13: 410.9445
C14: =INDEX(dms_FeederName_4,MATCH(dms_TradingName,dms_TradingName_List)) -> Long rural | D14: 1047.9698
C15: =IF((INDEX(dms_FeederName_5,MATCH(dms_TradingName,dms_TradingName_List))=0),"",(INDEX(dms_FeederName_5,MATCH(dms_TradingName,dms_TradingName_List)))) -> 
C16: Whole Network | D16: 394.4301
B17: Total of excluded events* *see 3.3 of STPIS | C17: =INDEX(dms_FeederName_1,MATCH(dms_TradingName,dms_TradingName_List)) -> CBD
C18: =INDEX(dms_FeederName_2,MATCH(dms_TradingName,dms_TradingName_List)) -> Urban | D18: 59.4581
C19: =INDEX(dms_FeederName_3,MATCH(dms_TradingName,dms_TradingName_List)) -> Short rural | D19: 176.3798
C20: =INDEX(dms_FeederName_4,MATCH(dms_TradingName,dms_TradingName_List)) -> Long rural | D20: 366.391
C21: =IF((INDEX(dms_FeederName_5,MATCH(dms_TradingName,dms_TradingName_List))=0),"",(INDEX(dms_FeederName_5,MATCH(dms_TradingName,dms_TradingName_List)))) -> 
C22: Whole Network | D22: 159.5161
B23: Total sustained minutes off supply after removing excluded events | C23: =INDEX(dms_FeederName_1,MATCH(dms_TradingName,dms_TradingName_List)) -> CBD
C24: =INDEX(dms_FeederName_2,MATCH(dms_TradingName,dms_TradingName_List)) -> Urban | D24: 84.5515
C25: =INDEX(dms_FeederName_3,MATCH(dms_TradingName,dms_TradingName_List)) -> Short rural | D25: 234.5648
C26: =INDEX(dms_FeederName_4,MATCH(dms_TradingName,dms_TradingName_List)) -> Long rural | D26: 681.5788
C27: =IF((INDEX(dms_FeederName_5,MATCH(dms_TradingName,dms_TradingName_List))=0),"",(INDEX(dms_FeederName_5,MATCH(dms_TradingName,dms_TradingName_List)))) -> 
C28: Whole Network | D28: 234.914
B31: 6.2.2 - UNPLANNED INTERRUPTIONS TO SUPPLY (SAIFI)
D32: =CRY -> 2017-18
B33: Total sustained interruptions | C33: =INDEX(dms_FeederName_1,MATCH(dms_TradingName,dms_TradingName_List)) -> CBD
C34: =INDEX(dms_FeederName_2,MATCH(dms_TradingName,dms_TradingName_List)) -> Urban | D34: 1.7324
C35: =INDEX(dms_FeederName_3,MATCH(dms_TradingName,dms_TradingName_List)) -> Short rural | D35: 3.0622
C36: =INDEX(dms_FeederName_4,MATCH(dms_TradingName,dms_TradingName_List)) -> Long rural | D36: 5.8279
C37: =IF((INDEX(dms_FeederName_5,MATCH(dms_TradingName,dms_TradingName_List))=0),"",(INDEX(dms_FeederName_5,MATCH(dms_TradingName,dms_TradingName_List)))) -> 
C38: Whole Network | D38: 2.9358
B39: Total of excluded events* *see 3.3 of STPIS | C39: =INDEX(dms_FeederName_1,MATCH(dms_TradingName,dms_TradingName_List)) -> CBD
C40: =INDEX(dms_FeederName_2,MATCH(dms_TradingName,dms_TradingName_List)) -> Urban | D40: 0.499
C41: =INDEX(dms_FeederName_3,MATCH(dms_TradingName,dms_TradingName_List)) -> Short rural | D41: 0.8094
C42: =INDEX(dms_FeederName_4,MATCH(dms_TradingName,dms_TradingName_List)) -> Long rural | D42: 1.2886
C43: =IF((INDEX(dms_FeederName_5,MATCH(dms_TradingName,dms_TradingName_List))=0),"",(INDEX(dms_FeederName_5,MATCH(dms_TradingName,dms_TradingName_List)))) -> 
C44: Whole Network | D44: 0.7619
B45: Total sustained interruptions after removing excluded events | C45: =INDEX(dms_FeederName_1,MATCH(dms_TradingName,dms_TradingName_List)) -> CBD
C46: =INDEX(dms_FeederName_2,MATCH(dms_TradingName,dms_TradingName_List)) -> Urban | D46: 1.2334
C47: =INDEX(dms_FeederName_3,MATCH(dms_TradingName,dms_TradingName_List)) -> Short rural | D47: 2.2528
C48: =INDEX(dms_FeederName_4,MATCH(dms_TradingName,dms_TradingName_List)) -> Long rural | D48: 4.5392
C49: =IF((INDEX(dms_FeederName_5,MATCH(dms_TradingName,dms_TradingName_List))=0),"",(INDEX(dms_FeederName_5,MATCH(dms_TradingName,dms_TradingName_List)))) -> 
C50: Whole Network | D50: 2.1739
B53: 6.2.3 - UNPLANNED MOMENTARY INTERRUPTIONS TO SUPPLY (MAIFI)
D54: =CRY -> 2017-18
B55: Total momentary interruptions | C55: =INDEX(dms_FeederName_1,MATCH(dms_TradingName,dms_TradingName_List)) -> CBD
C56: =INDEX(dms_FeederName_2,MATCH(dms_TradingName,dms_TradingName_List)) -> Urban
C57: =INDEX(dms_FeederName_3,MATCH(dms_TradingName,dms_TradingName_List)) -> Short rural
C58: =INDEX(dms_FeederName_4,MATCH(dms_TradingName,dms_TradingName_List)) -> Long rural
C59: =IF((INDEX(dms_FeederName_5,MATCH(dms_TradingName,dms_TradingName_List))=0),"",(INDEX(dms_FeederName_5,MATCH(dms_TradingName,dms_TradingName_List)))) -> 
C60: Whole Network
B61: Total of excluded events* *see 3.3 of STPIS | C61: =INDEX(dms_FeederName_1,MATCH(dms_TradingName,dms_TradingName_List)) -> CBD
C62: =INDEX(dms_FeederName_2,MATCH(dms_TradingName,dms_TradingName_List)) -> Urban
C63: =INDEX(dms_FeederName_3,MATCH(dms_TradingName,dms_TradingName_List)) -> Short rural
C64: =INDEX(dms_FeederName_4,MATCH(dms_TradingName,dms_TradingName_List)) -> Long rural
C65: =IF((INDEX(dms_FeederName_5,MATCH(dms_TradingName,dms_TradingName_List))=0),"",(INDEX(dms_FeederName_5,MATCH(dms_TradingName,dms_TradingName_List)))) -> 
C66: Whole Network
B67: Total momentary interruptions after removing excluded events | C67: =INDEX(dms_FeederName_1,MATCH(dms_TradingName,dms_TradingName_List)) -> CBD
C68: =INDEX(dms_FeederName_2,MATCH(dms_TradingName,dms_TradingName_List)) -> Urban
C69: =INDEX(dms_FeederName_3,MATCH(dms_TradingName,dms_TradingName_List)) -> Short rural
C70: =INDEX(dms_FeederName_4,MATCH(dms_TradingName,dms_TradingName_List)) -> Long rural
C71: =IF((INDEX(dms_FeederName_5,MATCH(dms_TradingName,dms_TradingName_List))=0),"",(INDEX(dms_FeederName_5,MATCH(dms_TradingName,dms_TradingName_List)))) -> 
C72: Whole Network
B75: 6.2.4 - DISTRIBUTION CUSTOMER NUMBERS
D76: =CRY -> 2017-18
B77: Customer numbers at the start of the period | C77: =INDEX(dms_FeederName_1,MATCH(dms_TradingName,dms_TradingName_List)) -> CBD
C78: =INDEX(dms_FeederName_2,MATCH(dms_TradingName,dms_TradingName_List)) -> Urban | D78: 218159
C79: =INDEX(dms_FeederName_3,MATCH(dms_TradingName,dms_TradingName_List)) -> Short rural | D79: 405409
C80: =INDEX(dms_FeederName_4,MATCH(dms_TradingName,dms_TradingName_List)) -> Long rural | D80: 75460
C81: =IF((INDEX(dms_FeederName_5,MATCH(dms_TradingName,dms_TradingName_List))=0),"",(INDEX(dms_FeederName_5,MATCH(dms_TradingName,dms_TradingName_List)))) -> 
C82: Whole Network | D82: 699028
B83: Customer numbers at the end of the period | C83: =INDEX(dms_FeederName_1,MATCH(dms_TradingName,dms_TradingName_List)) -> CBD
C84: =INDEX(dms_FeederName_2,MATCH(dms_TradingName,dms_TradingName_List)) -> Urban | D84: 234228
C85: =INDEX(dms_FeederName_3,MATCH(dms_TradingName,dms_TradingName_List)) -> Short rural | D85: 402800
C86: =INDEX(dms_FeederName_4,MATCH(dms_TradingName,dms_TradingName_List)) -> Long rural | D86: 77459
C87: =IF((INDEX(dms_FeederName_5,MATCH(dms_TradingName,dms_TradingName_List))=0),"",(INDEX(dms_FeederName_5,MATCH(dms_TradingName,dms_TradingName_List)))) -> 
C88: Whole Network | D88: 714487
B89: Average customer numbers | C89: =INDEX(dms_FeederName_1,MATCH(dms_TradingName,dms_TradingName_List)) -> CBD | D89: =IFERROR(ROUND(AVERAGE(D77,D83),0),"") -> 
C90: =INDEX(dms_FeederName_2,MATCH(dms_TradingName,dms_TradingName_List)) -> Urban | D90: =IFERROR(ROUND(AVERAGE(D78,D84),0),"") -> 226194
C91: =INDEX(dms_FeederName_3,MATCH(dms_TradingName,dms_TradingName_List)) -> Short rural | D91: =IFERROR(ROUND(AVERAGE(D79,D85),0),"") -> 404105
C92: =INDEX(dms_FeederName_4,MATCH(dms_TradingName,dms_TradingName_List)) -> Long rural | D92: =IFERROR(ROUND(AVERAGE(D80,D86),0),"") -> 76460
C93: =IF((INDEX(dms_FeederName_5,MATCH(dms_TradingName,dms_TradingName_List))=0),"",(INDEX(dms_FeederName_5,MATCH(dms_TradingName,dms_TradingName_List)))) -> 
C94: Whole Network | D94: =IFERROR(ROUND(AVERAGE(D82,D88),0),"") -> 706758

Sheet 6.6 STPIS Customer Service
B1: =IF(dms_DataQuality="backcast",INDEX(dms_Worksheet_List,MATCH(dms_Model,dms_Model_List))&" BACKCAST",INDEX(dms_Worksheet_List,MATCH(dms_Model,dms_Model_List))) -> ANNUAL REPORTING STATEMENT
B2: =INDEX(dms_TradingNameFull_List,MATCH(dms_TradingName,dms_TradingName_List)) -> Ergon Energy
B3: =CONCATENATE("Annual Reporting RIN Response ",IF(SUM(dms_SingleYear_Model)>0,CONCATENATE(CRY),CONCATENATE(FRCP_y1," to ",dms_MultiYear_FinalYear_Result))) -> Annual Reporting RIN Response 2017-18
B4: 6.6 STPIS CUSTOMER SERVICE
B7: 6.6.1 - TELEPHONE ANSWERING
C8: Number of calls after removing excluded events | D8: Total number of calls
C9: =CRY -> 2017-18 | D9: =CRY -> 2017-18
B10: Number of calls received | C10: 115068 | D10: 127691
B11: Number of calls answered within 30 seconds | C11: 91645
B12: Percentage of calls answered within 30 seconds | C12: =IFERROR(C11/C10,"") -> 0.7964421038

Sheet 6.7 STPIS Daily Performance
B1: =IF(dms_DataQuality="backcast",INDEX(dms_Worksheet_List,MATCH(dms_Model,dms_Model_List))&" BACKCAST",INDEX(dms_Worksheet_List,MATCH(dms_Model,dms_Model_List))) -> ANNUAL REPORTING STATEMENT | I1: 1-Jul-2016
B2: =INDEX(dms_TradingNameFull_List,MATCH(dms_TradingName,dms_TradingName_List)) -> Ergon Energy
B3: =CONCATENATE("Annual Reporting RIN Response ",IF(SUM(dms_SingleYear_Model)>0,CONCATENATE(CRY),CONCATENATE(FRCP_y1," to ",dms_MultiYear_FinalYear_Result))) -> Annual Reporting RIN Response 2017-18
B4: 6.7 STPIS DAILY PERFORMANCE
B7: Did the MAIFI parameter of the STPIS apply during the period? This flag is set from the response on worksheet 3.6.8 Network feeders | G7: =dms_MAIFI_Flag -> No
B9: The excluded events to be removed from the data refer only to events listed in clause 3.3(a) of the STPIS, with respect to reliability data, and in clause 5.4 of the STPIS with respect to customer service parameters. *Customer service information must be reported as per the definitions in the STPIS, that is excluding: • calls to payment lines and automated interactive services • calls abandoned by the customer within 30 seconds of the call being queued for response by a human operator (where the time in which a telephone call is abandoned is not measured, then an estimate of the number of calls abandoned within 30 seconds will be determined by taking 20 per cent of all calls abadoned).
B11: 6.7.1 - DAILY PERFORMANCE DATA - UNPLANNED
B12: Date | C12: Customer service* | E12: MAIFI
C13: Number of calls received (after removing excluded events) | D13: Number of calls answered in 30 seconds (after removing excluded events) | E13: =INDEX(dms_FeederName_1,MATCH(dms_TradingName,dms_TradingName_List)) -> CBD | G13: =INDEX(dms_FeederName_2,MATCH(dms_TradingName,dms_TradingName_List)) -> Urban | I13: =INDEX(dms_FeederName_3,MATCH(dms_TradingName,dms_TradingName_List)) -> Short rural | K13: =INDEX(dms_FeederName_4,MATCH(dms_TradingName,dms_TradingName_List)) -> Long rural | M13: =IF((INDEX(dms_FeederName_5,MATCH(dms_TradingName,dms_TradingName_List))=0),"Network",(INDEX(dms_FeederName_5,MATCH(dms_TradingName,dms_TradingName_List)))) ->  | O13: Network
E14: All events | F14: After removing excluded events | G14: All events | H14: After removing excluded events | I14: All events | J14: After removing excluded events | K14: All events | L14: After removing excluded events | M14: All events | N14: After removing excluded events | O14: All events | P14: After removing excluded events
B15: =dms_060701_StartDateTxt -> 1-Jul-2017 | C15: 145 | D15: 113
B16: =B15+1 -> 2017-07-02 | C16: 136 | D16: 124
B17: 2017-07-03 | C17: 254 | D17: 230
B18: 2017-07-04 | C18: 248 | D18: 171
B19: 2017-07-05 | C19: 290 | D19: 212
B20: 2017-07-06 | C20: 423 | D20: 216
B21: 2017-07-07 | C21: 270 | D21: 198
B22: 2017-07-08 | C22: 143 | D22: 129
B23: 2017-07-09 | C23: 145 | D23: 129
B24: 2017-07-10 | C24: 341 | D24: 237
B25: 2017-07-11 | C25: 256 | D25: 204
B26: 2017-07-12 | C26: 284 | D26: 234
B27: 2017-07-13 | C27: 306 | D27: 257
B28: 2017-07-14 | C28: 226 | D28: 184
B29: 2017-07-15 | C29: 161 | D29: 115
B30: 2017-07-16 | C30: 249 | D30: 192
B31: 2017-07-17 | C31: 349 | D31: 237
B32: 2017-07-18 | C32: 238 | D32: 212
B33: 2017-07-19 | C33: 298 | D33: 249
B34: 2017-07-20 | C34: 306 | D34: 194
B35: 2017-07-21 | C35: 328 | D35: 216
B36: 2017-07-22 | C36: 197 | D36: 141
B37: 2017-07-23 | C37: 96 | D37: 79
B38: 2017-07-24 | C38: 283 | D38: 250
B39: 2017-07-25 | C39: 799 | D39: 365
B40: 2017-07-26 | C40: 273 | D40: 210
B41: 2017-07-27 | C41: 274 | D41: 217
B42: 2017-07-28 | C42: 190 | D42: 182
B43: 2017-07-29 | C43: 139 | D43: 128
B44: 2017-07-30 | C44: 104 | D44: 93
B45: 2017-07-31 | C45: 343 | D45: 231
B46: 2017-08-01 | C46: 297 | D46: 272
B47: 2017-08-02 | C47: 250 | D47: 213
B48: 2017-08-03 | C48: 212 | D48: 183
B49: 2017-08-04 | C49: 240 | D49: 206
B50: 2017-08-05 | C50: 148 | D50: 118
B51: 2017-08-06 | C51: 185 | D51: 157
B52: 2017-08-07 | C52: 298 | D52: 233
B53: 2017-08-08 | C53: 242 | D53: 179
B54: 2017-08-09 | C54: 250 | D54: 216
B55: 2017-08-10 | C55: 265 | D55: 194
B56: 2017-08-11 | C56: 225 | D56: 194
B57: 2017-08-12 | C57: 118 | D57: 102
B58: 2017-08-13 | C58: 77 | D58: 71
B59: 2017-08-14 | C59: 414 | D59: 267
B60: 2017-08-15 | C60: 191 | D60: 189
B61: 2017-08-16 | C61: 306 | D61: 256
B62: 2017-08-17 | C62: 298 | D62: 274
B63: 2017-08-18 | C63: 269 | D63: 206
B64: 2017-08-19 | C64: 194 | D64: 144
B65: 2017-08-20 | C65: 138 | D65: 118
B66: 2017-08-21 | C66: 289 | D66: 276
B67: 2017-08-22 | C67: 268 | D67: 237
B68: 2017-08-23 | C68: 243 | D68: 208
B69: 2017-08-24 | C69: 282 | D69: 231
B70: 2017-08-25 | C70: 216 | D70: 182
B71: 2017-08-26 | C71: 136 | D71: 106
B72: 2017-08-27 | C72: 126 | D72: 114
B73: 2017-08-28 | C73: 316 | D73: 232
B74: 2017-08-29 | C74: 228 | D74: 216
B75: 2017-08-30 | C75: 226 | D75: 189
B76: 2017-08-31 | C76: 223 | D76: 173
B77: 2017-09-01 | C77: 239 | D77: 220
B78: 2017-09-02 | C78: 127 | D78: 108
B79: 2017-09-03 | C79: 73 | D79: 68
B80: =B79+1 -> 2017-09-04 | C80: 357 | D80: 273
B81: 2017-09-05 | C81: 242 | D81: 211
B82: 2017-09-06 | C82: 271 | D82: 196
B83: 2017-09-07 | C83: 277 | D83: 238
B84: 2017-09-08 | C84: 204 | D84: 185
B85: 2017-09-09 | C85: 76 | D85: 73
B86: 2017-09-10 | C86: 109 | D86: 109
B87: 2017-09-11 | C87: 220 | D87: 199
B88: 2017-09-12 | C88: 229 | D88: 216
B89: 2017-09-13 | C89: 289 | D89: 204
B90: 2017-09-14 | C90: 302 | D90: 245
B91: 2017-09-15 | C91: 186 | D91: 171
B92: 2017-09-16 | C92: 108 | D92: 102
B93: 2017-09-17 | C93: 94 | D93: 88
B94: 2017-09-18 | C94: 396 | D94: 331
B95: 2017-09-19 | C95: 336 | D95: 312
B96: 2017-09-20 | C96: 215 | D96: 200
B97: 2017-09-21 | C97: 299 | D97: 271
B98: 2017-09-22 | C98: 235 | D98: 223
B99: 2017-09-23 | C99: 123 | D99: 116
B100: 2017-09-24 | C100: 134 | D100: 110
B101: 2017-09-25 | C101: 230 | D101: 219
B102: 2017-09-26 | C102: 255 | D102: 222
B103: 2017-09-27 | C103: 315 | D103: 219
B104: 2017-09-28 | C104: 368 | D104: 285
B105: 2017-09-29 | C105: 259 | D105: 202
B106: 2017-09-30 | C106: 271 | D106: 122
B107: 2017-10-01 | C107: 325 | D107: 193
B108: 2017-10-02 | C108: 1192 | D108: 393
B109: 2017-10-03 | C109: 639 | D109: 391
B110: 2017-10-04 | C110: 365 | D110: 332
B111: 2017-10-05 | C111: 311 | D111: 281
B112: 2017-10-06 | C112: 400 | D112: 264
B113: 2017-10-07 | C113: 304 | D113: 239
B114: 2017-10-08 | C114: 196 | D114: 181
B115: 2017-10-09 | C115: 335 | D115: 239
B116: 2017-10-10 | C116: 373 | D116: 325
B117: 2017-10-11 | C117: 275 | D117: 246
B118: 2017-10-12 | C118: 389 | D118: 290
B119: 2017-10-13 | C119: 571 | D119: 380
B120: 2017-10-14 | C120: 365 | D120: 270
B121: 2017-10-15 | C121: 465 | D121: 330
B122: 2017-10-16 | C122: 713 | D122: 391
B123: 2017-10-17 | C123: 501 | D123: 361
B124: 2017-10-18 | C124: 526 | D124: 319
B125: 2017-10-19 | C125: 0 | D125: 0
B126: 2017-10-20 | C126: 291 | D126: 274
B127: 2017-10-21 | C127: 203 | D127: 182
B128: 2017-10-22 | C128: 225 | D128: 184
B129: 2017-10-23 | C129: 498 | D129: 383
B130: 2017-10-24 | C130: 308 | D130: 267
B131: 2017-10-25 | C131: 349 | D131: 298
B132: 2017-10-26 | C132: 596 | D132: 468
B133: 2017-10-27 | C133: 360 | D133: 298
B134: 2017-10-28 | C134: 153 | D134: 131
B135: 2017-10-29 | C135: 197 | D135: 185
B136: 2017-10-30 | C136: 662 | D136: 368
B137: 2017-10-31 | C137: 745 | D137: 452
B138: 2017-11-01 | C138: 438 | D138: 376
B139: 2017-11-02 | C139: 321 | D139: 300
B140: 2017-11-03 | C140: 238 | D140: 215
B141: 2017-11-04 | C141: 147 | D141: 140
B142: 2017-11-05 | C142: 251 | D142: 186
B143: 2017-11-06 | C143: 690 | D143: 433
B144: =B143+1 -> 2017-11-07 | C144: 0 | D144: 0
B145: 2017-11-08 | C145: 1471 | D145: 799
B146: 2017-11-09 | C146: 520 | D146: 425
B147: 2017-11-10 | C147: 331 | D147: 305
B148: 2017-11-11 | C148: 188 | D148: 154
B149: 2017-11-12 | C149: 184 | D149: 167
B150: 2017-11-13 | C150: 258 | D150: 251
B151: 2017-11-14 | C151: 254 | D151: 249
B152: 2017-11-15 | C152: 222 | D152: 220
B153: 2017-11-16 | C153: 260 | D153: 252
B154: 2017-11-17 | C154: 374 | D154: 346
B155: 2017-11-18 | C155: 270 | D155: 244
B156: 2017-11-19 | C156: 236 | D156: 196
B157: 2017-11-20 | C157: 327 | D157: 306
B158: 2017-11-21 | C158: 359 | D158: 275
B159: 2017-11-22 | C159: 318 | D159: 238
B160: 2017-11-23 | C160: 208 | D160: 167
B161: 2017-11-24 | C161: 190 | D161: 186
B162: 2017-11-25 | C162: 156 | D162: 137
B163: 2017-11-26 | C163: 140 | D163: 140
B164: 2017-11-27 | C164: 260 | D164: 257
B165: 2017-11-28 | C165: 258 | D165: 257
B166: 2017-11-29 | C166: 471 | D166: 439
B167: 2017-11-30 | C167: 445 | D167: 419
B168: 2017-12-01 | C168: 305 | D168: 295
B169: 2017-12-02 | C169: 260 | D169: 228
B170: 2017-12-03 | C170: 343 | D170: 287
B171: 2017-12-04 | C171: 513 | D171: 483
B172: 2017-12-05 | C172: 264 | D172: 246
B173: 2017-12-06 | C173: 338 | D173: 319
B174: 2017-12-07 | C174: 284 | D174: 275
B175: 2017-12-08 | C175: 418 | D175: 385
B176: 2017-12-09 | C176: 423 | D176: 253
B177: 2017-12-10 | C177: 317 | D177: 249
B178: 2017-12-11 | C178: 387 | D178: 339
B179: 2017-12-12 | C179: 314 | D179: 289
B180: 2017-12-13 | C180: 315 | D180: 303
B181: 2017-12-14 | C181: 293 | D181: 281
B182: 2017-12-15 | C182: 204 | D182: 200
B183: 2017-12-16 | C183: 160 | D183: 142
B184: 2017-12-17 | C184: 142 | D184: 141
B185: 2017-12-18 | C185: 263 | D185: 254
B186: 2017-12-19 | C186: 306 | D186: 292
B187: 2017-12-20 | C187: 287 | D187: 270
B188: 2017-12-21 | C188: 274 | D188: 265
B189: 2017-12-22 | C189: 245 | D189: 238
B190: 2017-12-23 | C190: 217 | D190: 193
B191: 2017-12-24 | C191: 190 | D191: 172
B192: 2017-12-25 | C192: 349 | D192: 249
B193: 2017-12-26 | C193: 0 | D193: 0
B194: 2017-12-27 | C194: 1327 | D194: 953
B195: 2017-12-28 | C195: 586 | D195: 513
B196: 2017-12-29 | C196: 375 | D196: 337
B197: 2017-12-30 | C197: 324 | D197: 261
B198: 2017-12-31 | C198: 0 | D198: 0
B199: 2018-01-01 | C199: 0 | D199: 0
B200: 2018-01-02 | C200: 0 | D200: 0
B201: 2018-01-03 | C201: 1542 | D201: 961
B202: 2018-01-04 | C202: 849 | D202: 654
B203: 2018-01-05 | C203: 631 | D203: 524
B204: 2018-01-06 | C204: 339 | D204: 256
... 176 more rows

Sheet 6.8 STPIS Exclusions
B1: =IF(dms_DataQuality="backcast",INDEX(dms_Worksheet_List,MATCH(dms_Model,dms_Model_List))&" BACKCAST",INDEX(dms_Worksheet_List,MATCH(dms_Model,dms_Model_List))) -> ANNUAL REPORTING STATEMENT
B2: =INDEX(dms_TradingNameFull_List,MATCH(dms_TradingName,dms_TradingName_List)) -> Ergon Energy
B3: =CONCATENATE("Annual Reporting RIN Response ",IF(SUM(dms_SingleYear_Model)>0,CONCATENATE(CRY),CONCATENATE(FRCP_y1," to ",dms_MultiYear_FinalYear_Result))) -> Annual Reporting RIN Response 2017-18
B4: 6.8 STPIS EXCLUSIONS
B7: This information is collected to inform the application of the STPIS to Australian Distribution Co. in future regulatory periods. The information is also collected to monitor network performance, and may be used in performance reports.
B9: 6.8.1 - STPIS EXCLUSIONS
B10: Date of event | C10: Outage ID | D10: Feeder ID / name | E10: Feeder classification (drop down) | F10: Cause of event (drop down) | G10: Unplanned | J10: Event category | K10: Effect on unplanned MAIFI | L10: Please provide separate explanation to confirm the outage was not due to inadequate transmission connection planning
B11: DD/MM/YYYY | G11: Number of interruptions | H11: Duration of interruption (mins) | I11: Total unplanned minutes off supply | J11: Use exclusion categories listed in section 3.3(a) of the STPIS (drop down) | K11: by feeder classification
B403: To enter further events - please insert new lines above this line.

Sheet 6.9 STPIS - GSL
B1: =IF(dms_DataQuality="backcast",INDEX(dms_Worksheet_List,MATCH(dms_Model,dms_Model_List))&" BACKCAST",INDEX(dms_Worksheet_List,MATCH(dms_Model,dms_Model_List))) -> ANNUAL REPORTING STATEMENT
B2: =INDEX(dms_TradingNameFull_List,MATCH(dms_TradingName,dms_TradingName_List)) -> Ergon Energy
B3: =CONCATENATE("Annual Reporting RIN Response ",IF(SUM(dms_SingleYear_Model)>0,CONCATENATE(CRY),CONCATENATE(FRCP_y1," to ",dms_MultiYear_FinalYear_Result))) -> Annual Reporting RIN Response 2017-18
B4: 6.9 STPIS - GUARANTEED SERVICE LEVEL
B6: Did the AER's GSL Scheme apply at any time during the regulatory year? | D6: No | E6: **IMPORTANT Please ensure this flag is set. Conditional formatting on this worksheet is dependant on this response.
B8: Instructions: Table 6.9.1 collects information relating to jurisdiction GSL scheme parameters. These parameters can be found in the jurisdictonal scheme relevant to NSP. Please identify each parameter in the relevant sub-tables and provide the volume and value of GSL payments. For GSL parameters that do not fit within the provided sub-tables provided, please enter a heading and identify the relevant parameter(s).
B10: 6.9.1 - GUARANTEED SERVICE LEVELS - JURISDICTIONAL GSL SCHEME
D11: =CRY -> 2017-18 | E11: =CRY -> 2017-18
D12: Volume | E12: Value of GSL payments
D13: 0's | E13: $0's
B14: Appointments
B15: Not attending at or within the specified timeframe | D15: 160 | E15: 9120
B19: To enter further GSL parameters relating to appointments - please copy a row from above and "insert copied cells" above this row.
B21: Connections
B22: Connections not completed within either 5 business days or a date specified with the customer | D22: 61 | E22: 12363
B27: To enter further GSL parameters relating to connections - please copy a row from above and "insert copied cells" above this row.
B29: Reliability of supply
B30: Reliability Duration | D30: 22693 | E30: 2587002
B31: Reliability Frequency | D31: 57 | E31: 6498
B41: To enter further GSL parameters relating to reliability of supply - please copy a row from above and "insert copied cells" above this row.
B43: Street lights
B44: This GSL measure does not apply to distribution entities in QLD | D44: 0 | E44: 0
B51: To enter further GSL parameters relating to street lights - please copy a row from above and "insert copied cells" above this row.
B53: Planned interruptions
B54: Planned Interruptions (BUSINESS) | D54: 219 | E54: 15549
B55: Planned Interruptions (RESIDENTIAL) | D55: 1162 | E55: 32536
B57: To enter further GSL parameters relating to planned interruptions - please copy a row from above and "insert copied cells" above this row.
B59: Hot Water | D59: 0
B60: Hot Water | D60: 1 | E60: 57
B63: To enter further GSL parameters - please identify the parameter and if insufficient rows please copy a row from above and "insert copied cells" above this row.
B65: Wrongful Disconnections | D65: 0
B66: Customer disconnected in error | D66: 64 | E66: 9088
B69: To enter further GSL parameters - please identify the parameter and if insufficient rows please copy a row from above and "insert copied cells" above this row.
B71: Reconnection | D71: 0
B72: Failiure to reconnect a premise within specified timeframes | D72: 23 | E72: 2107
B75: To enter further GSL parameters - please identify the parameter and if insufficient rows please copy a row from above and "insert copied cells" above this row.
B77: <NSP defined parameter category>
B81: To enter further GSL parameters - please identify the parameter and if insufficient rows please copy a row from above and "insert copied cells" above this row.
B84: 6.9.2 - GUARANTEED SERVICE LEVELS - AER GSL SCHEME
B86: Complete Table 6.9.2 if the AER's GSL scheme applied at any time during the regulatory year. Do not complete Table 6.9.2 if the AER's GSL scheme did not apply during the regulatory year.
D88: =CRY -> 2017-18 | E88: =CRY -> 2017-18
D89: Volume | E89: Value of GSL payments
D90: 0's | E90: $0's
B91: New connections
B92: Number of connections made
B93: Number of connections not made on or before the day agreed
B94: Connections - GSL payments – 1-6 day delay
B95: Connections - GSL payments – 7+ day delay
B96: Reliability of supply
B97: Frequency of interruptions – CBD feeders – 9 interruptions
B98: Frequency of interruptions – Urban feeders – 9 interruptions
B99: Frequency of interruptions – Rural (short and long) feeders – 15 interruptions
B100: Interruptions – CBD feeders – 12 hours duration
B101: Interruptions – Urban feeders – 12 hours duration
B102: Interruptions – Rural (short and long) feeders – 18 hours duration
B103: Total duration of interruptions Level 1 – 20 hours
B104: Total duration of interruptions Level 2 – 30 hours
B105: Total duration of interruptions Level 3 – 60 hours
B106: Street lights
B107: Streetlight repair 5 days – GSL payments
B108: Planned interruptions
B109: Notice of planned interruptions – 4 business days notice not given
B110: Total | E110: =SUM(E109,E107,E97:E105,E94:E95) -> 0

Sheet 7.8 Avoided TUOS Payments
B1: =IF(dms_DataQuality="backcast",INDEX(dms_Worksheet_List,MATCH(dms_Model,dms_Model_List))&" BACKCAST",INDEX(dms_Worksheet_List,MATCH(dms_Model,dms_Model_List))) -> ANNUAL REPORTING STATEMENT
B2: =INDEX(dms_TradingNameFull_List,MATCH(dms_TradingName,dms_TradingName_List)) -> Ergon Energy
B3: =CONCATENATE("Annual Reporting RIN Response ",IF(SUM(dms_SingleYear_Model)>0,CONCATENATE(CRY),CONCATENATE(FRCP_y1," to ",dms_MultiYear_FinalYear_Result))) -> Annual Reporting RIN Response 2017-18
B4: 7.8 - AVOIDED TUOS PAYMENTS
B6: 7.8.1 - AVOIDED TUOS PAYMENTS
C7: Avoided TUOS Payment
C8: $0's, nominal
B9: Embedded generators | C9: 1929637.88
B10: Market network service providers | C10: 0
B11: Other | C11: 0

Sheet 7.10 Juris Scheme
B1: =IF(dms_DataQuality="backcast",INDEX(dms_Worksheet_List,MATCH(dms_Model,dms_Model_List))&" BACKCAST",INDEX(dms_Worksheet_List,MATCH(dms_Model,dms_Model_List))) -> ANNUAL REPORTING STATEMENT
B2: =INDEX(dms_TradingNameFull_List,MATCH(dms_TradingName,dms_TradingName_List)) -> Ergon Energy
B3: =CONCATENATE("Annual Reporting RIN Response ",IF(SUM(dms_SingleYear_Model)>0,CONCATENATE(CRY),CONCATENATE(FRCP_y1," to ",dms_MultiYear_FinalYear_Result))) -> Annual Reporting RIN Response 2017-18
B4: 7.10 - JURISDICTIONAL SCHEMES
B6: Instructions Business must list each relevant jurisdictional scheme individually and report information for each scheme separately from other schemes.
B8: 7.10.1 - JURISDICTIONAL SCHEME PAYMENTS
B9: Jurisdictional Scheme Name | C9: Description | D9: Date DNSP Became Subject to Scheme | E9: Description of Cost Recovery Method | F9: Total Scheme Payments
F10: $0's, nominal
B11: Queensland Solar Bonus Scheme (SBS) | C11: The SBS obligates Ergon Energy to pay a Feed in Tariff (FIT) for energy supplied into our distribution network from specific micro-embedded generators (PVs). The scheme operates under Section 44A of the Electricity Act 1994 (Qld). | D11: 2015-05-21 | E11: Queensland Treasury grant funds on behalf of the State of Queensland | F11: 99770385.1
B12: Energy Industry Levy | C12: Ergon Energy is obligated under our Distribution Authority to pay a proportion of the Queensland Government's funding commitments for the AEMC in relation to the Energy Industry Levy. | D12: 2016-04-22 | E12: DUOS Tariff | F12: 91720
E17: Total | F17: =SUM(F11:F16) -> 99862105.1

Sheet 7.11 DMIS-DMIA
B1: =IF(dms_DataQuality="backcast",INDEX(dms_Worksheet_List,MATCH(dms_Model,dms_Model_List))&" BACKCAST",INDEX(dms_Worksheet_List,MATCH(dms_Model,dms_Model_List))) -> ANNUAL REPORTING STATEMENT
B2: =INDEX(dms_TradingNameFull_List,MATCH(dms_TradingName,dms_TradingName_List)) -> Ergon Energy
B3: =CONCATENATE("Annual Reporting RIN Response ",IF(SUM(dms_SingleYear_Model)>0,CONCATENATE(CRY),CONCATENATE(FRCP_y1," to ",dms_MultiYear_FinalYear_Result))) -> Annual Reporting RIN Response 2017-18
B4: 7.11 - DEMAND MANAGEMENT INCENTIVE SCHEME
B6: 7.11.1 - DMIA - PROJECTS SUBMITTED FOR APPROVAL
C7: =CONCATENATE("Total amount of the DMIA spent in ", CRY) -> Total amount of the DMIA spent in 2017-18
C8: Operating expenditure | D8: Capital expenditure | E8: Total
B9: Name of project | C9: $0's, nominal
B10: Centralised Energy Storage | C10: 25000 | D10: 0 | E10: =SUM(C10:D10) -> 25000
B11: IoT Load Control (LPWAN) | C11: 15000 | D11: 0 | E11: 15000
B12: ARC Customer Response and Risk Management | C12: 44000 | D12: 0 | E12: 44000
B13: Grid Advocacy | C13: 156000 | D13: 0 | E13: 156000
B14: Home Energy Management | C14: 0 | D14: 0 | E14: 0
B15: IPDRED | C15: 11000 | D15: 0 | E15: 11000
B16: Large Scale Energy Storage Lakeland | C16: 11000 | D16: 0 | E16: =SUM(C16:D16) -> 11000
E17: 0
E18: 0
E19: 0
E20: 0
E21: 0
E22: 0
E23: 0
E24: 0
E25: 0
E26: 0
E27: 0
E28: 0
E29: 0
E30: 0
E31: 0
E32: 0
E33: 0
E34: 0
E35: 0
E36: 0
E37: 0
E38: 0
E39: 0
E40: 0
E41: 0
E42: 0
E43: 0
E44: 0
B45: To enter additional projects - please copy an existing row and insert above this row.
B46: Total | C46: =SUM(C10:C45) -> 262000 | D46: =SUM(D10:D45) -> 0 | E46: =SUM(E10:E45) -> 262000

Sheet 7.12 Safety and Bushfire
B1: =IF(dms_DataQuality="backcast",INDEX(dms_Worksheet_List,MATCH(dms_Model,dms_Model_List))&" BACKCAST",INDEX(dms_Worksheet_List,MATCH(dms_Model,dms_Model_List))) -> ANNUAL REPORTING STATEMENT
B2: =INDEX(dms_TradingNameFull_List,MATCH(dms_TradingName,dms_TradingName_List)) -> Ergon Energy
B3: =CONCATENATE("Annual Reporting RIN Response ",IF(SUM(dms_SingleYear_Model)>0,CONCATENATE(CRY),CONCATENATE(FRCP_y1," to ",dms_MultiYear_FinalYear_Result))) -> Annual Reporting RIN Response 2017-18
B4: 7.12 SAFETY AND BUSHFIRE RELATED EXPENDITURE
B6: These templates collect information from Victorian businesses only. Bushfire and safety related expenditure information is used by the AER to monitor the expenditures throughout the regulatory control period.
B8: CPI applied to convert expected expenditure in real $ to nominal based on lagged September CPI index
B10: Instructions
B11: For "Exclusive of Margins & Overheads" reported expenditure is to EXCLUDE any overheads, profit margins or management fees paid directly or indirectly to related party contractors (not including actual incurred expense of the related party contractor) for the reporting period.
B12: For "Value of Margins & Overheads" reported expenditure is to COMPRISE ONLY the sum of overheads, profit margins or management fees paid directly or indirectly to related party contractors (not including actual incurred expenses of the related party contractor) for the reporting period.
B14: Australian Distribution Co. is to specify each activity in this table in accordance with the definition in Appendix F of the RIN.
B15: All activities must be reported but the Reason for Difference is only required if there is a 10 per cent difference between the expected value and the actual value. Use median unit costs. Where unit costs are not recorded at the asset category level - provide the best estimates of the unit cost using the cost allocation method identified in this table. (As a transitional measure, the unit cost may be based on a statistically significant annual sample of actual work orders at a 5% or better confidence interval.) Provide basis of allocation where applicable.
B17: 7.12.1 - SAFETY AND BUSHFIRE RELATED ASSET GROUP DEFINITIONS AND ALLOCATION BASIS
B18: Activity | C18: Definitions | G18: Basis for allocation of cost to activity
B19: Planned non-preferred services replacements
B20: Planned replacement of non-preferred services due to height
B21: Removal of public lighting switchwire
B22: Replacement of existing SWER lines with 22kV overhead bare conductor
B23: Installation of GFN and associated equipment at zone substations
B24: Replacement of crossarms/insulator sets – pole top fire mitigation
B25: Replacement of crossarms – based on age and condition
B26: Replacement of poles – based on age and condition
B27: Stake poles – based on age and condition
B28: Replacement of undersized poles
B29: Stake undersized poles
B30: Replacement of overhead conductor – mainly steel
B31: Service line clearance – overhead services requiring relocation
B32: Service line clearance – overhead services requiring undergrounding
B33: Replacement of 22kV distribution feeders with ABC/underground cabling
B34: Replacement of SWER with covered carbon core conductor or equivalent
B35: Replacement of SWER with ABC
B36: Replacement of SWER with underground
B37: Replacement of surge diverters (neptune configuration)
B38: Replacement of surge diverters (single phase or three phase)
B46: To enter further activities - please copy row from above and "insert copied cells" into a row above this row.
B49: 7.12.2 - BUSHFIRE RELATED
B51: 7.12.2.1 - NUMBER OF ACTIVITIES
B52: Activity | C52: Units | D52: Number of Activities
B53: Planned non-preferred services replacements | C53: number of services
B54: Planned replacement of non-preferred services due to height | C54: number of services
B55: Removal of public lighting switchwire | C55: number of spans removed
B56: Replacement of existing SWER lines with 22kV overhead bare conductor | C56: kms of SWER
B57: Installation of GFN and associated equipment at zone substations | C57: number of zone substations
B58: Replacement of crossarms/insulator sets – pole top fire mitigation | C58: number of crossarms/sets
B59: Replacement of crossarms – based on age and condition | C59: number of crossarms
B60: Replacement of poles – based on age and condition | C60: number of poles
B61: Stake poles – based on age and condition | C61: number of poles
B62: Replacement of undersized poles | C62: number of poles
B63: Stake undersized poles | C63: number of poles
B64: Replacement of overhead conductor – mainly steel | C64: kms
B65: Service line clearance – overhead services requiring relocation | C65: number of services
B66: Service line clearance – overhead services requiring undergrounding | C66: number of services
B67: Replacement of 22kV distribution feeders with ABC/underground cabling | C67: number of feeders
B68: Replacement of SWER with covered carbon core conductor or equivalent | C68: kms
B69: Replacement of SWER with ABC | C69: kms
B70: Replacement of SWER with underground | C70: kms
B71: Replacement of surge diverters (neptune configuration) | C71: number of units
B72: Replacement of surge diverters (single phase or three phase) | C72: number of units
B73: =IF(ISBLANK(B39),"",B39) -> 
B80: To enter further activities - please copy row from above and "insert copied cells" into a row above this row.
B83: 7.12.2.2 - EXPENDITURE
B84: Activity | C84: Units | D84: Exclusive of Margins & Overheads | E84: Value of Margins & Overheads
D85: Actual Expenditure
D86: $0's, Nominal
B87: Planned non-preferred services replacements | C87: number of services
B88: Planned replacement of non-preferred services due to height | C88: number of services
B89: Removal of public lighting switchwire | C89: number of spans removed
B90: Replacement of existing SWER lines with 22kV overhead bare conductor | C90: kms of SWER
B91: Installation of GFN and associated equipment at zone substations | C91: number of zone substations
B92: Replacement of crossarms/insulator sets – pole top fire mitigation | C92: number of crossarms/sets
B93: Replacement of crossarms – based on age and condition | C93: number of crossarms
B94: Replacement of poles – based on age and condition | C94: number of poles
B95: Stake poles – based on age and condition | C95: number of poles
B96: Replacement of undersized poles | C96: number of poles
B97: Stake undersized poles | C97: number of poles
B98: Replacement of overhead conductor – mainly steel | C98: kms
B99: Service line clearance – overhead services requiring relocation | C99: number of services
B100: Service line clearance – overhead services requiring undergrounding | C100: number of services
B101: Replacement of 22kV distribution feeders with ABC/underground cabling | C101: number of feeders
B102: Replacement of SWER with covered carbon core conductor or equivalent | C102: kms
B103: Replacement of SWER with ABC | C103: kms
B104: Replacement of SWER with underground | C104: kms
B105: Replacement of surge diverters (neptune configuration) | C105: number of units
B106: Replacement of surge diverters (single phase or three phase) | C106: number of units
B107: =IF(ISBLANK(B39),"",B39) ->  | C107: =IF(ISBLANK(C73),"",C73) -> 
B114: To enter further activities - please copy row from above and "insert copied cells" into a row above this row.
B117: 7.12.2.3 - UNIT COSTS
B118: Activity | D118: Actual
D119: $0's, Per Unit
B120: Planned non-preferred services replacements
B121: Planned replacement of non-preferred services due to height
B122: Removal of public lighting switchwire
B123: Replacement of existing SWER lines with 22kV overhead bare conductor
B124: Installation of GFN and associated equipment at zone substations
B125: Replacement of crossarms/insulator sets – pole top fire mitigation
B126: Replacement of crossarms – based on age and condition
B127: Replacement of poles – based on age and condition
B128: Stake poles – based on age and condition
B129: Replacement of undersized poles
B130: Stake undersized poles
B131: Replacement of overhead conductor – mainly steel
B132: Service line clearance – overhead services requiring relocation
B133: Service line clearance – overhead services requiring undergrounding
B134: Replacement of 22kV distribution feeders with ABC/underground cabling
B135: Replacement of SWER with covered carbon core conductor or equivalent
B136: Replacement of SWER with ABC
B137: Replacement of SWER with underground
B138: Replacement of surge diverters (neptune configuration)
B139: Replacement of surge diverters (single phase or three phase)
B140: =IF(ISBLANK(B39),"",B39) -> 
B147: To enter further activities - please copy row from above and "insert copied cells" into a row above this row.
B150: 7.12.2.4 - CONTINGENT PROJECT APPLICATIONS - VOLUMES APPROVED
B151: Activity | C151: Units | D151: Volume approved under contingent project applications | E151: Actual volumes | F151: Difference
F152: =E152-D152 -> 0
F153: 0
F154: 0
F155: 0
F156: 0
F157: 0
F158: 0
F159: 0
B160: To enter further activities - please copy row from above and "insert copied cells" into a row above this row.
B162: 7.12.2.5 - CONTINGENT PROJECT APPLICATIONS - EXPENDITURE APPROVED
B163: Activity | C163: Exclusive of Margins & Overheads | D163: Value of Margins & Overheads
C164: Actual Expenditure
C165: $0's, Nominal
B166: =IF(ISBLANK(B152),"",B152) -> 
B167: =IF(ISBLANK(B153),"",B153) -> 
B174: To enter further activities - please copy row from above and "insert copied cells" into a row above this row.
B178: 7.12.3 - SAFETY RELATED
B180: 7.12.3.1 - NUMBER OF ACTIVITIES
B181: Activity | C181: Units | D181: Number of Activities
B182: Planned non-preferred services replacements | C182: number of services
B183: Planned replacement of non-preferred services due to height | C183: number of services
B184: Removal of public lighting switchwire | C184: number of spans removed
B185: Replacement of existing SWER lines with 22kV overhead bare conductor | C185: kms of SWER
B186: Installation of GFN and associated equipment at zone substations | C186: number of zone substations
B187: Replacement of crossarms/insulator sets – pole top fire mitigation | C187: number of crossarms/sets
B188: Replacement of crossarms – based on age and condition | C188: number of crossarms
B189: Replacement of poles – based on age and condition | C189: number of poles
B190: Stake poles – based on age and condition | C190: number of poles
B191: Replacement of undersized poles | C191: number of poles
B192: Stake undersized poles | C192: number of poles
B193: Replacement of overhead conductor – mainly steel | C193: kms
B194: Service line clearance – overhead services requiring relocation | C194: number of services
B195: Service line clearance – overhead services requiring undergrounding | C195: number of services
B196: Replacement of 22kV distribution feeders with ABC/underground cabling | C196: number of feeders
B197: Replacement of SWER with covered carbon core conductor or equivalent | C197: kms
B198: Replacement of SWER with ABC | C198: kms
B199: Replacement of SWER with underground | C199: kms
B200: Replacement of surge diverters (neptune configuration) | C200: number of units
B201: Replacement of surge diverters (single phase or three phase) | C201: number of units
B202: =IF(ISBLANK(B39),"",B39) ->  | C202: =IF(ISBLANK(C73),"",C73) -> 
B209: To enter further activities - please copy row from above and "insert copied cells" into a row above this row.
B212: 7.12.3.2 - EXPENDITURE
B213: Activity | C213: Units | D213: Exclusive of Margins & Overheads | E213: Value of Margins & Overheads
D214: Actual Expenditure
D215: $0's, Nominal
B216: Planned non-preferred services replacements | C216: number of services
B217: Planned replacement of non-preferred services due to height | C217: number of services
B218: Removal of public lighting switchwire | C218: number of spans removed
B219: Replacement of existing SWER lines with 22kV overhead bare conductor | C219: kms of SWER
B220: Installation of GFN and associated equipment at zone substations | C220: number of zone substations
B221: Replacement of crossarms/insulator sets – pole top fire mitigation | C221: number of crossarms/sets
B222: Replacement of crossarms – based on age and condition | C222: number of crossarms
B223: Replacement of poles – based on age and condition | C223: number of poles
B224: Stake poles – based on age and condition | C224: number of poles
B225: Replacement of undersized poles | C225: number of poles
B226: Stake undersized poles | C226: number of poles
B227: Replacement of overhead conductor – mainly steel | C227: kms
B228: Service line clearance – overhead services requiring relocation | C228: number of services
B229: Service line clearance – overhead services requiring undergrounding | C229: number of services
B230: Replacement of 22kV distribution feeders with ABC/underground cabling | C230: number of feeders
B231: Replacement of SWER with covered carbon core conductor or equivalent | C231: kms
B232: Replacement of SWER with ABC | C232: kms
B233: Replacement of SWER with underground | C233: kms
B234: Replacement of surge diverters (neptune configuration) | C234: number of units
B235: Replacement of surge diverters (single phase or three phase) | C235: number of units
B236: =IF(ISBLANK(B39),"",B39) ->  | C236: =IF(ISBLANK(C73),"",C73) -> 
B243: To enter further activities - please copy row from above and "insert copied cells" into a row above this row.
B246: 7.12.3.3 - UNIT COSTS
B247: Activity | C247: Units | D247: Actual
D248: $0's, Per Unit
B249: Planned non-preferred services replacements | C249: number of services
B250: Planned replacement of non-preferred services due to height | C250: number of services
B251: Removal of public lighting switchwire | C251: number of spans removed
B252: Replacement of existing SWER lines with 22kV overhead bare conductor | C252: kms of SWER
B253: Installation of GFN and associated equipment at zone substations | C253: number of zone substations
B254: Replacement of crossarms/insulator sets – pole top fire mitigation | C254: number of crossarms/sets
B255: Replacement of crossarms – based on age and condition | C255: number of crossarms
B256: Replacement of poles – based on age and condition | C256: number of poles
B257: Stake poles – based on age and condition | C257: number of poles
B258: Replacement of undersized poles | C258: number of poles
B259: Stake undersized poles | C259: number of poles
B260: Replacement of overhead conductor – mainly steel | C260: kms
B261: Service line clearance – overhead services requiring relocation | C261: number of services
B262: Service line clearance – overhead services requiring undergrounding | C262: number of services
B263: Replacement of 22kV distribution feeders with ABC/underground cabling | C263: number of feeders
B264: Replacement of SWER with covered carbon core conductor or equivalent | C264: kms
B265: Replacement of SWER with ABC | C265: kms
B266: Replacement of SWER with underground | C266: kms
... 64 more rows

Sheet 8.1 Income
B1: =IF(dms_DataQuality="backcast",INDEX(dms_Worksheet_List,MATCH(dms_Model,dms_Model_List))&" BACKCAST",INDEX(dms_Worksheet_List,MATCH(dms_Model,dms_Model_List))) -> ANNUAL REPORTING STATEMENT
B2: =INDEX(dms_TradingNameFull_List,MATCH(dms_TradingName,dms_TradingName_List)) -> Ergon Energy
B3: =CONCATENATE("Annual Reporting RIN Response ",IF(SUM(dms_SingleYear_Model)>0,CONCATENATE(CRY),CONCATENATE(FRCP_y1," to ",dms_MultiYear_FinalYear_Result))) -> Annual Reporting RIN Response 2017-18
B4: 8.1 - INCOME
B6: 8.1.1 - INCOME STATEMENT
C7: Audited Statutory Accounts | D7: Adjustments | E7: Distribution business | F7: Standard Control Services | G7: Alternative Control Services | L7: Negotiated Services
G8: Public Lighting | I8: Other
G9: =IF(dms_Jurisdiction="Vic","Energy efficient","") ->  | H9: =IF(dms_Jurisdiction="Vic","Non-energy efficient","") ->  | I9: Connection services | J9: Metering services | K9: Ancillary network services
C10: $0's, nominal
B11: 8.1.1.1 - REVENUE
B12: Distribution revenue | C12: 1450101257 | D12: -9794965.72 | E12: 1440306291 | F12: 1360225218 | G12: 34554181.35 | I12: 0 | J12: 45526891.66 | K12: 0
B13: Cross boundary revenue | C13: 0 | D13: 4893157.48 | E13: 4893157.48 | F13: 4893157.48 | G13: 0 | I13: 0 | J13: 0 | K13: 0
B14: Contributions | C14: 48907902.03 | D14: -75566.93 | E14: 48832335.1 | F14: 8148117.58 | G14: 6079992.05 | I14: 30439629.17 | J14: 4164596.3 | K14: 0
B15: Interest income | C15: 8180497.72 | D15: -8180497.72 | E15: 0 | F15: 0 | G15: 0 | I15: 0 | J15: 0 | K15: 0
B16: Jurisdictional scheme amounts | C16: -127168.51 | D16: 93678428.62 | E16: 93551260.11 | F16: 93551260.11 | G16: 0 | I16: 0 | J16: 0 | K16: 0
B17: Profit from sale of fixed assets | C17: -3744963.65 | D17: 3744963.65 | E17: 0 | F17: 0 | G17: 0 | I17: 0 | J17: 0 | K17: 0
B18: TUOS revenue | C18: 261486378.5 | D18: -2502337.72 | E18: 258984040.8 | F18: 258984040.8 | G18: 0 | I18: 0 | J18: 0 | K18: 0
B19: Pass through revenue (F-factor) | C19: 0 | D19: 0 | E19: 0 | F19: 0 | G19: 0 | I19: 0 | J19: 0 | K19: 0
B20: Other Revenue | C20: 375489191.7 | D20: -348037408.8 | E20: 27451782.89 | F20: 0 | G20: 0 | I20: 8062840.72 | J20: 1121899.13 | K20: 18267043.04
B21: Total revenue | C21: =SUM(C12:C20) -> 2140293095 | D21: -266274227.1 | E21: 1874018867 | F21: 1725801794 | G21: 40634173.4 | H21: 0 | I21: 38502469.89 | J21: 50813387.09 | K21: 18267043.04 | L21: 0
B23: 8.1.1.2 - EXPENDITURE
B24: TUOS expenditure | C24: 276221350.6 | D24: -5656660.69 | E24: 270564689.9 | F24: 270564689.9 | G24: 0 | I24: 0 | J24: 0 | K24: 0
B25: Avoided TUOS expenditure | C25: 2105440.33 | D25: -175802.45 | E25: 1929637.88 | F25: 1929637.88 | G25: 0 | I25: 0 | J25: 0 | K25: 0
B26: Cross boundary expenditure | C26: 0 | D26: 5656660.69 | E26: 5656660.69 | F26: 5656660.69 | G26: 0 | I26: 0 | J26: 0 | K26: 0
B27: Depreciation | C27: 422373446 | D27: -22214584.15 | E27: 400158861.8 | F27: 380657935.6 | G27: 10739595.91 | I27: 2258641.48 | J27: 6502688.84 | K27: 0
B28: Finance charges | C28: -4909322.01 | D28: 4909322.01 | E28: 0 | F28: 0 | G28: 0 | I28: 0 | J28: 0 | K28: 0
B29: Impairment losses | C29: 8028398.51 | D29: -8028398.51 | E29: 0 | F29: 0 | G29: 0 | I29: 0 | J29: 0 | K29: 0
B30: Jurisdictional scheme amounts | C30: 99887348.9 | D30: -25243.8 | E30: 99862105.1 | F30: 99862105.1 | G30: 0 | I30: 0 | J30: 0 | K30: 0
B31: Loss from sale of fixed assets | C31: 0 | D31: 0 | E31: 0 | F31: 0 | G31: 0 | I31: 0 | J31: 0 | K31: 0
B32: Maintenance expenditure | C32: 311597822.6 | D32: -12829059.4 | E32: 298768763.2 | F32: 281535253.2 | G32: 10962289.01 | I32: 0 | J32: 6271221.03 | K32: 0
B33: Operating expenditure excluding maintenance expenditure | C33: 289625429.1 | D33: -125506005.6 | E33: 164119423.5 | F33: 103406281.1 | G33: 2564970.19 | I33: 12284299.88 | J33: 30945972.36 | K33: 14917900.01
B34: Other | C34: 63612143.59 | D34: -63612143.59 | E34: 0 | F34: 0 | G34: 0 | I34: 0 | J34: 0 | K34: 0
B35: Total expenditure | C35: =SUM(dms_080101_02_audited_Values) -> 1468542058 | D35: =SUM(D24:D34) -> -227481915.5 | E35: =SUM(dms_080101_02_dnsp_Values) -> 1241060142 | F35: =SUM(dms_080101_02_SCS_Values) -> 1143612563 | G35: =SUM(G24:G34) -> 24266855.11 | H35: =SUM(H24:H34) -> 0 | I35: =SUM(dms_080101_02_connection_Values) -> 14542941.36 | J35: =SUM(dms_080101_02_metering_Values) -> 43719882.23 | K35: =SUM(dms_080101_02_ancillary_Values) -> 14917900.01 | L35: =SUM(dms_080101_02_negotiated_Values) -> 0
B37: 8.1.1.3 - PROFIT
B38: Profit before tax (PBT) | C38: =C21-SUM(C24:C34) -> 671751037 | D38: -38792311.6 | E38: 632958725.4 | F38: 582189230.7 | G38: 16367318.29 | H38: 0 | I38: 23959528.53 | J38: 7093504.86 | K38: 3349143.03 | L38: 0
B39: Income tax expenses (/ benefit) | C39: 202153686 | D39: -11673980.9 | E39: 190479705.1 | F39: 175201365.5 | G39: 4925505.939 | I39: 7210270.979 | J39: 2134686.923 | K39: 1007875.792
B40: Profit after tax | C40: =C38-C39 -> 469597351 | D40: -27118330.7 | E40: 442479020.3 | F40: 406987865.2 | G40: 11441812.35 | H40: 0 | I40: 16749257.55 | J40: 4958817.937 | K40: 2341267.238 | L40: =L38-L39 -> 0

Sheet 8.2 Capex
B1: =IF(dms_DataQuality="backcast",INDEX(dms_Worksheet_List,MATCH(dms_Model,dms_Model_List))&" BACKCAST",INDEX(dms_Worksheet_List,MATCH(dms_Model,dms_Model_List))) -> ANNUAL REPORTING STATEMENT
B2: =INDEX(dms_TradingNameFull_List,MATCH(dms_TradingName,dms_TradingName_List)) -> Ergon Energy
B3: =CONCATENATE("Annual Reporting RIN Response ",IF(SUM(dms_SingleYear_Model)>0,CONCATENATE(CRY),CONCATENATE(FRCP_y1," to ",dms_MultiYear_FinalYear_Result))) -> Annual Reporting RIN Response 2017-18
B4: 8.2 - CAPEX
B6: Instructions
B7: Reported expenditure must EXCLUDE capital contributions (except tables 8.2.1 and 8.2.5 which should include all capital contributions).
B8: Forecast expenditure is to be taken from Australian Distribution Co.'s distribution determination.
B9: If allocating based on assumptions then provide method in Basis of Preparation. All adjustments must be explained in Basis of Preparation with supporting documentation attached.
B11: For tables 8.2.1 and 8.2.3: Reported expenditure must INCLUDE any profit margins or management fees paid directly or indirectly to related party contractors (not including actual incurred expenses of the related party contractor) for the regulatory reporting period. 'Related Party Margin Expenditure' must COMPRISE ONLY profit margins or management fees paid directly or indirectly to related party contractors (not including actual incurred expenses of the related party contractor) for the regulatory reporting period.
B13: 8.2.1 - CAPEX BY PURPOSE - STANDARD CONTROL SERVICES
B15: Each line item in this table must INCLUDE the capital contributions. Total capital contributions should also be identified in the last item in the table.
C17: EXPENDITURE
C18: CPI adjusted Forecast | D18: Actual | E18: Difference | F18: Related Party Margin | G18: Voltage level
G19: Subtransmission | H19: HV | I19: LV | J19: Other
B20: Description | C20: $0's, nominal | E20: (%) | F20: $0's, nominal
B21: Augmentation capex | C21: 113402521.9 | D21: =SUM(G21:J21) -> 39364304.85 | E21: =IF(C21=0,1,(D21-C21)/C21*1) -> -0.6528798109 | F21: 0 | G21: 2312418.621 | H21: 19871679.7 | I21: 2389545.508 | J21: 14790661.02
B22: Customer connections capex | C22: 82833146.43 | D22: =SUM(G22:J22) -> 80056029.5 | E22: =IF(C22=0,1,(D22-C22)/C22*1) -> -0.03352663819 | F22: 0 | G22: 5371883.99 | H22: 49775160.91 | I22: 18092257.25 | J22: 6816727.35
B23: Asset replacement capex (repex) | C23: 138646909.4 | D23: 201511046.7 | E23: 0.4534117466 | F23: 20655.4985 | G23: 6928382.42 | H23: 124970249.2 | I23: 34653514.63 | J23: 34958900.52
B24: Metering | C24: 3056937.547 | D24: 1561876.407 | E24: -0.4890715354 | F24: 0 | G24: 0 | H24: 0 | I24: 0 | J24: 1561876.407
B25: Non-network capex | C25: 78198434.67 | D25: 42755543.12 | E25: -0.4532429799 | F25: 0 | G25: 0 | H25: 0 | I25: 0 | J25: 42755543.12
B26: Capitalised overheads | C26: 199687049.4 | D26: =SUM(G26:J26) -> 178719297.8 | E26: -0.1050030618 | F26: 0 | G26: 6022109.927 | H26: 103510703.7 | I26: 28151769.46 | J26: 41034714.72
D27: 0 | E27: 1
D28: 0 | E28: 1
D29: 0 | E29: 1
D30: =SUM(G30:J30) -> 0 | E30: 1
D31: 0 | E31: 1
D32: 0 | E32: 1
D33: 0 | E33: 1
D34: 0 | E34: 1
D35: 0 | E35: 1
B36: Capital contributions included in the above | C36: 33651816.97 | D36: 42755462.92 | E36: 0.2705246482 | F36: 0 | G36: 426994.5845 | H36: 18653835.54 | I36: 4648171.551 | J36: 19026461.25
B37: Total | C37: =SUM(C21:C35) -> 615824999.4 | D37: 543968098.4 | E37: =IF(C37=0,1,(D37-C37)/C37*1) -> -0.1166839621 | G37: =SUM(G21:G35) -> 20634794.96 | H37: =SUM(H21:H35) -> 298127793.5 | I37: 83287086.85 | J37: 141918423.1
B40: 8.2.2 - CAPEX BY PURPOSE - MATERIAL DIFFERENCE EXPLANATION
B42: Where the difference between forecast and actual expenditure shown in table 8.2.1 is a Material Difference please explain the main factors driving the difference.
B44: Description | C44: Reason for material difference
B45: Augmentation capex | C45: Augmentation capex less than forecast by $74M with reduced requirements for sub-transmission and distribution augmentation | D45: 0 | E45: 0 | F45: 0
B48: Asset replacement capex (repex) | C48: Replacement capex greater than forecast by $62.9M, primarily driven by higher volumes of lines defects requiring repair, higher volumes of substation transformer and circuit breaker replacements including return to service, and lines asset replacement projects. Also increased requirements for non-routine conductor to ground statutory height remediation work identified by aerial inspections. | D48: 0 | E48: 0 | F48: 0
B51: Metering | C51: SCS Metering expenditure is lower than the 17/18 forecast as a result of the implementation of Power of Choice on the first of December 2017 and the restrictions relating to the replacement of meters by Ergon within Power of Choice affected areas. | D51: 0 | E51: 0 | F51: 0
B54: Non-network capex | C54: Non-network capex under budget by approx $35.5M, primarily due to underspend on motor vehicles due to delayed deliveries whilst business requirements, designs and specifications are being finalised. There is also an underspend in buildings capex for projects awaiting development approvals and undergoing tenders, as well as some project deferrals. | D54: 0 | E54: 0 | F54: 0
B56: Capitalised overheads | C56: The reduction in the capital program of work has resulted in a similar reduction in capitalised overheads. | D56: 0 | E56: 0 | F56: 0
B62: 8.2.3 - CAPEX OTHER
C63: EXPENDITURE
C64: CPI adjusted Forecast | D64: Actual | E64: Difference | F64: Related Party Margin | G64: Voltage level
G65: Subtransmission | H65: HV | I65: LV | J65: Other
C66: $0's, nominal | E66: (%) | F66: $0's, nominal
B67: Public lighting
B68: =IF(dms_Jurisdiction="Vic","Energy Efficient", "Total") -> Total | C68: 27762749 | D68: =SUM(G68:J68) -> 7790527.195 | E68: =IF(C68=0,1,((D68-C68)/C68)*1) -> -0.7193892005 | F68: 0 | G68: 0 | H68: 0 | I68: 0 | J68: 7790527.195
B69: =IF(dms_Jurisdiction="Vic","Non-energy efficient", "") ->  | D69: =SUM(G69:J69) -> 0 | E69: =IF(C69=0,1,((D69-C69)/C69)*1) -> 1
B70: Alternative Control Services
B71: Connection services | C71: 0 | D71: =SUM(G71:J71) -> 27475405.63 | E71: =IF(C71=0,1,((D71-C71)/C71)*1) -> 1 | F71: 0 | G71: 4536858.682 | H71: 10333450.83 | I71: 5418698.619 | J71: 7186397.501
B72: Metering services | C72: 15742740.63 | D72: 3888712.251 | E72: =IF(C72=0,1,((D72-C72)/C72)*1) -> -0.752983782 | F72: 0 | G72: 0 | H72: 0 | J72: 3888712.251
B73: Ancillary network services | C73: 0 | D73: 0 | E73: =IF(C73=0,1,((D73-C73)/C73)*1) -> 1 | F73: 0 | G73: 0 | H73: 0 | I73: 0 | J73: 0
B74: Negotiated Services
B75: Negotiated services | C75: 0 | D75: =SUM(G75:J75) -> 0 | E75: =IF(C75=0,1,((D75-C75)/C75)*1) -> 1 | F75: 0 | G75: 0 | H75: 0 | I75: 0 | J75: 0
B76: Total | C76: =SUM(C68:C69,C71:C73,C75) -> 43505489.63 | D76: =SUM(D68:D69,D71:D73,D75) -> 39154645.08 | E76: =IF(C76=0,1,((D76-C76)/C76)*1) -> -0.1000067943 | G76: =SUM(G68:G69,G71:G73,G75) -> 4536858.682 | H76: =SUM(H68:H69,H71:H73,H75) -> 10333450.83 | I76: =SUM(I68:I69,I71:I73,I75) -> 5418698.619 | J76: =SUM(J68:J69,J71:J73,J75) -> 18865636.95
B80: 8.2.4 - CAPEX BY ASSET CLASS
B82: Australian Distribution Co. to enter in Table 8.2.4 each Asset Class specified in its current determination as listed in the AER's final decision in its Roll Forward Model and Post-tax Revenue Model and enter information against that Asset Class.
C84: CPI adjusted Forecast | D84: Actual | E84: Difference | F84: Movements in provisions allocated to as-incurred capex
B85: Asset class | C85: $0's, nominal | E85: (%) | F85: $0's, nominal
B86: Overhead Sub-Transmission Lines | C86: 21446679.79 | D86: 21952932.16 | E86: =IF(C86=0,1,((D86-C86)/C86)*1) -> 0.02360516289 | F86: 162795.3592
B87: Underground Sub-Transmission Cables | C87: 758324.7614 | D87: 433083.3078 | E87: =IF(C87=0,1,((D87-C87)/C87)*1) -> -0.428894677 | F87: 3211.596162
B88: Overhead Distribution Lines | C88: 181805243.5 | D88: 236617488 | E88: 0.3014887988 | F88: 1754673.529
B89: Underground Distribution Cables | C89: 35589475.04 | D89: 19718329.01 | E89: -0.4459505517 | F89: 146224.3144
B90: Distribution Equipment | C90: 20619458.5 | D90: 1939834.552 | E90: -0.9059221389 | F90: 14385.14274
B91: Substation Bays | C91: 48132665.04 | D91: 56253486.31 | E91: 0.1687174658 | F91: 417156.4165
B92: Substation Establishment | C92: 11062941.08 | D92: 4707471.643 | E92: -0.5744828065 | F92: 34908.98307
B93: Distribution Substation Switchgear | C93: 8669675.6 | D93: 19762950.61 | E93: 1.27954903 | F93: 146555.2128
B94: Zone Transformers | C94: 27537939.55 | D94: 6310480.877 | E94: -0.7708441161 | F94: 46796.34564
B95: Distribution Transformers | C95: 60403787.01 | D95: 56494847.28 | E95: -0.0647134878 | F95: 418946.266
B96: Low Voltage Services | C96: 32763891.75 | D96: 8836670.782 | E96: -0.7302923948 | F96: 65529.69708
B97: Metering | C97: 4451604.704 | D97: 2413997.552 | E97: -0.4577241888 | F97: 17901.37171
B98: Communications – Pilot Wires | C98: 9423288.523 | D98: 10560666.11 | E98: 0.1206985844 | F98: 78314.2507
B99: Generation Assets | C99: 4694419.506 | D99: 193047.5316 | E99: -0.9588772304 | F99: 1431.573788
B100: Street Lighting | C100: 0 | D100: 0 | E100: 1 | F100: 0
B101: Other Equipment | C101: 10135269.7 | D101: 0 | E101: -1 | F101: 0
B102: Control Centre - SCADA | C102: 3066661.018 | D102: 840071.7645 | E102: -0.7260630505 | F102: 6229.681925
B103: Land & Easements (System) | C103: 2977817.149 | D103: 351254.063 | E103: -0.8820431056 | F103: 2604.778758
B104: Metering Type 5-6 | C104: 0 | D104: 0 | E104: 1 | F104: 0
B105: Communications | C105: 0 | D105: 2360407.917 | E105: 1 | F105: 17503.96949
B106: IT Systems | C106: 8518116.172 | D106: 3421672.852 | E106: -0.598306388 | F106: 25373.94354
B107: Office Equipment & Furniture | C107: 1261943.137 | D107: 732055.5325 | E107: -0.4198981623 | F107: 5428.670873
B108: Motor Vehicles | C108: 41486380.61 | D108: 13443618.13 | E108: -0.6759510488 | F108: 99693.22669
B109: Plant & Equipment | C109: 7676820.747 | D109: 5394221.575 | E109: -0.2973365209 | F109: 40001.68326
B110: Buildings | C110: 39659230.92 | D110: 23289891.52 | E110: -0.4127497943 | F110: 172709.7878
B111: Land & Easements | C111: 0 | D111: 39587.67885 | E111: 1 | F111: 293.5685471
B112: Land Improvements | C112: 0 | D112: 5144568.807 | E112: 1 | F112: 38150.3446
B113: Equity Raising Costs | C113: 0 | D113: 0 | E113: 1 | F113: 0
E114: 1
E115: 1
E116: =IF(C116=0,1,((D116-C116)/C116)*1) -> 1
E117: 1
E118: 1
E119: 1
E120: 1
E121: 1
E122: 1
E123: 1
E124: 1
E125: 1
E126: 1
E127: 1
E128: 1
E129: 1
E130: 1
E131: 1
E132: 1
E133: 1
E134: 1
E135: 1
B136: Total | C136: =SUM(C86:C135) -> 582141633.8 | D136: =SUM(D86:D135) -> 501212635.5 | E136: -0.1390194303 | F136: =SUM(F86:F135) -> 3716819.715
B139: 8.2.5 - CAPITAL CONTRIBUTIONS BY ASSET CLASS
C140: CPI Adjusted Forecast | D140: Actual | E140: Difference
B141: Asset class | C141: $0's, nominal | E141: (%)
B142: =IF(ISBLANK(B86),"",B86) -> Overhead Sub-Transmission Lines | C142: 1503815.571 | D142: 426994.5845 | E142: =IF(C142=0,1,((D142-C142)/C142)*1) -> -0.7160592079
B143: Underground Sub-Transmission Cables | C143: 42064.77122 | D143: 0 | E143: =IF(C143=0,1,((D143-C143)/C143)*1) -> -1
B144: Overhead Distribution Lines | C144: 9811607.887 | D144: 14325632.98 | E144: 0.4600698626
B145: Underground Distribution Cables | C145: 4942610.618 | D145: 4328202.559 | E145: -0.1243084084
B146: Distribution Equipment | C146: 136710.5065 | D146: 900.5923835 | E146: -0.9934124128
B147: Substation Bays | C147: 1356588.872 | D147: 60654.21606 | E147: -0.9552891688
B148: Substation Establishment | C148: 52580.96402 | D148: 0 | E148: -1
B149: Distribution Substation Switchgear | C149: 1177813.594 | D149: 1374504.901 | E149: 0.1669969747
B150: Zone Transformers | C150: 241872.4345 | D150: 0 | E150: -1
B151: Distribution Transformers | C151: 11136648.18 | D151: 17584160.54 | E151: 0.5789455008
B152: Low Voltage Services | C152: 3091760.685 | D152: 4648171.551 | E152: 0.5034059959
B153: Metering | C153: 0 | D153: 0 | E153: 1
B154: Communications – Pilot Wires | C154: 10516.1928 | D154: 6241.001791 | E154: -0.4065341035
B155: Generation Assets | C155: 0 | D155: 0 | E155: 1
B156: Street Lighting | C156: 0 | D156: 0 | E156: 1
B157: Other Equipment | C157: 0 | D157: 0 | E157: 1
B158: Control Centre - SCADA | C158: 0 | D158: 0 | E158: 1
B159: Land & Easements (System) | C159: 178775.2777 | D159: 0 | E159: -1
B160: Metering Type 5-6 | C160: 0 | D160: 0 | E160: 1
B161: Communications | C161: 0 | D161: 0 | E161: 1
B162: IT Systems | C162: 0 | D162: 0 | E162: 1
B163: Office Equipment & Furniture | C163: 0 | D163: 0 | E163: 1
B164: Motor Vehicles | C164: 0 | D164: 0 | E164: 1
B165: Plant & Equipment | C165: 0 | D165: 0 | E165: 1
B166: Buildings | C166: 0 | D166: 0 | E166: 1
B167: Land & Easements | C167: 0 | D167: 0 | E167: 1
B168: Land Improvements | C168: 0 | D168: 0 | E168: 1
B169: Equity Raising Costs | C169: 0 | D169: 0 | E169: 1
E170: 1
E171: =IF(C171=0,1,((D171-C171)/C171)*1) -> 1
E172: 1
E173: 1
B174: =IF(ISBLANK(B118),"",B118) ->  | E174: 1
E175: 1
E176: 1
E177: 1
E178: 1
E179: 1
E180: 1
E181: =IF(C181=0,1,((D181-C181)/C181)*1) -> 1
E182: 1
E183: 1
E184: 1
E185: 1
E186: 1
E187: 1
E188: 1
E189: 1
E190: 1
E191: 1
B192: Total | C192: =SUM(C142:C191) -> 33683365.55 | D192: =SUM(D142:D191) -> 42755462.92 | E192: 0.269334647
B195: 8.2.6 - DISPOSALS BY ASSET CLASS
C196: CPI Adjusted Forecast | D196: Actual | E196: Difference
B197: Asset class | C197: $0's, nominal | E197: (%)
B198: =IF(ISBLANK(B86),"",B86) -> Overhead Sub-Transmission Lines | C198: 0 | D198: 0 | E198: =IF(C198=0,1,((D198-C198)/C198)*1) -> 1
B199: Underground Sub-Transmission Cables | C199: 0 | D199: 0 | E199: =IF(C199=0,1,((D199-C199)/C199)*1) -> 1
B200: Overhead Distribution Lines | C200: 0 | D200: 0 | E200: 1
B201: Underground Distribution Cables | C201: 0 | D201: 0 | E201: 1
B202: Distribution Equipment | C202: 0 | D202: 0 | E202: 1
B203: Substation Bays | C203: 0 | D203: 0 | E203: 1
B204: Substation Establishment | C204: 0 | D204: 0 | E204: 1
B205: Distribution Substation Switchgear | C205: 0 | D205: 0 | E205: 1
B206: Zone Transformers | C206: 0 | D206: 0 | E206: 1
B207: Distribution Transformers | C207: 0 | D207: 0 | E207: 1
B208: Low Voltage Services | C208: 0 | D208: 0 | E208: 1
B209: Metering | C209: 0 | D209: 0 | E209: 1
B210: Communications – Pilot Wires | C210: 0 | D210: 0 | E210: 1
B211: Generation Assets | C211: 0 | D211: 0 | E211: 1
B212: Street Lighting | C212: 0 | D212: 0 | E212: 1
B213: Other Equipment | C213: 0 | D213: 0 | E213: 1
B214: Control Centre - SCADA | C214: 0 | D214: 0 | E214: 1
B215: Land & Easements (System) | C215: 0 | D215: 0 | E215: 1
B216: Metering Type 5-6 | C216: 0 | D216: 0 | E216: 1
B217: Communications | C217: 0 | D217: 0 | E217: 1
B218: IT Systems | C218: 0 | D218: 0 | E218: 1
B219: Office Equipment & Furniture | C219: 0 | D219: 0 | E219: 1
B220: Motor Vehicles | C220: 7361334.963 | D220: 2813042.79 | E220: -0.6178624116
B221: Plant & Equipment | C221: 0 | D221: 1018241.63 | E221: 1
B222: Buildings | C222: 0 | D222: 0 | E222: 1
B223: Land & Easements | C223: 0 | D223: 0 | E223: 1
B224: Land Improvements | C224: 0 | D224: 0 | E224: 1
B225: Equity Raising Costs | C225: 0 | D225: 0 | E225: 1
E226: 1
E227: 1
E228: =IF(C228=0,1,((D228-C228)/C228)*1) -> 1
E229: 1
B230: =IF(ISBLANK(B118),"",B118) ->  | E230: 1
... 18 more rows

Sheet 8.4 Opex
B1: =IF(dms_DataQuality="backcast",INDEX(dms_Worksheet_List,MATCH(dms_Model,dms_Model_List))&" BACKCAST",INDEX(dms_Worksheet_List,MATCH(dms_Model,dms_Model_List))) -> ANNUAL REPORTING STATEMENT
B2: =INDEX(dms_TradingNameFull_List,MATCH(dms_TradingName,dms_TradingName_List)) -> Ergon Energy
B3: =CONCATENATE("Annual Reporting RIN Response ",IF(SUM(dms_SingleYear_Model)>0,CONCATENATE(CRY),CONCATENATE(FRCP_y1," to ",dms_MultiYear_FinalYear_Result))) -> Annual Reporting RIN Response 2017-18
B4: 8.4 OPEX
B6: Instructions
B7: Forecast expenditure is to be taken from Australian Distribution Co.'s distribution determination.
B8: If allocating based on assumptions then provide method in Basis of Preparation. All adjustments must be explained in Basis of Preparation with supporting documentation attached.
B10: 8.4.1 - OPERATING & MAINTENANCE EXPENDITURE - BY PURPOSE
B12: Australian Distribution Co. is to list the operating expenditure categories identified in Australian Distribution Co.'s regulatory proposal at table 3.2.1.1 current opex categories and cost allocations.
B13: Australian Distribution Co. must specify any expenditure category where the expense is more than 5 per cent of the total standard control services operating expenditure.
B14: Reported operating expenditure must INCLUDE any profit margins or management fees paid directly or indirectly to related party contractors (not including actual incurred expenditure of the related party contractor) for the regulatory reporting period.
C16: Audited Statutory Accounts | D16: Adjustments | E16: Distribution business | F16: Standard Control Services | I16: Alternative Control Services | N16: Negotiated Services
F17: CPI Adjusted Forecast | G17: Actual | H17: Difference | I17: Public Lighting | K17: Other
I18: =IF(dms_Jurisdiction="Vic","Energy efficient","") ->  | J18: =IF(dms_Jurisdiction="Vic","Non-energy efficient","") ->  | K18: Connection services | L18: Metering services | M18: Ancillary network services
B19: Opex category | C19: $0's, nominal | H19: % | I19: $0's, nominal
B20: Preventative Maintenance | C20: 110361188 | D20: -3657345 | E20: 106703843 | F20: 79162210 | G20: 96278536 | H20: =IF(F20=0,1,((G20-F20)/F20)*1) -> 0.2162183951 | I20: 6894824 | K20: 0 | L20: 3530483 | M20: 0
B21: Corrective Maintenance | C21: 111462376 | D21: -6000299 | E21: 105462076 | F21: 116686726 | G21: 98665496 | H21: -0.1544411315 | I21: 4055842 | K21: 0 | L21: 2740738 | M21: 0
B22: Forced Maintenance | C22: 89774259 | D22: -3171415 | E22: 86602844 | F22: 76012130 | G22: 86591221 | H22: 0.1391763525 | I22: 11623 | K22: 0 | L22: 0 | M22: 0
B23: Other Network Maintenance | C23: 0 | D23: 0 | E23: 0 | F23: 0 | G23: 0 | H23: 1 | I23: 0 | K23: 0 | L23: 0 | M23: 0
B24: Network Operating Costs | C24: 45831639 | D24: -4041338 | E24: 41790301 | F24: 38906429 | G24: 41790301 | H24: 0.07412327664 | I24: 0 | K24: 0 | L24: 0 | M24: 0
B25: Meter reading | C25: 14109414 | D25: -201109 | E25: 13908306 | F25: 0 | G25: 0 | H25: 1 | I25: 0 | K25: 0 | L25: 13908306 | M25: 0
B26: Customer service (incl Call Centre) | C26: 58761334 | D26: -3546614 | E26: 55214720 | F26: 7441362 | G26: 10632345 | H26: 0.4288170633 | I26: 2564970 | K26: 12284300 | L26: 14815205 | M26: 14917900
B27: Other Operating Costs | C27: 129130337 | D27: -117716945 | E27: 11413392 | F27: 13067210 | G27: 9190931 | H27: -0.2966416703 | I27: 0 | K27: 0 | L27: 2222461 | M27: 0
B28: Training | C28: 20495204 | D28: 0 | E28: 20495204 | F28: 21886560 | G28: 20495204 | H28: -0.06357125103 | I28: 0 | K28: 0 | L28: 0 | M28: 0
B29: Feed-in-Tariff | C29: 0 | D29: 0 | E29: 0 | F29: 0 | G29: 0 | H29: 1 | I29: 0 | K29: 0 | L29: 0 | M29: 0
B30: AEMC Levy | C30: 0 | D30: 0 | E30: 0 | F30: 0 | G30: 0 | H30: 1 | I30: 0 | K30: 0 | L30: 0 | M30: 0
B31: Debt Raising Costs | C31: 0 | D31: 0 | E31: 0 | F31: 0 | G31: 0 | H31: 1 | I31: 0 | K31: 0 | L31: 0 | M31: 0
B32: Over Absorbed Overheads | C32: 0 | D32: 0 | E32: 0 | F32: 0 | G32: 0 | H32: 1 | I32: 0 | K32: 0 | L32: 0 | M32: 0
B33: Non-Network Alternatives | C33: 5857318 | D33: 0 | E33: 5857318 | F33: 8181720 | G33: 5857318 | H33: -0.2840969869 | I33: 0 | K33: 0 | L33: 0 | M33: 0
B34: Corporate Restructuring | C34: 14352227 | D34: 0 | E34: 14352227 | F34: 2159527 | G34: 14352227 | H34: 5.646004889 | I34: 0 | K34: 0 | L34: 0 | M34: 0
B35: Not Proceeding Network Initiated Capital Works | C35: 1087956 | D35: 0 | E35: 1087956 | F35: 0 | G35: 1087956 | H35: =IF(F35=0,1,((G35-F35)/F35)*1) -> 1 | I35: 0 | K35: 0 | L35: 0 | M35: 0
H36: 1
H37: 1
H38: 1
H39: 1
H40: 1
H41: =IF(F41=0,1,((G41-F41)/F41)*1) -> 1
H42: 1
H43: 1
H44: 1
H45: 1
H46: 1
H47: 1
H48: 1
H49: 1
H50: 1
H51: 1
H52: 1
H53: 1
H54: 1
H55: 1
H56: 1
H57: 1
H58: 1
H59: 1
H60: 1
H61: 1
H62: 1
H63: 1
H64: 1
H65: 1
H66: 1
H67: 1
H68: 1
H69: 1
B70: Total | C70: =SUM(C20:C69) -> 601223252 | D70: -138335065 | E70: 462888187 | F70: 363503874 | G70: 384941535 | H70: 0.0589750551 | I70: =SUM(I20:I69) -> 13527259 | J70: 0 | K70: 12284300 | L70: 37217193 | M70: 14917900 | N70: 0
B73: 8.4.2 - OPERATING & MAINTENANCE EXPENDITURE - BY PURPOSE - MARGINS ONLY
B75: "Related party margin expenditure' must COMPRISE ONLY profit margins or management fees paid directly or indirectly to related party contractors (for expenditure that is not an actual incurred expenditure of the related party contractor) for the regulatory reporting period.
C77: Audited Statutory Accounts | D77: Adjustments | E77: Distribution business | F77: Standard Control Services | I77: Alternative Control Services | N77: Negotiated Services
F78: CPI Adjusted Forecast | G78: Actual | H78: Difference | I78: Public Lighting | K78: Other
I79: =IF(dms_Jurisdiction="Vic","Energy efficient","") ->  | J79: =IF(dms_Jurisdiction="Vic","Non-energy efficient","") ->  | K79: Connection services | L79: Metering services | M79: Ancillary network services
B80: Opex category | C80: $0's, nominal | G80: $0's, nominal | H80: per cent | I80: $0's, nominal
B81: =IF(ISBLANK(B20),"",B20) -> Preventative Maintenance | C81: 0 | D81: 0 | E81: 0 | F81: 0 | G81: 0 | H81: =IF(F81=0,1,((G81-F81)/F81)*1) -> 1 | I81: 0 | K81: 0 | L81: 0 | M81: 0
B82: Corrective Maintenance | C82: 1872.357399 | D82: 0 | E82: 1872.357399 | F82: 0 | G82: 1872.357399 | H82: 1 | I82: 0 | K82: 0 | L82: 0 | M82: 0
B83: Forced Maintenance | C83: 0 | D83: 0 | E83: 0 | F83: 0 | G83: 0 | H83: 1 | I83: 0 | K83: 0 | L83: 0 | M83: 0
B84: Other Network Maintenance | C84: 2934.301057 | D84: 0 | E84: 2934.301057 | F84: 0 | G84: 0 | H84: 1 | I84: 0 | K84: 0 | L84: 0 | M84: 2934.301057
B85: Network Operating Costs | C85: 0 | D85: 0 | E85: 0 | F85: 0 | G85: 0 | H85: 1 | I85: 0 | K85: 0 | L85: 0 | M85: 0
B86: Meter reading | C86: 0 | D86: 0 | E86: 0 | F86: 0 | G86: 0 | H86: 1 | I86: 0 | K86: 0 | L86: 0 | M86: 0
B87: Customer service (incl Call Centre) | C87: 0 | D87: 0 | E87: 0 | F87: 0 | G87: 0 | H87: 1 | I87: 0 | K87: 0 | L87: 0 | M87: 0
B88: Other Operating Costs | C88: 0 | D88: 0 | E88: 0 | F88: 0 | G88: 0 | H88: =IF(F88=0,1,((G88-F88)/F88)*1) -> 1 | I88: 0 | K88: 0 | L88: 0 | M88: 0
B89: Training | C89: 0 | D89: 0 | E89: 0 | F89: 0 | G89: 0 | H89: 1 | I89: 0 | K89: 0 | L89: 0 | M89: 0
B90: Feed-in-Tariff | C90: 0 | D90: 0 | E90: 0 | F90: 0 | G90: 0 | H90: 1 | I90: 0 | K90: 0 | L90: 0 | M90: 0
B91: AEMC Levy | C91: 0 | D91: 0 | E91: 0 | F91: 0 | G91: 0 | H91: 1 | I91: 0 | K91: 0 | L91: 0 | M91: 0
B92: Debt Raising Costs | C92: 0 | D92: 0 | E92: 0 | F92: 0 | G92: 0 | H92: 1 | I92: 0 | K92: 0 | L92: 0 | M92: 0
B93: Over Absorbed Overheads | C93: 0 | D93: 0 | E93: 0 | F93: 0 | G93: 0 | H93: 1 | I93: 0 | K93: 0 | L93: 0 | M93: 0
B94: Non-Network Alternatives | C94: 0 | D94: 0 | E94: 0 | F94: 0 | G94: 0 | H94: 1 | I94: 0 | K94: 0 | L94: 0 | M94: 0
B95: Corporate Restructuring | C95: 0 | D95: 0 | E95: 0 | F95: 0 | G95: 0 | H95: 1 | I95: 0 | K95: 0 | L95: 0 | M95: 0
B96: Not Proceeding Network Initiated Capital Works | C96: 0 | D96: 0 | E96: 0 | F96: 0 | G96: 0 | H96: 1 | I96: 0 | K96: 0 | L96: 0 | M96: 0
C97: 0 | D97: 0 | E97: 0 | F97: 0 | G97: 0 | H97: =IF(F97=0,1,((G97-F97)/F97)*1) -> 1 | I97: 0 | K97: 0 | L97: 0 | M97: 0
H98: 1
H99: 1
H100: 1
H101: 1
H102: 1
H103: =IF(F103=0,1,((G103-F103)/F103)*1) -> 1
H104: 1
H105: 1
H106: 1
H107: 1
H108: 1
H109: 1
H110: 1
H111: 1
H112: 1
H113: 1
H114: 1
H115: 1
H116: 1
H117: 1
H118: 1
H119: 1
H120: 1
H121: 1
H122: 1
H123: 1
H124: 1
H125: 1
H126: 1
H127: 1
H128: 1
H129: 1
H130: 1
B131: Total | C131: =SUM(C81:C130) -> 4806.658456 | D131: =SUM(D81:D130) -> 0 | E131: =SUM(E81:E130) -> 4806.658456 | F131: =SUM(F81:F130) -> 0 | G131: =SUM(G81:G130) -> 1872.357399 | H131: 1 | I131: =SUM(I81:I130) -> 0 | J131: 0 | K131: 0 | L131: 0 | M131: 2934.301057 | N131: 0
B134: 8.4.3 - OPERATING & MAINTENANCE EXPENDITURE - EXPLANATION OF MATERIAL DIFFERENCE
B136: Where the difference between forecast and actual expenditure shown in table 8.4.1, column I is a Material Difference please explain the main factors driving the difference.
B138: Category | C138: Explanation
B139: Preventative Maintenance | C139: Variance is attributable to a variety of factors including; • A trade off in actual expenditure relative to the CPI adjusted forecast categories between preventive and corrective maintenance • Higher levels of facility costs (local council rates and electricity charges) than forecast for substation and communication sites | D139: 0 | E139: 0 | F139: 0 | G139: 0 | H139: 0
B140: Corrective Maintenance | C140: Variance is attributable to a variety of factors including; • A trade off in actual expenditure relative to the CPI adjusted forecast categories between preventive and corrective maintenance • Efficiencies in the vegetation management program reflective of improved strategy, processes, analysis, contractual arrangements and management intervention. • Reduced number of non-compliance instances against acceptance criteria identified during the routine maintenance process resulting in less non-routine maintenance work across several asset classes | D140: 0 | E140: 0 | F140: 0 | G140: 0 | H140: 0
B141: Forced Maintenance | C141: Attributed to impact of severe storms in the Bundaberg area in Nov 2017 and response activities to 3 tropical cyclone events in 2018 Note all forecasts were exclusive of major events at request of AER | D141: 0 | E141: 0 | F141: 0 | G141: 0 | H141: 0
B142: Network Operating Costs | C142: Variance is attributable to a variety of factors including; • Direct impact of TC response on Operational Control Centre costs • Higher than forecast costs associated with data carrier services for remorely accessed equipment | D142: 0 | E142: 0 | F142: 0 | G142: 0 | H142: 0
B143: Customer service (incl Call Centre) | C143: SCS Customer Services higher than forecast due to the Distribution Call Centre costs ($5 million) not part of this activity in the forecast. The Distribution Call Centre costs are classified as Other Operating Cost in the forecast.
B144: Other Operating Costs | C144: Other Operating Costs are less than forecast due to savings in the Market Transaction Centre charges as a result of the merger, and the churn in Meter costs as a result of the introduction of Power of Choice. The forecast also includes the Distribution Call Centre costs, offsetting the above variance for Customer Service.
B145: Training | C145: Costs have reduced in line with reduction in headcount from prior years | D145: 0 | E145: 0 | F145: 0 | G145: 0 | H145: 0
B146: Non-Network Alternatives | C146: The underspend in Non-Network Alternatives was due to: - A reduction in Ergon’s CAPEX plan resulted in less need for non-network alternative projects to be undertaken. - Optimal Incremental Pricing incentive rates were low in 2017-18 and therefore market participation and incentive payments were lower than allowed for. - Asset utilisation expenditure was put on hold as Energy Queensland reassessed the joint Demand Management program direction. | D146: 0 | E146: 0 | F146: 0 | G146: 0 | H146: 0
B147: Corporate Restructuring | C147: Ergon Energy continues to experience organisation change, offering employees voluntary retrenchment in order to achieve future costs savings. This has resulted in redundancies exceeding the AER approved forecast. | D147: 0 | E147: 0 | F147: 0 | G147: 0 | H147: 0
B148: Not Proceeding Network Initiated Capital Works | C148: No forecast and costs are as a result of projects not proceeding and written off. | D148: 0 | E148: 0 | F148: 0 | G148: 0 | H148: 0

Sheet 9.5 TUoS
B1: =IF(dms_DataQuality="backcast",INDEX(dms_Worksheet_List,MATCH(dms_Model,dms_Model_List))&" BACKCAST",INDEX(dms_Worksheet_List,MATCH(dms_Model,dms_Model_List))) -> ANNUAL REPORTING STATEMENT
B2: =INDEX(dms_TradingNameFull_List,MATCH(dms_TradingName,dms_TradingName_List)) -> Ergon Energy
B3: =CONCATENATE("Annual Reporting RIN Response ",IF(SUM(dms_SingleYear_Model)>0,CONCATENATE(CRY),CONCATENATE(FRCP_y1," to ",dms_MultiYear_FinalYear_Result))) -> Annual Reporting RIN Response 2017-18
B4: 9.5 - TUoS AUDIT (t-2)
B6: This template collects information for annual pricing proposals from Victorian businesses only.
B8: 9.5.1 - TUOS CHARGES (AEMO)
F9: =CRY -> 2017-18
E16: Total | F16: =SUM(F10:F15) -> 0
B19: 9.5.2 - TRANSMISSION CONNECTION FEES
F20: =CRY -> 2017-18
E27: Total | F27: =SUM(F21:F26) -> 0
B30: 9.5.3 - CROSS BOUNDARY NETWORK CHARGES
C31: Amount (payable)/receivable
C32: $0's, nominal
C33: HV crossings | D33: Subtransmission crossings | E33: TUoS Adjustment | F33: Total
B34: Distribution Business | F34: =CRY -> 2017-18
F35: =IF((SUM(C35:E35)=0),"",(SUM(C35:E35))) -> 
F36: =IF((SUM(C36:E36)=0),"",(SUM(C36:E36))) -> 
B43: Total
B46: 9.5.4 - PAYMENTS TO EMBEDDED GENERATORS
B47: 9.5.4.1 - AVOIDED TRANSMISSION COSTS | F47: 2016-17
B56: Total | F56: =SUM(F48:F55) -> 0
B57: 9.5.4.2 - AVOIDED TUoS USAGE CHARGES | F57: 2016-17
B66: Total | F66: =SUM(F58:F65) -> 0
B67: Total payments to embedded generators | F67: =F66+F56 -> 0
